{"text_format":"1","workbook":"xlsx","n_sheets":12,"sheets":["Hoofdmenu","Toelichting","NAW_gegevens","Voorblad","Kostenverzamelstaat","Specifieke informatie A","Specifieke informatie B","Specifieke informatie C","Contractinformatie","Controleoverzicht","Blad1","Parameters"],"not_rendered":{"charts":0,"images":1,"macros":1,"external_links":0,"defined_names":155,"comments":1,"pivot_tables":0},"unopened":[],"bounds":{"document_bytes":16777216,"sheet_cells":100000,"rows_first":2000,"rows_last":500,"rows_between":2000,"halvings":0,"cell_chars":16384,"cell_head_chars":4096},"cells_cut":0,"cells_raw":0,"read":"whole","date_system":"1900"}

{"sheet":"Hoofdmenu","index":0,"n_rows":3,"n_cols":2,"rows_kept":3,"cut":false,"hidden":false,"merged":[[0,0,0,1],[1,0,1,1]]}
["HOOFDMENU"]
[{"$f":"CONCATENATE(\"JAARSTAAT ZVW \",jaar_id)","v":"JAARSTAAT ZVW 2022"}]
["Navigatie","Afdrukken"]

{"sheet":"Toelichting","index":1,"n_rows":3,"n_cols":2,"rows_kept":3,"cut":false,"hidden":false,"merged":[]}
[]
[]
[null,{"$f":"CONCATENATE(\" JAARSTAAT ZVW \",jaar_id,\" (VERSIE: \",document_id,\")\")","v":" JAARSTAAT ZVW 2022 (VERSIE: JS2022ZVW.D)"}]

{"sheet":"NAW_gegevens","index":2,"n_rows":37,"n_cols":5,"rows_kept":37,"cut":false,"hidden":false,"merged":[[2,0,2,1],[3,0,3,1]]}
[]
[]
["NAW-GEGEVENS"]
[{"$f":"CONCATENATE(\"JAARSTAAT ZVW 2022\")","v":"JAARSTAAT ZVW 2022"}]
[" Selecteer uw nummer:>","0000 KIES UW UZOVI-NUMMER"]
[" Uzovi-nummer:",{"$f":"MID(keuze_uzovi_nummer,1,4)","v":"0000"}]
[" Verzekeraar:"]
[" Plaats:"]
[" Contactpersoon:"]
[" Telefoonnummer:"]
[" E-mail:"]
[]
[]
["Let op dat u het goede UZOVI-nummer invult, zie onderstaand overzicht:"]
[]
["UZOVI","NAAM",null,null,"PLAATS"]
["0101","N.V. UNIVÉ ZORG",null,null,"ARNHEM"]
["0104","CENTRALE ZORGVERZEKERINGEN NZV N.V.",null,null,"TILBURG"]
["0201","OHRA ZORGVERZEKERINGEN N.V.",null,null,"TILBURG"]
["0403","ASR BASIS ZIEKTEKOSTENVERZEKERINGEN N.V.",null,null,"UTRECHT"]
["0699","IZA ZORGVERZEKERAAR N.V.",null,null,"ARNHEM"]
["0736","N.V. ZORGVERZEKERAAR UMC",null,null,"ARNHEM"]
["3311","ZILVEREN KRUIS ACHMEA ZORGVERZEKERINGEN N.V.",null,null,"UTRECHT"]
["3313","INTERPOLIS ZORGVERZEKERINGEN N.V.",null,null,"UTRECHT"]
[3332,"MENZIS ZORGVERZEKERAAR NV",null,null,"WAGENINGEN"]
[3333,"ANDERZORG NV",null,null,"WAGENINGEN"]
[3343,"ONVZ ZIEKTEKOSTENVERZEKERAAR N.V.",null,null,"HOUTEN"]
[3347,"ENO ZORGVERZEKERAAR N.V.",null,null,"DEVENTER"]
[3351,"FBTO ZORGVERZEKERINGEN N.V.",null,null,"LEEUWARDEN"]
[3352,"IPTIQ LIFE S.A.",null,null,"AMSTELVEEN"]
[3358,"DE FRIESLAND ZORGVERZEKERAAR N.V.",null,null,"LEEUWARDEN"]
[3359,"EUCARE INSURANCE PCC LTD",null,null,"TA' XBIEX"]
["7029","OWM ZORGVERZEKERAAR 'DSW' U.A.",null,null,"SCHIEDAM"]
["7037","STAD HOLLAND ZORGVERZEKERAAR OWM U.A.",null,null,"SCHIEDAM"]
["7085","OWM ZORGVERZEKERAAR ZORG EN ZEKERHEID U.A.",null,null,"LEIDEN"]
["7095","VGZ ZORGVERZEKERAAR N.V.",null,null,"ARNHEM"]
["7119","CZ ZORGVERZEKERINGEN N.V.",null,null,"TILBURG"]

{"sheet":"Voorblad","index":3,"n_rows":36,"n_cols":4,"rows_kept":36,"cut":false,"hidden":false,"merged":[[13,3,14,11],[15,3,16,11],[19,3,20,11],[21,3,22,11]]}
[null,null,"VOORBLAD"]
[]
[]
[]
[]
["Pagina 1"]
[]
[]
[]
[]
[]
[]
[]
[]
[]
[null,null,null,{"$f":"CONCATENATE(\"JAARSTAAT ZVW \",jaar_id)","v":"JAARSTAAT ZVW 2022"}]
[]
[]
[]
[null,null,null,"SPECIFIEKE INFORMATIE"]
[]
[]
[]
[null,null,null,"  SPECIFIEKE INFORMATIE A (met accountantsverklaring)"]
[null,null,null,"     ● Kostenverzamelstaat (pagina 1 t/m 3)"]
[null,null,null,"     ● Specificatie informatie A (pagina 1 t/m 2)"]
[]
[null,null,null,"  CATASTROFESCHADELAST (SPECIFIEKE INFORMATIE B) (met accountantsverklaring)"]
[null,null,null,"     ● Specifieke informatie B (pagina 1 t/m 4)"]
[]
[null,null,null,"  SPECIFIEKE INFORMATIE C (beleidsinformatie zonder accountantsverklaring)"]
[null,null,null,"     ● Specificaties van kosten en productie (pagina 1 t/m 3)"]
[]
[null,null,null,"  CONTRACTINFORMATIE (pagina 1 t/m 2)"]
[]
[null,null,null,"  CONTROLEOVERZICHT (pagina 1 t/m 6)"]

{"sheet":"Kostenverzamelstaat","index":4,"n_rows":167,"n_cols":16,"rows_kept":167,"cut":false,"hidden":false,"merged":[[94,3,94,6],[95,3,95,6],[96,3,96,6],[98,3,98,6],[103,3,103,4],[10,12,11,12],[12,12,13,12],[69,3,69,6],[70,3,70,6],[119,3,119,6],[72,3,72,6],[73,3,73,6],[76,3,76,6],[78,3,78,6],[79,3,79,6],[80,3,80,6],[81,3,81,6],[10,3,13,6],[10,8,11,9],[10,10,11,11],[12,7,13,7],[12,8,13,8],[12,9,13,9],[12,10,13,10],[12,11,13,11],[19,3,19,6],[20,3,20,6],[21,3,21,6],[22,3,22,6],[54,3,54,4],[54,10,54,12],[53,3,53,4],[61,3,64,6],[61,8,62,9],[61,10,62,11],[61,12,62,12],[63,7,64,7],[63,8,64,8],[63,9,64,9],[63,10,64,10],[63,11,64,11],[63,12,64,12],[71,3,71,6],[84,3,84,6],[86,3,86,6],[88,3,88,6],[93,3,93,6],[82,3,82,6],[83,3,83,6],[157,12,158,12],[159,3,159,6],[103,10,103,12],[110,3,113,6],[110,8,111,9],[110,10,111,11],[110,12,111,12],[112,7,113,7],[112,8,113,8],[112,9,113,9],[112,10,113,10],[112,11,113,11],[112,12,113,12],[120,3,120,6],[121,3,121,6],[125,3,125,7],[160,3,160,6],[166,3,166,4],[157,9,158,9],[157,10,158,10],[157,11,158,11],[157,3,158,6],[157,7,158,7],[157,8,158,8]]}
[null,null,"INVULSPECIFICATIES SPECIFIEKE INFORMATIE A"]
[]
[]
[]
[]
["Pagina 1",null,null,{"$f":"CONCATENATE(\"JAARSTAAT ZVW \", jaar_id)","v":"JAARSTAAT ZVW 2022"}]
[null,null,null,"KOSTENVERZAMELSTAAT (SPECIFIEKE INFORMATIE A)"]
[null,null,null,{"$f":"IF(naw_uzovi_zorgverzekeraar<>\"0000\",CONCATENATE(UPPER(naw_naam_zorgverzekeraar),\", \",UPPER(naw_plaats_zorgverzekeraar)),\"\")","v":""},null,null,null,null,null,null,null,null,"UZOVI: 0000"]
[null,null,null,"SPECIFICATIES INFORMATIE RISICOVEREVENING"]
[null,null,null,"KOSTENVERZAMELSTAAT"]
[null,null,null," KOSTENRUBRIEK",null,null,null,null,{"$f":"CONCATENATE(\"LASTEN \",jaar_id,)","v":"LASTEN 2022"},null,{"$f":"CONCATENATE(\"LASTEN \",jaar_id-1,,\"^\")","v":"LASTEN 2021^"},null,{"$f":"CONCATENATE(\"LASTEN \",jaar_id-2,\"* \nEN OUDER\")","v":"LASTEN 2020* \nEN OUDER"}]
[]
[null,null,null,null,null,null,null,"Code",{"$f":"CONCATENATE(\"LASTEN \",jaar_id,\" inclusief balanspost \")","v":"LASTEN 2022 inclusief balanspost "},{"$f":"CONCATENATE(\"Ontvangen en geaccepteerde declaraties m.b.t. \",jaar_id)","v":"Ontvangen en geaccepteerde declaraties m.b.t. 2022"},{"$f":"CONCATENATE(\"LASTEN \",jaar_id-1,\" inclusief balanspost \")","v":"LASTEN 2021 inclusief balanspost "},{"$f":"CONCATENATE(\"Ontvangen en geaccepteerde declaraties m.b.t. \",jaar_id-1)","v":"Ontvangen en geaccepteerde declaraties m.b.t. 2021"},{"$f":"CONCATENATE(\"Ontvangen en geaccepteerde declaraties m.b.t. \",jaar_id-2, \" en ouder\")","v":"Ontvangen en geaccepteerde declaraties m.b.t. 2020 en ouder"}]
[null,null,null,null,null,null,null,null,null,"Ontvangen en geaccepteerde declaraties mbt jaar T",null,"Ontvangen en geaccepteerde declaraties mbt jaar T","Ontvangen en geaccepteerde declaraties mbt jaar T-1"]
[null,null,null," 01  HUISARTSENZORG en MDZ"]
[null,null,null," Bijzondere betalingen",null,null,null,"503   ",null,null,null,null,null,null,null,{"$f":"IF(OR((I16-J16)/IF(I16=0,1,I16)<-10%,(K16-L16)/IF(K16=0,1,K16)<-10%,(M16-N16)/IF(M16=0,1,M16)<-10%),\"De balans is < -10%, als dit plausibel is dan vragen wij u dit nader toe te lichten bij de opmerkingen, zo niet dan dient u uw raming aan te scherpen.\",\"\")","v":""}]
[null,null,null," Avond-, nacht- en weekenddiensten",null,null,null,"504   ",null,null,null,null,null,null,null,""]
[null,null,null," Inschrijftarieven",null,null,null,"505   ",null,null,null,null,null,null,null,""]
[null,null,null," Consulttarieven",null,null,null,"506   ",null,null,null,null,null,null,null,""]
[null,null,null," Overige tarieven",null,null,null,"507   ",null,null,null,null,null,null,null,""]
[null,null,null," Multidisciplinaire zorg",null,null,null,"510   ",null,null,null,null,null,null,null,""]
[null,null,null," Resultaatbeloning en zorgvernieuwing huisartsen",null,null,null,"515   ",null,null,null,null,null,null,null,""]
[null,null,null," Resultaatbeloning en zorgvernieuwing MDZ",null,null,null,"516   ",null,null,null,null,null,null,null,""]
[null,null,null," Meerkosten COVID-19, indirect",null,null,null,"801.1 ",null,null,null,null,{"$f":"'Specifieke informatie B'!L19","v":0},null,null,""]
[null,null,null," Meerkosten COVID-19, toeslagen",null,null,null,"801.2 ",null,null,null,null,{"$f":"'Specifieke informatie B'!L20","v":0},null,null,""]
[null,null,null," Netto continuïteitsbijdrage COVID (basisverzekering)",null,null,null,"821   ",null,null,null,null,null,null,null,""]
[null,null,null," TOTAAL RUBRIEK 01",null,null,null,null,{"$f":"SUM(I16:I26)","v":0},{"$f":"SUM(J16:J26)","v":0},0,0,0]
[null,null,null," 02 FARMACEUTISCHE ZORG"]
[null,null,null," Farmaceutische zorg",null,null,null,"520   ",null,null,null,null,null,null,null,{"$f":"IF(OR((I29-J29)/IF(I29=0,1,I29)<-10%,(K29-L29)/IF(K29=0,1,K29)<-10%,(M29-N29)/IF(M29=0,1,M29)<-10%),\"De balans is < -10%, als dit plausibel is dan vragen wij u dit nader toe te lichten bij de opmerkingen, zo niet dan dient u uw raming aan te scherpen.\",\"\")","v":""}]
[null,null,null," Meerkosten COVID-19, indirect",null,null,null,"802.1 ",null,null,null,null,{"$f":"'Specifieke informatie B'!L23","v":0},null,null,{"$f":"IF(OR((I30-J30)/IF(I30=0,1,I30)<-10%,(K30-L30)/IF(K30=0,1,K30)<-10%,(M30-N30)/IF(M30=0,1,M30)<-10%),\"De balans is < -10%, als dit plausibel is dan vragen wij u dit nader toe te lichten bij de opmerkingen, zo niet dan dient u uw raming aan te scherpen.\",\"\")","v":""}]
[null,null,null," Netto continuïteitsbijdrage COVID (basisverzekering)",null,null,null,"822   ",null,null,null,null,null,null,null,""]
[null,null,null," TOTAAL RUBRIEK 02",null,null,null,null,{"$f":"SUM(I29:I31)","v":0},{"$f":"SUM(J29:J31)","v":0},{"$f":"SUM(K29:K31)","v":0},{"$f":"SUM(L29:L31)","v":0},{"$f":"SUM(M29:M31)","v":0},null,null,{"$f":"IF(OR((I32-J32)/IF(I32=0,1,I32)<-10%,(K32-L32)/IF(K32=0,1,K32)<-10%,(M32-N32)/IF(M32=0,1,M32)<-10%),\"De balans is < -10%, als dit plausibel is dan vragen wij u dit nader toe te lichten bij de opmerkingen, zo niet dan dient u uw raming aan te scherpen.\",\"\")","v":""}]
[null,null,null," 03 VERPLEGING EN VERZORGING"]
[null,null,null," Kosten van verpleging en verzorging ",null,null,null,"530   ",null,null,null,null,null,null,null,{"$f":"IF(OR((I34-J34)/IF(I34=0,1,I34)<-10%,(K34-L34)/IF(K34=0,1,K34)<-10%,(M34-N34)/IF(M34=0,1,M34)<-10%),\"De balans is < -10%, als dit plausibel is dan vragen wij u dit nader toe te lichten bij de opmerkingen, zo niet dan dient u uw raming aan te scherpen.\",\"\")","v":""}]
[null,null,null," Meerkosten COVID-19, indirect",null,null,null,"803.1 ",null,null,null,null,{"$f":"'Specifieke informatie B'!L27","v":0},null,null,""]
[null,null,null," Netto continuïteitsbijdrage COVID (basisverzekering)",null,null,null,"823   ",null,null,null,null,null,null,null,""]
[null,null,null," TOTAAL RUBRIEK 03",null,null,null,null,{"$f":"SUM(I34:I36)","v":0},{"$f":"SUM(J34:J36)","v":0},{"$f":"SUM(K34:K36)","v":0},{"$f":"SUM(L34:L36)","v":0},{"$f":"SUM(M34:M36)","v":0},null,null,{"$f":"IF(OR((I37-J37)/IF(I37=0,1,I37)<-10%,(K37-L37)/IF(K37=0,1,K37)<-10%,(M37-N37)/IF(M37=0,1,M37)<-10%),\"De balans is < -10%, als dit plausibel is dan vragen wij u dit nader toe te lichten bij de opmerkingen, zo niet dan dient u uw raming aan te scherpen.\",\"\")","v":""}]
[null,null,null," 04  MONDZORG"]
[null,null,null," Kosten mondzorg volwassen verzekerden",null,null,null,"560.1",null,null,null,null,null,null,null,{"$f":"IF(OR((I39-J39)/IF(I39=0,1,I39)<-10%,(K39-L39)/IF(K39=0,1,K39)<-10%,(M39-N39)/IF(M39=0,1,M39)<-10%),\"De balans is < -10%, als dit plausibel is dan vragen wij u dit nader toe te lichten bij de opmerkingen, zo niet dan dient u uw raming aan te scherpen.\",\"\")","v":""}]
[null,null,null," Kosten mondzorg jeugdige verzekerden",null,null,null,"560.2",null,null,null,null,null,null,null,""]
[null,null,null," Kosten gebitsprothesen",null,null,null,"561   ",null,null,null,null,null,null,null,""]
[null,null,null," Meerkosten COVID-19, indirect",null,null,null,"804.1 ",null,null,null,null,{"$f":"'Specifieke informatie B'!L30","v":0},null,null,""]
[null,null,null," Meerkosten COVID-19, toeslagen",null,null,null,"804.2 ",null,null,null,null,{"$f":"'Specifieke informatie B'!L31","v":0},null,null,""]
[null,null,null," Netto continuïteitsbijdrage COVID (basisverzekering)",null,null,null,"824   ",null,null,null,null,null,null,null,""]
[null,null,null," TOTAAL RUBRIEK 04",null,null,null,null,{"$f":"SUM(I39:I44)","v":0},{"$f":"SUM(J39:J44)","v":0},0,0,0]
[null,null,null," 05  VERLOSKUNDIGE ZORG"]
[null,null,null," Kosten verloskundige zorg door verloskundigen",null,null,null,"580   ",null,null,null,null,null,null,null,{"$f":"IF(OR((I47-J47)/IF(I47=0,1,I47)<-10%,(K47-L47)/IF(K47=0,1,K47)<-10%,(M47-N47)/IF(M47=0,1,M47)<-10%),\"De balans is < -10%, als dit plausibel is dan vragen wij u dit nader toe te lichten bij de opmerkingen, zo niet dan dient u uw raming aan te scherpen.\",\"\")","v":""}]
[null,null,null," Kosten Integrale geboortezorg ",null,null,null,"582   ",null,null,null,null,null,null,null,""]
[null,null,null," Meerkosten COVID-19, indirect",null,null,null,"805.1 ",null,null,null,null,{"$f":"'Specifieke informatie B'!L34","v":0},null,null,""]
[null,null,null," Netto continuïteitsbijdrage COVID (basisverzekering)",null,null,null,"825   ",null,null,null,null,null,null,null,""]
[null,null,null," TOTAAL RUBRIEK 05",null,null,null,null,{"$f":"SUM(I47:I50)","v":0},{"$f":"SUM(J47:J50)","v":0},{"$f":"SUM(K47:K50)","v":0},{"$f":"SUM(L47:L50)","v":0},{"$f":"SUM(M47:M50)","v":0}]
[null,null,null,"* jaarlaag 2020 is inclusief COVID-19-kosten "]
[null,null,null,"^ jaarlaag 2021 is exclusief COVID-19-kosten"]
[]
[null,null,null,{"$f":"NOW()","v":"2023-03-21T09:46:00.640"},null,null,null,null,null,null,{"$f":"CONCATENATE(\"Kostenverzamelstaat \",\"2022\",\", \",LOWER(A6))","v":"Kostenverzamelstaat 2022, pagina 1"}]
[]
["Pagina 2",null,null,{"$f":"CONCATENATE(\"JAARSTAAT ZVW \", A1)","v":"JAARSTAAT ZVW "}]
[null,null,null,"KOSTENVERZAMELSTAAT (SPECIFIEKE INFORMATIE A)"]
[null,null,null,"",null,null,null,null,null,null,null,null,"UZOVI: 0000"]
[null,null,null,"SPECIFICATIES INFORMATIE RISICOVEREVENING"]
[null,null,null,"KOSTENVERZAMELSTAAT - vervolg"]
[null,null,null," KOSTENRUBRIEK",null,null,null,null,{"$f":"I11","v":"LASTEN 2022"},null,{"$f":"K11","v":"LASTEN 2021^"},null,{"$f":"M11","v":"LASTEN 2020* \nEN OUDER"}]
[]
[null,null,null,null,null,null,null,"Code",{"$f":"I$13","v":"LASTEN 2022 inclusief balanspost "},{"$f":"J$13","v":"Ontvangen en geaccepteerde declaraties m.b.t. 2022"},"LASTEN 2021 inclusief balanspost ","Ontvangen en geaccepteerde declaraties m.b.t. 2021","Ontvangen en geaccepteerde declaraties m.b.t. 2020 en ouder"]
[]
[null,null,null," 06  MEDISCH SPECIALISTISCHE ZORG"]
[null,null,null," Kosten specialisten mondziekten en kaakchirurgie",null,null,null,"545   ",null,null,null,null,null,null,null,{"$f":"IF(OR((I67-J67)/IF(I67=0,1,I67)<-10%,(K67-L67)/IF(K67=0,1,K67)<-10%,(M67-N67)/IF(M67=0,1,M67)<-10%),\"De balans is < -10%, als dit plausibel is dan vragen wij u dit nader toe te lichten bij de opmerkingen, zo niet dan dient u uw raming aan te scherpen.\",\"\")","v":""}]
[null,null,null," Overige kosten ziekenhuiszorg en curatieve zorg",null,null,null,"610   ",null,null,null,null,null,null,null,""]
[null,null,null," Overige zorgproducten ",null,null,null,"611   ",null,null,null,null,null,null,null,""]
[null,null,null," Kosten add-ons - Dure geneesmiddelen",null,null,null,"  612.1   ",null,null,null,null,null,null,null,""]
[null,null,null," Kosten add-ons - IC",null,null,null,"  612.2   ",null,null,null,null,null,null,null,""]
[null,null,null," Integrale kosten DBC-zorgproduct gereguleerde segment ",null,null,null,"613.1",null,null,null,null,null,null,null,""]
[null,null,null," Integrale kosten DBC-zorgproduct vrije segment ",null,null,null,"615.1",null,null,null,null,null,null,null,""]
[null,null,null," Integrale kosten extramuraal werkende \n specialisten",null,null,null,"619   ",null,null,null,null,null,null,null,""]
[null,null,null," Meerkosten COVID-19, indirect",null,null,null,"806.1 ",null,null,null,null,{"$f":"'Specifieke informatie B'!L51","v":0},null,null,""]
[null,null,null," Meerkosten COVID-19, toeslagen",null,null,null,"806.2 ",null,null,null,null,null,null,null,""]
[null,null,null," Netto continuïteitsbijdrage COVID (basisverzekering)",null,null,null,"826   ",null,null,null,null,null,null,null,""]
[null,null,null," TOTAAL RUBRIEK 06",null,null,null,null,{"$f":"SUM(I67:I77)","v":0},{"$f":"SUM(J67:J77)","v":0},{"$f":"SUM(K67:K77)","v":0},{"$f":"SUM(L67:L77)","v":0},{"$f":"SUM(M67:M77)","v":0}]
[null,null,null," 07  PARAMEDISCHE ZORG"]
[null,null,null," Kosten fysiotherapie",null,null,null,"620   ",null,null,null,null,null,null,null,{"$f":"IF(OR((I80-J80)/IF(I80=0,1,I80)<-10%,(K80-L80)/IF(K80=0,1,K80)<-10%,(M80-N80)/IF(M80=0,1,M80)<-10%),\"De balans is < -10%, als dit plausibel is dan vragen wij u dit nader toe te lichten bij de opmerkingen, zo niet dan dient u uw raming aan te scherpen.\",\"\")","v":""}]
[null,null,null," Kosten oefentherapie Mensendieck/Cesar",null,null,null,"621   ",null,null,null,null,null,null,null,""]
[null,null,null," Kosten logopedie",null,null,null,"623   ",null,null,null,null,null,null,null,""]
[null,null,null," Kosten ergotherapie",null,null,null,"624   ",null,null,null,null,null,null,null,""]
[null,null,null," Kosten dieetadvisering",null,null,null,"625   ",null,null,null,null,null,null,null,""]
[null,null,null," Gecombineerde Leefstijl Interventie (GLI)",null,null,null,"626   ",null,null,null,null,null,null,null,""]
[null,null,null," Meerkosten COVID-19, indirect",null,null,null,"807.1 ",null,null,null,null,{"$f":"'Specifieke informatie B'!L60","v":0},null,null,""]
[null,null,null," Netto continuïteitsbijdrage COVID (basisverzekering)",null,null,null,"827   ",null,null,null,null,null,null,null,""]
[null,null,null," TOTAAL RUBRIEK 07",null,null,null,null,{"$f":"SUM(I80:I87)","v":0},{"$f":"SUM(J80:J87)","v":0},{"$f":"SUM(K80:K87)","v":0},{"$f":"SUM(L80:L87)","v":0},{"$f":"SUM(M80:M87)","v":0}]
[null,null,null," 08  HULPMIDDELENZORG"]
[null,null,null," Hulpmiddelenzorg ",null,null,null,"640   ",null,null,null,null,null,null,null,{"$f":"IF(OR((I90-J90)/IF(I90=0,1,I90)<-10%,(K90-L90)/IF(K90=0,1,K90)<-10%,(M90-N90)/IF(M90=0,1,M90)<-10%),\"De balans is < -10%, als dit plausibel is dan vragen wij u dit nader toe te lichten bij de opmerkingen, zo niet dan dient u uw raming aan te scherpen.\",\"\")","v":""}]
[null,null,null," Meerkosten COVID-19, indirect",null,null,null,"808.1 ",null,null,null,null,{"$f":"'Specifieke informatie B'!L63","v":0},null,null,""]
[null,null,null," Netto continuïteitsbijdrage COVID (basisverzekering)",null,null,null,"828   ",null,null,null,null,null,null,null,""]
[null,null,null," TOTAAL RUBRIEK 08",null,null,null,null,{"$f":"SUM(I90:I92)","v":0},{"$f":"SUM(J90:J92)","v":0},{"$f":"SUM(K90:K92)","v":0},{"$f":"SUM(L90:L92)","v":0},{"$f":"SUM(M90:M92)","v":0},null,null,{"$f":"IF(OR((I93-J93)/IF(I93=0,1,I93)<-10%,(K93-L93)/IF(K93=0,1,K93)<-10%,(M93-N93)/IF(M93=0,1,M93)<-10%),\"De balans is < -10%, als dit plausibel is dan vragen wij u dit nader toe te lichten bij de opmerkingen, zo niet dan dient u uw raming aan te scherpen.\",\"\")","v":""}]
[null,null,null," 09  ZIEKENVERVOER"]
[null,null,null," Kosten vervoer per ambulance/helikopter",null,null,null,"650   ",null,null,null,null,null,null,null,{"$f":"IF(OR((I95-J95)/IF(I95=0,1,I95)<-10%,(K95-L95)/IF(K95=0,1,K95)<-10%,(M95-N95)/IF(M95=0,1,M95)<-10%),\"De balans is < -10%, als dit plausibel is dan vragen wij u dit nader toe te lichten bij de opmerkingen, zo niet dan dient u uw raming aan te scherpen.\",\"\")","v":""}]
[null,null,null," Opbrengstenverrekeningen regionale ambulancevoorzieningen ",null,null,null,"650.1",null,null,null,null,null,null,null,""]
[null,null,null," Kosten vervoer per openbaar vervoer, taxi \n en eigen auto",null,null,null,"651   ",null,null,null,null,null,null,null,""]
[null,null,null," Meerkosten COVID-19, indirect",null,null,null,"809.1 ",null,null,null,null,{"$f":"'Specifieke informatie B'!L67","v":0},null,null,""]
[null,null,null," Netto continuïteitsbijdrage COVID (basisverzekering)",null,null,null,"829   ",null,null,null,null,null,null,null,""]
[null,null,null," TOTAAL RUBRIEK 09",null,null,null,null,{"$f":"SUM(I95:I99)","v":0},{"$f":"SUM(J95:J99)","v":0},{"$f":"SUM(K95:K99)","v":0},{"$f":"SUM(L95:L99)","v":0},{"$f":"SUM(M95:M99)","v":0}]
[null,null,null,"* jaarlaag 2020 is inclusief COVID-19-kosten "]
[null,null,null,"^ jaarlaag 2021 is exclusief COVID-19-kosten"]
[]
[null,null,null,{"$f":"NOW()","v":"2023-03-21T09:46:00.640"},null,null,null,null,null,null,{"$f":"CONCATENATE(\"Kostenverzamelstaat \",\"2022\",\", \",LOWER(A57))","v":"Kostenverzamelstaat 2022, pagina 2"}]
[]
["Pagina 3",null,null,{"$f":"CONCATENATE(\"JAARSTAAT ZVW \", A1)","v":"JAARSTAAT ZVW "}]
[null,null,null,"KOSTENVERZAMELSTAAT (SPECIFIEKE INFORMATIE A)"]
[null,null,null,"",null,null,null,null,null,null,null,null,"UZOVI: 0000"]
[null,null,null,"SPECIFICATIES INFORMATIE RISICOVEREVENING"]
[null,null,null,"KOSTENVERZAMELSTAAT - vervolg"]
[null,null,null," KOSTENRUBRIEK",null,null,null,null,{"$f":"I11","v":"LASTEN 2022"},null,{"$f":"K11","v":"LASTEN 2021^"},null,{"$f":"M11","v":"LASTEN 2020* \nEN OUDER"}]
[]
[null,null,null,null,null,null,null,"Code",{"$f":"I$13","v":"LASTEN 2022 inclusief balanspost "},{"$f":"J$13","v":"Ontvangen en geaccepteerde declaraties m.b.t. 2022"},"LASTEN 2021 inclusief balanspost ","Ontvangen en geaccepteerde declaraties m.b.t. 2021","Ontvangen en geaccepteerde declaraties m.b.t. 2020 en ouder"]
[]
[null,null,null," 10 GENEESKUNDIGE GEESTELIJKE GEZONDHEIDSZORG  \n     "]
[null,null,null," Kosten specialistische GGZ met verblijf",null,null,null,"661   ",null,null,null,null,null,null,null,{"$f":"IF(OR((I116-J116)/IF(I116=0,1,I116)<-10%,(K116-L116)/IF(K116=0,1,K116)<-10%,(M116-N116)/IF(M116=0,1,M116)<-10%),\"De balans is < -10%, als dit plausibel is dan vragen wij u dit nader toe te lichten bij de opmerkingen, zo niet dan dient u uw raming aan te scherpen.\",\"\")","v":""}]
[null,null,null," Kosten LGGZ (langdurige GGZ, jaar 2 en 3)",null,null,null,"661.1",null,null,null,null,null,null,null,""]
[null,null,null," Kosten specialistische GGZ zonder verblijf",null,null,null,"662   ",null,null,null,null,null,null,null,""]
[null,null,null," Generalistische basis GGZ",null,null,null,"665   ",null,null,null,null,null,null,null,""]
[null,null,null," Kosten consulten GGZ",null,null,null,"    666   ",null,null,null,null,null,null,null,""]
[null,null,null," Kosten intramuraal verblijf GGZ",null,null,null,"    667   ",null,null,null,null,null,null,null,""]
[null,null,null," Kosten overige prestaties GGZ",null,null,null,"    668   ",null,null,null,null,null,null,null,""]
[null,null,null," Meerkosten COVID-19, indirect",null,null,null,"810.1 ",null,null,null,null,{"$f":"'Specifieke informatie B'!L80","v":0},null,null,""]
[null,null,null," Netto continuïteitsbijdrage COVID (basisverzekering)",null,null,null,"830   ",null,null,null,null,null,null,null,""]
[null,null,null," TOTAAL RUBRIEK 10",null,null,null,null,{"$f":"SUM(I116:I124)","v":0},{"$f":"SUM(J116:J124)","v":0},{"$f":"SUM(K116:K124)","v":0},{"$f":"SUM(L116:L124)","v":0},{"$f":"SUM(M116:M124)","v":0}]
[null,null,null," 11 GRZ, ELV EN GZSP"]
[null,null,null," Geriatrische Revalidatie ",null,null,null,"670   ",null,null,null,null,null,null,null,{"$f":"IF(OR((I127-J127)/IF(I127=0,1,I127)<-10%,(K127-L127)/IF(K127=0,1,K127)<-10%,(M127-N127)/IF(M127=0,1,M127)<-10%),\"De balans is < -10%, als dit plausibel is dan vragen wij u dit nader toe te lichten bij de opmerkingen, zo niet dan dient u uw raming aan te scherpen.\",\"\")","v":""}]
[null,null,null," Meerkosten COVID-19, indirect GRZ",null,null,null,"811.1.1",null,null,null,null,{"$f":"'Specifieke informatie B'!L85","v":0},null,null,{"$f":"IF(OR((I128-J128)/IF(I128=0,1,I128)<-10%,(K128-L128)/IF(K128=0,1,K128)<-10%,(M128-N128)/IF(M128=0,1,M128)<-10%),\"De balans is < -10%, als dit plausibel is dan vragen wij u dit nader toe te lichten bij de opmerkingen, zo niet dan dient u uw raming aan te scherpen.\",\"\")","v":""}]
[null,null,null," Netto continuïteitsbijdrage COVID (basisverzekering)",null,null,null,"831.1",null,null,null,null,null,null,null,""]
[null,null,null," Eerstelijnsverblijf ",null,null,null,"671   ",null,null,null,null,null,null,null,""]
[null,null,null," Meerkosten COVID-19, indirect ELV",null,null,null,"811.2.1",null,null,null,null,{"$f":"'Specifieke informatie B'!L86","v":0},null,null,""]
[null,null,null," Netto continuïteitsbijdrage COVID (basisverzekering)",null,null,null,"831.2",null,null,null,null,null,null,null,""]
[null,null,null," Generalistische Geneeskundige Zorg Specifieke Patiëntgroepen",null,null,null,"672   ",null,null,null,null,null,null,null,""]
[null,null,null," Meerkosten COVID-19, indirect GZSP",null,null,null,"811.3.1",null,null,null,null,{"$f":"'Specifieke informatie B'!L87","v":0},null,null,""]
[null,null,null," Netto continuïteitsbijdrage COVID (basisverzekering)",null,null,null,"831.3",null,null,null,null,null,null,null,""]
[null,null,null," TOTAAL RUBRIEK 11",null,null,null,null,{"$f":"SUM(I127:I135)","v":0},{"$f":"SUM(J127:J135)","v":0},{"$f":"SUM(K127:K135)","v":0},{"$f":"SUM(L127:L135)","v":0},{"$f":"SUM(M127:M135)","v":0}]
[null,null,null," 12  KRAAMZORG"]
[null,null,null," Kraamzorg",null,null,null,"680   ",null,null,null,null,null,null,null,{"$f":"IF(OR((I138-J138)/IF(I138=0,1,I138)<-10%,(K138-L138)/IF(K138=0,1,K138)<-10%,(M138-N138)/IF(M138=0,1,M138)<-10%),\"De balans is < -10%, als dit plausibel is dan vragen wij u dit nader toe te lichten bij de opmerkingen, zo niet dan dient u uw raming aan te scherpen.\",\"\")","v":""}]
[null,null,null," Meerkosten COVID-19, indirect",null,null,null,"812.1 ",null,null,null,null,{"$f":"'Specifieke informatie B'!L90","v":0}]
[null,null,null," Netto continuïteitsbijdrage COVID (basisverzekering)",null,null,null,"832   ",null,null,null,null,null,null,null,""]
[null,null,null," TOTAAL RUBRIEK 12",null,null,null,null,{"$f":"SUM(I138:I140)","v":0},{"$f":"SUM(J138:J140)","v":0},{"$f":"SUM(K138:K140)","v":0},{"$f":"SUM(L138:L140)","v":0},{"$f":"SUM(M138:M140)","v":0},null,null,{"$f":"IF(OR((I141-J141)/IF(I141=0,1,I141)<-10%,(K141-L141)/IF(K141=0,1,K141)<-10%,(M141-N141)/IF(M141=0,1,M141)<-10%),\"De balans is < -10%, als dit plausibel is dan vragen wij u dit nader toe te lichten bij de opmerkingen, zo niet dan dient u uw raming aan te scherpen.\",\"\")","v":""}]
[null,null,null," 13  DIVERSE OVERIGE KOSTEN"]
[null,null,null," Overige kosten",null,null,null,"700   ",null,null,null,null,null,null,null,{"$f":"IF(OR((I143-J143)/IF(I143=0,1,I143)<-10%,(K143-L143)/IF(K143=0,1,K143)<-10%,(M143-N143)/IF(M143=0,1,M143)<-10%),\"De balans is < -10%, als dit plausibel is dan vragen wij u dit nader toe te lichten bij de opmerkingen, zo niet dan dient u uw raming aan te scherpen.\",\"\")","v":""}]
[null,null,null," Overige geneeskundige zorg",null,null,null,"701   ",null,null,null,null,null,null,null,""]
[null,null,null," Kosten van zorg zintuiglijk gehandicapten",null,null,null,"702   ",null,null,null,null,null,null,null,""]
[null,null,null," Meerkosten COVID-19, indirect",null,null,null,"813.1 ",null,null,null,null,{"$f":"'Specifieke informatie B'!L93","v":0}]
[null,null,null," Netto continuïteitsbijdrage COVID (basisverzekering)",null,null,null,"833   ",null,null,null,null,null,null,null,""]
[null,null,null," TOTAAL RUBRIEK 13",null,null,null,null,{"$f":"SUM(I143:I147)","v":0},{"$f":"SUM(J143:J147)","v":0},{"$f":"SUM(K143:K147)","v":0},{"$f":"SUM(L143:L147)","v":0},{"$f":"SUM(M143:M147)","v":0}]
[null,null,null," 15  GRENSOVERSCHRIJDENDE ZORG"]
[null,null,null," Kosten via verzekeraar",null,null,null,"720   ",null,null,null,null,null,null,null,{"$f":"IF(OR((I150-J150)/IF(I150=0,1,I150)<-10%,(K150-L150)/IF(K150=0,1,K150)<-10%,(M150-N150)/IF(M150=0,1,M150)<-10%),\"De balans is < -10%, als dit plausibel is dan vragen wij u dit nader toe te lichten bij de opmerkingen, zo niet dan dient u uw raming aan te scherpen.\",\"\")","v":""}]
[null,null,null," Kosten via verbindingsorgaan",null,null,null,"721   ",null,null,null,null,null,null,null,""]
[null,null,null," TOTAAL RUBRIEK 15",null,null,null,null,{"$f":"SUM(I150:I151)","v":0},{"$f":"SUM(J150:J151)","v":0},0,0,0]
[null,null,null," 16  KWALITEITSGELDEN",null,null,null,"   "]
[null,null,null," Kwaliteitsgelden",null,null,null,"730",null,null,null,null,null,null,null,{"$f":"IF(OR((I154-J154)/IF(I154=0,1,I154)<-10%,(K154-L154)/IF(K154=0,1,K154)<-10%,(M154-N154)/IF(M154=0,1,M154)<-10%),\"De balans is < -10%, als dit plausibel is dan vragen wij u dit nader toe te lichten bij de opmerkingen, zo niet dan dient u uw raming aan te scherpen.\",\"\")","v":""}]
[null,null,null," TOTAAL RUBRIEK 16",null,null,null,null,{"$f":"SUM(I154)","v":0},{"$f":"SUM(J154)","v":0},0,0,0,null,null,{"$f":"IF(OR((I155-J155)/IF(I155=0,1,I155)<-10%,(K155-L155)/IF(K155=0,1,K155)<-10%,(M155-N155)/IF(M155=0,1,M155)<-10%),\"De balans is < -10%, als dit plausibel is dan vragen wij u dit nader toe te lichten bij de opmerkingen, zo niet dan dient u uw raming aan te scherpen.\",\"\")","v":""}]
[null,null,null," TOTAAL LASTEN  (bruto-schade, definitie ZIN)",null,null,null,null,{"$f":"SUM(I27,I32,I37,I45,I51,I78,I88,I93,I100,I125,I136,I141,I148,I152,I155)","v":0},{"$f":"SUM(J27,J32,J37,J45,J51,J78,J88,J93,J100,J125,J136,J141,J148,J152,J155)","v":0},{"$f":"SUM(K27,K32,K37,K45,K51,K78,K88,K93,K100,K125,K136,K141,K148,K152,K155)","v":0},{"$f":"SUM(L27,L32,L37,L45,L51,L78,L88,L93,L100,L125,L136,L141,L148,L152,L155)","v":0},{"$f":"SUM(M27,M32,M37,M45,M51,M78,M88,M93,M100,M125,M136,M141,M148,M152,M155)","v":0}]
[]
[null,null,null," BATEN ZVW",null,null,null,"Code",{"$f":"CONCATENATE(\"Totale baten \",jaar_id,\" inclusief balanspost \")","v":"Totale baten 2022 inclusief balanspost "},{"$f":"CONCATENATE(\"Waarvan ontvangen  m.b.t. \",jaar_id)","v":"Waarvan ontvangen  m.b.t. 2022"},{"$f":"CONCATENATE(\"Totale baten \",jaar_id-1,\" inclusief balanspost \")","v":"Totale baten 2021 inclusief balanspost "},{"$f":"CONCATENATE(\"Waarvan ontvangen  m.b.t. \",jaar_id-1,\"^\")","v":"Waarvan ontvangen  m.b.t. 2021^"},{"$f":"CONCATENATE(\"Totale baten ontvangen m.b.t. \",jaar_id-2, \"* en ouder\")","v":"Totale baten ontvangen m.b.t. 2020* en ouder"}]
[null,null,null,null,null,null,null,null,null,"waarvan ontvangen  t/m 3e Kwartaal 2019",null,"waarvan ontvangen  t/m 3e Kwartaal 2019"]
[null,null,null," OPBRENGSTEN VERHAAL",null,null,null,"890.1",null,null,null,null,null,null,null,{"$f":"IF(AND(OR(I160<0,J160<0,K160<0,L160<0,M160<0),OR((I160-J160)/IF(I160=0,1,I160)<-10%,(K160-L160)/IF(K160=0,1,K160)<-10%)), \"U rapporteert een bedrag <0. Kunt u dit vooraf toelichten bij de mededelingen? En De balans is < -10%, als dit plausibel is dan vragen wij u dit nader toe te lichten bij de opmerkingen, zo niet dan dient u uw raming aan te scherpen.\",IF(OR(I160<0,J160<0,K160<0,L160<0,M160<0),\"U rapporteert een bedrag <0. Kunt u dit vooraf toelichten bij de mededelingen?\",IF(OR((I160-J160)/IF(I160=0,1,I160)<-10%,(K160-L160)/IF(K160=0,1,K160)<-10%),\"De balans is < -10%, als dit plausibel is dan vragen wij u dit nader toe te lichten bij de opmerkingen, zo niet dan dient u uw raming aan te scherpen.\",\"\")))","v":""}]
[null,null,null," SCHADE T.L.V. HET VRIJWILLIG EIGEN RISICO",null,null,null,"910   ",null,null,null,null,null,null,null,{"$f":"IF(AND(OR(I161<0,J161<0,K161<0,L161<0,M161<0),OR((I161-J161)/IF(I161=0,1,I161)<-10%,(K161-L161)/IF(K161=0,1,K161)<-10%)), \"U rapporteert een bedrag <0. Kunt u dit vooraf toelichten bij de mededelingen? En De balans is < -10%, als dit plausibel is dan vragen wij u dit nader toe te lichten bij de opmerkingen, zo niet dan dient u uw raming aan te scherpen.\",IF(OR(I161<0,J161<0,K161<0,L161<0,M161<0),\"U rapporteert een bedrag <0. Kunt u dit vooraf toelichten bij de mededelingen?\",IF(OR((I161-J161)/IF(I161=0,1,I161)<-10%,(K161-L161)/IF(K161=0,1,K161)<-10%),\"De balans is < -10%, als dit plausibel is dan vragen wij u dit nader toe te lichten bij de opmerkingen, zo niet dan dient u uw raming aan te scherpen.\",\"\")))","v":""}]
[null,null,null," SCHADE T.L.V. HET VERPLICHT EIGEN RISICO",null,null,null,"915   ",null,null,null,null,null,null,null,""]
[null,null,null," NETTO PREMIEOPBRENGSTEN",null,null,null,"940   ",null,null,null,null,null,null,null,""]
[null,null,null,"* jaarlaag 2020 is inclusief COVID-19-kosten "]
[null,null,null,"^ jaarlaag 2021 is exclusief COVID-19-kosten"]
[]
[null,null,null,{"$f":"NOW()","v":"2023-03-21T09:46:00.640"},null,null,null,null,null,null,null,null,{"$f":"CONCATENATE(\"Kostenverzamelstaat \",\"2022\",\", \",LOWER(A106))","v":"Kostenverzamelstaat 2022, pagina 3"}]

{"sheet":"Specifieke informatie A","index":5,"n_rows":66,"n_cols":12,"rows_kept":66,"cut":false,"hidden":false,"merged":[[23,10,24,10],[23,11,24,11],[25,3,25,9],[54,11,55,11],[56,3,58,4],[56,5,56,9],[57,5,57,9],[58,5,58,9],[54,3,55,9],[54,10,55,10],[19,10,20,10],[19,3,20,9],[19,11,20,11],[21,3,21,9],[48,3,49,9],[48,10,49,10],[40,3,40,4],[27,3,28,9],[27,10,28,10],[27,11,28,11],[29,3,29,9],[30,3,30,9],[32,10,33,10],[34,3,34,9],[32,11,33,11],[48,11,49,11],[15,3,15,9],[11,11,12,11],[13,3,13,9],[11,10,12,10],[11,3,12,9],[14,3,14,9],[65,3,65,4],[59,3,59,9],[62,3,62,9],[63,3,63,9],[16,3,16,9],[32,3,33,9],[50,3,50,9],[51,3,51,9],[52,3,52,9],[23,3,24,9]]}
[null,null,"INVULSPECIFICATIES SPECIFIEKE INFORMATIE A"]
[]
[]
[]
[]
["Pagina 1",null,null,{"$f":"CONCATENATE(\"JAARSTAAT ZVW \", jaar_id)","v":"JAARSTAAT ZVW 2022"}]
[null,null,null,"SPECIFIEKE INFORMATIE A 2022"]
[null,null,null,{"$f":"IF(naw_uzovi_zorgverzekeraar<>\"0000\",CONCATENATE(UPPER(naw_naam_zorgverzekeraar),\", \",UPPER(naw_plaats_zorgverzekeraar)),\"\")","v":""},null,null,null,null,null,null,null,{"$f":"CONCATENATE(\"UZOVI: \",naw_uzovi_zorgverzekeraar)","v":"UZOVI: 0000"}]
[]
[null,null,null,"SPECIFICATIES INFORMATIE RISICOVEREVENING"]
[null,null,null,"KOSTEN NAAR DEELBIJDRAGE"]
[null,null,null," KOSTEN NAAR DEELBIJDRAGE",null,null,null,null,null,null,"Lasten 2022 inclusief balanspost","Ontvangen en geaccepteerde declaraties m.b.t. 2020 en ouder"]
[]
[null,null,null," Variabele zorgkosten"]
[null,null,null," Vaste zorgkosten "]
[null,null,null," Kosten geneeskundige geestelijke gezondheidszorg"]
[null,null,null," TOTAAL kosten ",null,null,null,null,null,null,{"$f":"SUM(K14:K16)","v":0},{"$f":"SUM(L14:L16)","v":0}]
[]
[null,null,null,"RUBRIEK 06 MEDISCH SPECIALISTISCHE ZORG"]
[null,null,null," CODE 610  - OVERIGE KOSTEN ZIEKENHUISZORG EN CURATIEVE ZORG",null,null,null,null,null,null,{"$f":"K$12","v":"Lasten 2022 inclusief balanspost"},{"$f":"L$12","v":"Ontvangen en geaccepteerde declaraties m.b.t. 2020 en ouder"}]
[]
[null,null,null," Kosten SKION en NTS (deel code 610) "]
[]
[null,null,null," CODE 611  - OVERIGE ZORGPRODUCTEN",null,null,null,null,null,null,{"$f":"K$12","v":"Lasten 2022 inclusief balanspost"},{"$f":"L$12","v":"Ontvangen en geaccepteerde declaraties m.b.t. 2020 en ouder"}]
[]
[null,null,null," Kosten van ozp-stollingsfactoren  (artikel 1, regeling risicoverevening)"]
[]
[null,null,null," CODE 612.1  - KOSTEN ADD-ONS DURE GENEESMIDDELEN",null,null,null,null,null,null,{"$f":"K$12","v":"Lasten 2022 inclusief balanspost"},{"$f":"L$12","v":"Ontvangen en geaccepteerde declaraties m.b.t. 2020 en ouder"}]
[]
[null,null,null," Add-ons dure intramurale geneesmiddelen (artikel 1, regeling risicoverevening)"]
[]
[]
[null,null,null," CODE 666 - KOSTEN VAN BEPAALDE DURE INTRAMURALE GENEESMIDDELEN",null,null,null,null,null,null,{"$f":"K$12","v":"Lasten 2022 inclusief balanspost"},{"$f":"L$12","v":"Ontvangen en geaccepteerde declaraties m.b.t. 2020 en ouder"}]
[]
[null,null,null," Kosten van dure intramurale geneesmiddelen (artikel 1, regeling risicoverevening)"]
[]
[]
[]
[]
[]
[null,null,null,{"$f":"NOW()","v":"2023-03-21T09:46:00.640"},null,null,null,null,null,null,null,{"$f":"CONCATENATE(\"Specifieke informatie A 2022, \",LOWER(A6))","v":"Specifieke informatie A 2022, pagina 1"}]
[]
["Pagina 2",null,null,{"$f":"CONCATENATE(\"JAARSTAAT ZVW \", jaar_id)","v":"JAARSTAAT ZVW 2022"}]
[null,null,null,{"$f":"D7","v":"SPECIFIEKE INFORMATIE A 2022"}]
[null,null,null,{"$f":"IF(naw_uzovi_zorgverzekeraar<>\"0000\",CONCATENATE(UPPER(naw_naam_zorgverzekeraar),\", \",UPPER(naw_plaats_zorgverzekeraar)),\"\")","v":""},null,null,null,null,null,null,null,{"$f":"CONCATENATE(\"UZOVI: \",naw_uzovi_zorgverzekeraar)","v":"UZOVI: 0000"}]
[]
[null,null,null,"SPECIFICATIES INFORMATIE RISICOVEREVENING"]
[null,null,null,"RUBRIEK 15 GRENSOVERSCHRIJDENDE ZORG"]
[null,null,null," CODE 720 - KOSTEN GRENSOVERSCHRIJDENDE ZORG VIA VERZEKERAAR",null,null,null,null,null,null,{"$f":"K$12","v":"Lasten 2022 inclusief balanspost"},{"$f":"L$12","v":"Ontvangen en geaccepteerde declaraties m.b.t. 2020 en ouder"}]
[]
[null,null,null," Variabele zorgkosten"]
[null,null,null," Kosten van geneeskundige geestelijke gezondheidszorg"]
[null,null,null," TOTAAL CODE 720 kosten gemaakt in het buitenland, via verzekeraar",null,null,null,null,null,null,{"$f":"SUM(K51:K52)","v":0},{"$f":"SUM(L51:L52)","v":0}]
[]
[null,null,null," CODE 721 - KOSTEN GRENSOVERSCHRIJDENDE ZORG VIA VERBINDINGSORGAAN",null,null,null,null,null,null,{"$f":"K$12","v":"Lasten 2022 inclusief balanspost"},{"$f":"L$12","v":"Ontvangen en geaccepteerde declaraties m.b.t. 2020 en ouder"}]
[]
[null,null,null," Toepassing verordening  \n of verdrag inzake sociale  \n zekerheid, via CAK ",null," Behandeling in het buitenland met toepassing van artikel 20. \n EG-verordening 883/2004 of overeenkomstige verdragsbepaling"]
[null,null,null,null,null," Kosten gemaakt bij tijdelijk verblijf in het buitenland van Zvw \n verzekerden die wonen in Nederland"]
[null,null,null,null,null," Kosten gemaakt in het buitenland van Zvw verzekerden die wonen\n in het buitenland"]
[null,null,null," TOTAAL CODE 721 kosten gemaakt in het buitenland, via verbindingsorgaan",null,null,null,null,null,null,{"$f":"SUM(K57:K59)","v":0},{"$f":"SUM(L57:L59)","v":0}]
[]
[null,null,null,"BEREKENDE NOMINALE REKENPREMIES GEDETINEERDEN"]
[null,null,null,null,null,null,null,null,null,null,"BEDRAG"]
[null,null,null," Totaal berekende nominale rekenpremies 2022 tijdens de detentieperiode van verzekerden van 18 jaar en ouder                                                                                                                                                                                                                                                                                                                                                                                                                                                                                                                                                                                         "]
[]
[null,null,null,{"$f":"NOW()","v":"2023-03-21T09:46:00.640"},null,null,null,null,null,null,null,{"$f":"CONCATENATE(\"Specifieke informatie A 2022, \",LOWER(A43))","v":"Specifieke informatie A 2022, pagina 2"}]

{"sheet":"Specifieke informatie B","index":6,"n_rows":132,"n_cols":17,"rows_kept":132,"cut":false,"hidden":false,"merged":[[131,3,131,4],[98,3,98,7],[99,3,99,4],[106,8,106,13],[107,3,107,7],[107,8,108,8],[107,9,108,9],[107,10,108,10],[107,11,108,11],[107,12,108,12],[107,13,108,13],[108,3,108,6],[109,3,109,6],[95,3,95,7],[82,3,82,6],[83,3,83,6],[84,3,84,6],[85,3,85,6],[87,3,87,7],[88,3,88,7],[89,3,89,6],[90,3,90,7],[91,3,91,7],[92,3,92,6],[93,3,93,7],[81,3,81,7],[65,3,65,6],[66,3,66,6],[67,3,67,6],[68,3,68,4],[78,3,78,7],[79,3,79,6],[80,3,80,7],[75,8,75,13],[76,7,77,7],[76,8,77,8],[76,9,77,9],[76,10,77,10],[76,11,77,11],[76,12,77,12],[76,13,77,13],[64,3,64,7],[51,3,51,6],[54,3,54,6],[55,3,55,6],[56,3,56,6],[57,3,57,6],[58,3,58,6],[59,3,59,6],[60,3,60,7],[61,3,61,7],[62,3,62,6],[63,3,63,7],[44,13,45,13],[46,3,46,7],[47,3,47,6],[48,3,48,6],[49,3,49,6],[44,11,45,11],[44,12,45,12],[50,3,50,6],[44,7,45,7],[44,8,45,8],[44,9,45,9],[44,10,45,10],[43,8,43,13],[25,3,25,6],[26,3,26,6],[27,3,27,7],[28,3,28,7],[29,3,29,6],[30,3,30,6],[31,3,31,7],[32,3,32,7],[33,3,33,6],[34,3,34,7],[36,3,36,4],[24,3,24,7],[13,3,13,7],[14,3,14,6],[15,3,15,6],[16,3,16,6],[17,3,17,6],[18,3,18,6],[19,3,19,6],[20,3,20,7],[21,3,21,7],[22,3,22,6],[23,3,23,6],[10,8,10,13],[11,7,12,7],[11,8,12,8],[11,9,12,9],[11,10,12,10],[11,11,12,11],[11,12,12,12],[11,13,12,13]]}
[null,null,"INVULSPECIFICATIES SPECIFIEKE INFORMATIE B"]
[]
[]
[]
[]
["Pagina 1",null,null,{"$f":"CONCATENATE(\"JAARSTAAT ZVW \", jaar_id)","v":"JAARSTAAT ZVW 2022"}]
[null,null,null,"KOSTENVERZAMELSTAAT CATASTROFESCHADELAST (SPECIFIEKE INFORMATIE B)"]
[null,null,null,{"$f":"IF(naw_uzovi_zorgverzekeraar<>\"0000\",CONCATENATE(UPPER(naw_naam_zorgverzekeraar),\", \",UPPER(naw_plaats_zorgverzekeraar)),\"\")","v":""},null,null,null,null,null,null,null,null,null,{"$f":"CONCATENATE(\"UZOVI: \",naw_uzovi_zorgverzekeraar)","v":"UZOVI: 0000"}]
[null,null,null,"SPECIFICATIES INFORMATIE RISICOVEREVENING"]
[null,null,null,"KOSTENVERZAMELSTAAT CATASTROFESCHADELAST"]
[null,null,null,null,null,null,null,null,"COVID-19-kosten voor verzekerde zorg "]
[null,null,null,null,null,null,null,"\ncode","LASTEN 2021 inclusief balanspost ","Ontvangen en geaccepteerde declaraties m.b.t. 2021","LASTEN 2020 inclusief balanspost ","Ontvangen en geaccepteerde declaraties m.b.t. 2020","TOTAAL LASTEN 2020 en 2021 inclusief balanspost ","TOTAAL ontvangen en geaccepteerde declaraties 2020 en 2021"]
[null,null,null," KOSTENRUBRIEK"]
[null,null,null," 01  HUISARTSENZORG en MDZ"]
[null,null,null," Avond-, nacht- en weekenddiensten",null,null,null,"504   ",null,null,null,null,{"$f":"I15+K15","v":0},0,null,null,""]
[null,null,null," Consulttarieven",null,null,null,"506   ",null,null,null,null,0,0,null,null,""]
[null,null,null," Overige tarieven",null,null,null,"507   ",null,null,null,null,0,0,null,null,""]
[null,null,null," Resultaatbeloning en zorgvernieuwing huisartsen",null,null,null,"515   ",null,null,null,null,0,0,null,null,""]
[null,null,null," Meerkosten COVID-19, indirect",null,null,null,"801.1   ",null,null,null,null,0,0,null,null,""]
[null,null,null," Meerkosten COVID-19, toeslagen",null,null,null,"801.2   ",null,null,null,null,0,0,null,null,""]
[null,null,null," TOTAAL RUBRIEK 01",null,null,null,null,{"$f":"SUM(I15:I20)","v":0},{"$f":"SUM(J15:J20)","v":0},0,0,0,0]
[null,null,null," 02 FARMACEUTISCHE ZORG",null,null,null,null,null,null,null,null,null,null,null,null,""]
[null,null,null," Meerkosten COVID-19, indirect",null,null,null,"802.1   ",null,null,null,null,{"$f":"K23","v":0},{"$f":"L23","v":0},null,null,""]
[null,null,null," TOTAAL RUBRIEK 02",null,null,null,null,{"$f":"SUM(I23:I23)","v":0},{"$f":"SUM(J23:J23)","v":0},0,0,0,0]
[null,null,null," 03 VERPLEGING EN VERZORGING ",null,null,null,null,null,null,null,null,null,null,null,null,""]
[null,null,null," Kosten van verpleging en verzorging ",null,null,null,"530   ",null,null,null,null,{"$f":"I26+K26","v":0},{"$f":"J26+L26","v":0},null,null,""]
[null,null,null," Meerkosten COVID-19, indirect",null,null,null,"803.1   ",null,null,null,null,{"$f":"I27+K27","v":0},{"$f":"J27+L27","v":0},null,null,""]
[null,null,null," TOTAAL RUBRIEK 03",null,null,null,null,{"$f":"SUM(I26:I27)","v":0},{"$f":"SUM(J26:J27)","v":0},0,0,0,0]
[null,null,null," 04  MONDZORG",null,null,null,null,null,null,null,null,null,null,null,null,""]
[null,null,null," Meerkosten COVID-19, indirect",null,null,null,"804.1   ",null,null,null,null,{"$f":"K30","v":0},{"$f":"L30","v":0},null,null,""]
[null,null,null," Meerkosten COVID-19, toeslagen",null,null,null,"804.2   ",null,null,null,null,{"$f":"K31","v":0},{"$f":"L31","v":0},null,null,""]
[null,null,null," TOTAAL RUBRIEK 04",null,null,null,null,{"$f":"SUM(I30:I31)","v":0},{"$f":"SUM(J30:J31)","v":0},0,0,0,0]
[null,null,null," 05  VERLOSKUNDIGE ZORG",null,null,null,null,null,null,null,null,null,null,null,null,""]
[null,null,null," Meerkosten COVID-19, indirect",null,null,null,"805.1   ",null,null,null,null,{"$f":"K34","v":0},{"$f":"L34","v":0},null,null,""]
[null,null,null," TOTAAL RUBRIEK 05",null,null,null,null,{"$f":"SUM(I34:I34)","v":0},{"$f":"SUM(J34:J34)","v":0},0,0,0,0]
[]
[null,null,null,{"$f":"NOW()","v":"2023-03-21T09:46:00.640"},null,null,null,null,null,null,null,"Specifieke informatie B, pagina 1"]
[]
["Pagina 2",null,null,"JAARSTAAT ZVW 2022 "]
[null,null,null,"KOSTENVERZAMELSTAAT CATASTROFESCHADELAST (SPECIFIEKE INFORMATIE B)"]
[null,null,null,{"$f":"IF(naw_uzovi_zorgverzekeraar<>\"0000\",CONCATENATE(UPPER(naw_naam_zorgverzekeraar),\", \",UPPER(naw_plaats_zorgverzekeraar)),\"\")","v":""},null,null,null,null,null,null,null,null,null,{"$f":"CONCATENATE(\"UZOVI: \",naw_uzovi_zorgverzekeraar)","v":"UZOVI: 0000"}]
[null,null,null,"SPECIFICATIES INFORMATIE RISICOVEREVENING"]
[null,null,null,"KOSTENVERZAMELSTAAT CATASTROFESCHADELAST - vervolg"]
[null,null,null,null,null,null,null,null,"COVID-19-kosten voor verzekerde zorg "]
[null,null,null,null,null,null,null,"\ncode","LASTEN 2021 inclusief balanspost ","Ontvangen en geaccepteerde declaraties m.b.t. 2021","LASTEN 2020 inclusief balanspost ","Ontvangen en geaccepteerde declaraties m.b.t. 2020","TOTAAL LASTEN 2020 en 2021 inclusief balanspost ","TOTAAL ontvangen en geaccepteerde declaraties 2020 en 2021"]
[null,null,null," KOSTENRUBRIEK"]
[null,null,null," 06  MEDISCH SPECIALISTISCHE ZORG"]
[null,null,null," Kosten add-ons - IC",null,null,null,"612.2",null,null,null,null,{"$f":"I48+K48","v":0},0,null,null,""]
[null,null,null," Integrale kosten van DBC-zorgproduct \n gereguleerde segment  ",null,null,null,"613.1",null,null,null,null,0,0,null,null,""]
[null,null,null," Integrale kosten DBC-zorgproduct vrije segment",null,null,null,"615.1",null,null,null,null,0,0,null,null,""]
[null,null,null," Meerkosten COVID-19, indirect",null,null,null,"806.1   ",null,null,null,null,{"$f":"I51+K51","v":0},{"$f":"J51+L51","v":0},null,null,""]
[null,null,null," Meerkosten COVID-19, toeslagen",null,null,null,"806.2   ",null,null,null,null,{"$f":"I52","v":0},{"$f":"J52","v":0},null,null,""]
[null,null,null," TOTAAL RUBRIEK 06",null,null,null,null,{"$f":"SUM(I48:I52)","v":0},{"$f":"SUM(J48:J52)","v":0},0,0,0,0]
[null,null,null," 07  PARAMEDISCHE ZORG",null,null,null,null,null,null,null,null,null,null,null,null,""]
[null,null,null," Kosten fysiotherapie",null,null,null,"620   ",null,null,null,null,{"$f":"I55+K55","v":0},0,null,null,""]
[null,null,null," Kosten oefentherapie Mensendieck/Cesar",null,null,null,"621   ",null,null,null,null,0,0,null,null,""]
[null,null,null," Kosten logopedie",null,null,null,"623   ",null,null,null,null,0,0,null,null,""]
[null,null,null," Kosten ergotherapie",null,null,null,"624   ",null,null,null,null,0,0,null,null,""]
[null,null,null," Kosten dieetadvisering",null,null,null,"625   ",null,null,null,null,0,0,null,null,""]
[null,null,null," Meerkosten COVID-19, indirect",null,null,null,"807.1   ",null,null,null,null,{"$f":"K60","v":0},{"$f":"L60","v":0},null,null,""]
[null,null,null," TOTAAL RUBRIEK 07",null,null,null,null,{"$f":"SUM(I55:I60)","v":0},{"$f":"SUM(J55:J60)","v":0},0,0,0,0]
[null,null,null," 08  HULPMIDDELENZORG",null,null,null,null,null,null,null,null,null,null,null,null,""]
[null,null,null," Meerkosten COVID-19, indirect",null,null,null,"808.1   ",null,null,null,null,{"$f":"I63+K63","v":0},{"$f":"J63+L63","v":0},null,null,""]
[null,null,null," TOTAAL RUBRIEK 08",null,null,null,null,{"$f":"SUM(I63:I63)","v":0},{"$f":"SUM(J63:J63)","v":0},0,0,0,0]
[null,null,null," 09  ZIEKENVERVOER",null,null,null,null,null,null,null,null,null,null,null,null,""]
[null,null,null," Kosten vervoer per ambulance/helikopter",null,null,null,"650   ",null,null,null,null,{"$f":"I66+K66","v":0},{"$f":"J66+L66","v":0},null,null,""]
[null,null,null," Meerkosten COVID-19, indirect",null,null,null,"809.1   ",null,null,null,null,{"$f":"I67+K67","v":0},{"$f":"J67+L67","v":0},null,null,""]
[null,null,null," TOTAAL RUBRIEK 09",null,null,null,null,{"$f":"SUM(I66:I67)","v":0},{"$f":"SUM(J66:J67)","v":0},0,0,0,0]
[null,null,null,{"$f":"NOW()","v":"2023-03-21T09:46:00.640"},null,null,null,null,null,null,null,"Specifieke informatie B, pagina 2"]
[]
["Pagina 3",null,null,"JAARSTAAT ZVW 2022 "]
[null,null,null,"KOSTENVERZAMELSTAAT CATASTROFESCHADELAST (SPECIFIEKE INFORMATIE B)"]
[null,null,null,"",null,null,null,null,null,null,null,"UZOVI: 0000"]
[null,null,null,"SPECIFICATIES INFORMATIE RISICOVEREVENING"]
[null,null,null,"KOSTENVERZAMELSTAAT CATASTROFESCHADELAST - vervolg"]
[null,null,null,null,null,null,null,null,"COVID-19-kosten voor verzekerde zorg "]
[null,null,null,null,null,null,null,"\ncode","LASTEN 2021 inclusief balanspost ","Ontvangen en geaccepteerde declaraties m.b.t. 2021","LASTEN 2020 inclusief balanspost ","Ontvangen en geaccepteerde declaraties m.b.t. 2020","TOTAAL LASTEN 2020 en 2021 inclusief balanspost ","TOTAAL ontvangen en geaccepteerde declaraties 2020 en 2021"]
[null,null,null," KOSTENRUBRIEK"]
[null,null,null," 10 GENEESKUNDIGE GEESTELIJKE GEZONDHEIDSZORG"]
[null,null,null," Meerkosten COVID-19, indirect",null,null,null,"810.1   ",null,null,null,null,{"$f":"I80+K80","v":0},{"$f":"J80+L80","v":0},null,null,""]
[null,null,null," TOTAAL RUBRIEK 10",null,null,null,null,{"$f":"SUM(I80:I80)","v":0},{"$f":"SUM(J80:J80)","v":0},0,0,0,0]
[null,null,null," 11  GRZ, ELV EN GZSP",null,null,null,null,null,null,null,null,null,null,null,null,""]
[null,null,null," Geriatrische Revalidatiezorg (GRZ)",null,null,null,"670   ",null,null,null,null,{"$f":"I83+K83","v":0},0,null,null,""]
[null,null,null," Eerstelijnsverblijf (ELV)",null,null,null,"671   ",null,null,null,null,0,0,null,null,""]
[null,null,null," Meerkosten COVID-19, indirect GRZ",null,null,null,"811.1.1",null,null,null,null,0,0,null,null,""]
[null,null,null," Meerkosten COVID-19, indirect ELV",null,null,null,"811.2.1",null,null,null,null,{"$f":"I86+K86","v":0},{"$f":"J86+L86","v":0},null,null,""]
[null,null,null," Meerkosten COVID-19, indirect GZSP",null,null,null,"811.3.1",null,null,null,null,{"$f":"I87+K87","v":0},{"$f":"J87+L87","v":0},null,null,""]
[null,null,null," TOTAAL RUBRIEK 11",null,null,null,null,{"$f":"SUM(I83:I87)","v":0},{"$f":"SUM(J83:J87)","v":0},0,0,0,0]
[null,null,null," 12  KRAAMZORG",null,null,null,null,null,null,null,null,null,null,null,null,""]
[null,null,null," Meerkosten COVID-19, indirect",null,null,null,"812.1   ",null,null,null,null,{"$f":"K90","v":0},{"$f":"L90","v":0},null,null,""]
[null,null,null," TOTAAL RUBRIEK 12",null,null,null,null,{"$f":"SUM(I90:I90)","v":0},{"$f":"SUM(J90:J90)","v":0},0,0,0,0]
[null,null,null," 13  DIVERSE OVERIGE KOSTEN",null,null,null,null,null,null,null,null,null,null,null,null,""]
[null,null,null," Meerkosten COVID-19, indirect",null,null,null,"813.1   ",null,null,null,null,{"$f":"K93","v":0},{"$f":"L93","v":0},null,null,""]
[null,null,null," TOTAAL RUBRIEK 13",null,null,null,null,{"$f":"SUM(I93:I93)","v":0},{"$f":"SUM(J93:J93)","v":0},0,0,0,0]
[]
[null,null,null,"TOTAAL DIRECTE KOSTEN VOOR COVID-ZORG VOOR COVID-PATIËNTEN",null,null,null,null,{"$f":"SUM(I15:I18,I26,I48:I50,I55:I59,I66:I66,I83,I84)","v":0},{"$f":"SUM(J15:J18,J26,J48:J50,J55:J59,J66:J66,J83,J84)","v":0},0,0,0,0]
[null,null,null,"TOTAAL MEERKOSTEN COVID-19, INDIRECT",null,null,null,null,{"$f":"SUM(I19,I23,I27,I30,I34,I51,I60,I63,I67,I80,I85,I86,I87,I90,I93)","v":0},{"$f":"SUM(J19,J23,J27,J30,J34,J51,J60,J63,J67,J80,J85,J86,J87,J90,J93)","v":0},0,0,0,0]
[null,null,null,"TOTAAL MEERKOSTEN COVID-19, TOESLAGEN",null,null,null,null,{"$f":"SUM(I20,I31,I52,)","v":0},{"$f":"SUM(J20,J31,J52,)","v":0},0,0,0,0]
[null,null,null," TOTAAL LASTEN   (bruto-schade, definitie ZIN)",null,null,null,null,{"$f":"SUM(I21,I24,I28,I32,I35,I53,I61,I64,I68,I81,I88,I91,I94,)","v":0},{"$f":"SUM(J21,J24,J28,J32,J35,J53,J61,J64,J68,J81,J88,J91,J94,)","v":0},0,0,{"$f":"SUM(M21,M24,M28,M32,M35,M53,M61,M64,M68,M81,M88,M91,M94,)","v":0},0]
[null,null,null,{"$f":"NOW()","v":"2023-03-21T09:46:00.640"},null,null,null,null,null,null,null,"Specifieke informatie B, pagina 3"]
[]
["Pagina 4",null,null,"JAARSTAAT ZVW 2022 "]
[null,null,null,"KOSTENVERZAMELSTAAT CATASTROFESCHADELAST (SPECIFIEKE INFORMATIE B)"]
[null,null,null,{"$f":"IF(naw_uzovi_zorgverzekeraar<>\"0000\",CONCATENATE(UPPER(naw_naam_zorgverzekeraar),\", \",UPPER(naw_plaats_zorgverzekeraar)),\"\")","v":""},null,null,null,null,null,null,null,null,null,{"$f":"CONCATENATE(\"UZOVI: \",naw_uzovi_zorgverzekeraar)","v":"UZOVI: 0000"}]
[null,null,null,"SPECIFICATIES INFORMATIE RISICOVEREVENING"]
[null,null,null,"KOSTENVERZAMELSTAAT CATASTROFESCHADELAST - vervolg"]
[null,null,null,null,null,null,null,null,"COVID-baten voor verzekerde zorg "]
[null,null,null,null,null,null,null,null,"Totale baten 2021 inclusief balanspost ","Baten ontvangen m.b.t. 2021","Totale baten 2020 inclusief balanspost ","Baten ontvangen m.b.t. 2020","Totale baten 2020 en 2021 inclusief balanspost ","TOTAAL ontvangen baten 2020 en 2021"]
[null,null,null," BATEN ZVW",null,null,null,"code"]
[null,null,null," SCHADE T.L.V. HET VERPLICHT EIGEN RISICO",null,null,null,"915   ",null,null,null,null,{"$f":"I110+K110","v":0},{"$f":"J110+L110","v":0},null,null,""]
[]
[]
[]
[]
[]
[]
[]
[]
[]
[]
[]
[]
[]
[]
[]
[]
[]
[]
[]
[]
[]
[null,null,null,{"$f":"NOW()","v":"2023-03-21T09:46:00.640"},null,null,null,null,null,null,null,"Specifieke informatie B, pagina 4"]

{"sheet":"Specifieke informatie C","index":7,"n_rows":126,"n_cols":15,"rows_kept":126,"cut":false,"hidden":false,"merged":[[125,3,125,4],[116,11,117,11],[118,3,119,4],[118,5,118,9],[119,5,119,9],[120,3,120,9],[121,3,121,9],[28,3,30,6],[28,7,28,8],[28,9,28,10],[29,7,30,7],[29,8,30,8],[29,9,30,9],[29,10,30,10],[29,11,30,11],[31,3,31,6],[32,3,32,6],[33,3,33,6],[34,3,34,6],[35,3,35,6],[37,3,39,6],[37,7,37,8],[37,9,37,10],[38,7,39,7],[38,8,39,8],[102,11,103,11],[104,3,104,9],[105,3,105,9],[106,3,106,9],[109,3,110,9],[109,10,110,10],[109,11,110,11],[111,3,112,4],[95,3,95,9],[96,3,96,9],[97,3,97,9],[98,3,98,9],[99,3,99,9],[100,3,100,9],[102,3,103,9],[102,10,103,10],[53,9,53,10],[53,3,55,4],[53,7,53,8],[113,3,113,9],[62,5,62,6],[61,3,61,6],[62,3,62,4],[91,3,92,9],[84,3,84,4],[91,10,92,10],[21,7,21,11],[56,3,56,4],[54,10,55,10],[24,3,24,6],[22,3,22,6],[38,9,39,9],[38,10,39,10],[38,11,39,11],[40,3,40,6],[41,3,41,6],[42,3,42,6],[43,3,43,6],[44,3,44,6],[53,5,55,6],[54,8,55,8],[93,3,93,9],[94,3,94,9],[114,3,114,9],[116,3,117,9],[116,10,117,10],[45,3,45,6],[11,11,12,11],[21,5,21,6],[26,3,26,6],[23,3,23,6],[11,10,12,10],[11,7,12,7],[19,8,20,8],[19,11,20,11],[18,9,18,10],[18,5,20,6],[13,3,13,6],[18,3,20,4],[19,9,20,9],[14,3,14,6],[15,3,15,6],[19,7,20,7],[54,9,55,9],[112,5,112,9],[91,11,92,11],[54,7,55,7],[10,7,10,8],[10,3,12,6],[11,8,12,8],[11,9,12,9],[10,9,10,10],[111,5,111,9],[25,3,25,6],[21,3,21,4],[18,7,18,8],[19,10,20,10],[46,3,46,4],[56,5,56,6],[57,3,57,6],[58,3,58,6],[66,3,66,6],[67,3,67,6],[56,7,56,11],[65,3,65,6],[59,3,59,6],[60,3,60,6],[64,3,64,6],[62,7,62,11],[54,11,55,11],[63,3,63,6]]}
[null,null,"INVULSPECIFICATIES SPECIFIEKE INFORMATIE C"]
[]
[]
[]
[]
["Pagina 1",null,null,{"$f":"CONCATENATE(\"JAARSTAAT ZVW \", jaar_id)","v":"JAARSTAAT ZVW 2022"}]
[null,null,null,"SPECIFIEKE INFORMATIE C (BELEIDSINFORMATIE)"]
[null,null,null,"",null,null,null,null,null,null,null,{"$f":"CONCATENATE(\"UZOVI: \",naw_uzovi_zorgverzekeraar)","v":"UZOVI: 0000"}]
[null,null,null,"SPECIFICATIES VAN KOSTEN EN PRODUCTIE"]
[]
[null,null,null," CODE 610 - OVERIGE KOSTEN \n ZIEKENHUISZORG EN CURATIEVE ZORG",null,null,null,{"$f":"CONCATENATE(\"LASTEN \",jaar_id,)","v":"LASTEN 2022"},null,{"$f":"CONCATENATE(\"LASTEN \",jaar_id-1)","v":"LASTEN 2021"},null,{"$f":"CONCATENATE(\"LASTEN \",jaar_id-2,\" \",\"en ouder\")","v":"LASTEN 2020 en ouder"},null,null,{"$f":"IF(OR((H14-I14)/IF(H14=0,1,H14)<-10%,(J14-K14)/IF(J14=0,1,J14)<-10%,(L14-M14)/IF(L14=0,1,L14)<-10%),\"De balans is < -10%, als dit plausibel is dan vragen wij u dit nader toe te lichten bij de opmerkingen, zo niet dan dient u uw raming aan te scherpen.\",\"\")","v":""}]
[null,null,null,null,null,null,null,{"$f":"CONCATENATE(\"LASTEN \",jaar_id,\" inclusief balanspost \")","v":"LASTEN 2022 inclusief balanspost "},{"$f":"CONCATENATE(\"Ontvangen en geaccepteerde declaraties m.b.t. \",jaar_id)","v":"Ontvangen en geaccepteerde declaraties m.b.t. 2022"},{"$f":"CONCATENATE(\"LASTEN \",jaar_id-1,\" inclusief balanspost \")","v":"LASTEN 2021 inclusief balanspost "},{"$f":"CONCATENATE(\"Ontvangen en geaccepteerde declaraties m.b.t. \",jaar_id-1)","v":"Ontvangen en geaccepteerde declaraties m.b.t. 2021"},{"$f":"CONCATENATE(\"Ontvangen en geaccepteerde declaraties m.b.t. \",jaar_id-2, \" en ouder\")","v":"Ontvangen en geaccepteerde declaraties m.b.t. 2020 en ouder"},null,null,{"$f":"IF(OR((H15-I15)/IF(H15=0,1,H15)<-10%,(J15-K15)/IF(J15=0,1,J15)<-10%,(L15-M15)/IF(L15=0,1,L15)<-10%),\"De balans is < -10%, als dit plausibel is dan vragen wij u dit nader toe te lichten bij de opmerkingen, zo niet dan dient u uw raming aan te scherpen.\",\"\")","v":""}]
[null,null,null,null,null,null,null,null,"Ontvangen en geaccepteerde declaraties mbt jaar T-1",null,"Ontvangen en geaccepteerde declaraties mbt jaar T-1","Ontvangen en geaccepteerde declaraties mbt jaar T-1",null,null,""]
[null,null,null," Kosten van eerstelijnsdiagnostiek aangevraagd \n door eerstelijns zorgaanbieders, geleverd door \n huisartsenlaboratoria"]
[null,null,null," Trombosediensten"]
[null,null,null," SKION en NTS"]
[null,null,null," TOTAAL code 610",null,null,null,{"$f":"SUM(H14:H16)","v":0},{"$f":"SUM(I14:I16)","v":0},0,0,0]
[]
[null,null,null," CODE 611 - NAAR INSTELLINGEN",null," ",null,{"$f":"H$11","v":"LASTEN 2022"},null,{"$f":"J$11","v":"LASTEN 2021"},null,{"$f":"L$11","v":"LASTEN 2020 en ouder"}]
[null,null,null,null,null,null,null,{"$f":"H$12","v":"LASTEN 2022 inclusief balanspost "},{"$f":"I$12","v":"Ontvangen en geaccepteerde declaraties m.b.t. 2022"},"LASTEN 2021 inclusief balanspost ","Ontvangen en geaccepteerde declaraties m.b.t. 2021","Ontvangen en geaccepteerde declaraties m.b.t. 2020 en ouder",null,null,{"$f":"IF(OR((H23-I23)/IF(H23=0,1,H23)<-10%,(J23-K23)/IF(J23=0,1,J23)<-10%,(L23-M23)/IF(L23=0,1,L23)<-10%),\"De balans is < -10%, als dit plausibel is dan vragen wij u dit nader toe te lichten bij de opmerkingen, zo niet dan dient u uw raming aan te scherpen.\",\"\")","v":""}]
[null,null,null,null,null,null,null,null,null,null,null,null,null,null,""]
[null,null,null," Overige zorgproducten",null," ",null,null,null,null,null,null,null,null,""]
[null,null,null," Academische ziekenhuizen",null,null,null,null,null,null,null,null,null,null,""]
[null,null,null," Algemene ziekenhuizen"]
[null,null,null," Zelfstandige behandelcentra"]
[null,null,null," Overige zorgaanbieders "]
[null,null,null," TOTAAL code 611",null,null,null,{"$f":"SUM(H23:H26)","v":0},{"$f":"SUM(I23:I26)","v":0},{"$f":"SUM(J23:J26)","v":0},{"$f":"SUM(K23:K26)","v":0},{"$f":"SUM(L23:L26)","v":0}]
[]
[null,null,null,"CODE 612.1 - KOSTEN ADD-ONS                                      DURE GENEESMIDDELEN",null,null,null,{"$f":"H$11","v":"LASTEN 2022"},null,{"$f":"J$11","v":"LASTEN 2021"},null,{"$f":"L$11","v":"LASTEN 2020 en ouder"}]
[null,null,null,null,null,null,null,{"$f":"H$12","v":"LASTEN 2022 inclusief balanspost "},{"$f":"I$12","v":"Ontvangen en geaccepteerde declaraties m.b.t. 2022"},"LASTEN 2021 inclusief balanspost ","Ontvangen en geaccepteerde declaraties m.b.t. 2021","Ontvangen en geaccepteerde declaraties m.b.t. 2020 en ouder"]
[]
[null,null,null," Academische ziekenhuizen"]
[null,null,null," Algemene ziekenhuizen"]
[null,null,null," Zelfstandige behandelcentra"]
[null,null,null," Overige zorgaanbieders "]
[null,null,null," TOTAAL code 612.1",null,null,null,{"$f":"SUM(H32:H35)","v":0},{"$f":"SUM(I32:I35)","v":0},{"$f":"SUM(J32:J35)","v":0},{"$f":"SUM(K32:K35)","v":0},{"$f":"SUM(L32:L35)","v":0}]
[]
[null,null,null,"CODE 612.2 - KOSTEN ADD-ONS  IC",null,null,null,{"$f":"H$11","v":"LASTEN 2022"},null,{"$f":"J$11","v":"LASTEN 2021"},null,{"$f":"L$11","v":"LASTEN 2020 en ouder"}]
[null,null,null,null,null,null,null,{"$f":"H$12","v":"LASTEN 2022 inclusief balanspost "},{"$f":"I$12","v":"Ontvangen en geaccepteerde declaraties m.b.t. 2022"},"LASTEN 2021 inclusief balanspost ","Ontvangen en geaccepteerde declaraties m.b.t. 2021","Ontvangen en geaccepteerde declaraties m.b.t. 2020 en ouder"]
[]
[null,null,null," Academische ziekenhuizen"]
[null,null,null," Algemene ziekenhuizen"]
[null,null,null," Zelfstandige behandelcentra"]
[null,null,null," Overige zorgaanbieders "]
[null,null,null," TOTAAL code 612.2",null,null,null,{"$f":"SUM(H41:H44)","v":0},{"$f":"SUM(I41:I44)","v":0},{"$f":"SUM(J41:J44)","v":0},{"$f":"SUM(K41:K44)","v":0},{"$f":"SUM(L41:L44)","v":0}]
[null,null,null," TOTAAL code 612",null,null,null,{"$f":"SUM(H41:H44)+SUM(H32:H35)","v":0},0,{"$f":"SUM(J41:J44)+SUM(J32:J35)","v":0},{"$f":"SUM(K41:K44)+SUM(K32:K35)","v":0},0]
[null,null,null,{"$f":"NOW()","v":"2023-03-21T09:46:00.640"},null,null,null,null,null,null,null,{"$f":"CONCATENATE(\"Specifieke informatie C, \",LOWER(A6))","v":"Specifieke informatie C, pagina 1"}]
[]
["Pagina 2",null,null,{"$f":"CONCATENATE(\"JAARSTAAT ZVW \", jaar_id)","v":"JAARSTAAT ZVW 2022"}]
[null,null,null,"SPECIFIEKE INFORMATIE C (BELEIDSINFORMATIE)"]
[null,null,null,{"$f":"IF(naw_uzovi_zorgverzekeraar<>\"0000\",CONCATENATE(UPPER(naw_naam_zorgverzekeraar),\", \",UPPER(naw_plaats_zorgverzekeraar)),\"\")","v":""},null,null,null,null,null,null,null,{"$f":"CONCATENATE(\"UZOVI: \",naw_uzovi_zorgverzekeraar)","v":"UZOVI: 0000"}]
[]
[null,null,null,"RUBRIEK 06 MEDISCH SPECIALISTISCHE ZORG - vervolg"]
[null,null,null,"DBC-zorgproducten NAAR INSTELLING",null,"Code",null,{"$f":"H$11","v":"LASTEN 2022"},null,{"$f":"J$11","v":"LASTEN 2021"},null,{"$f":"L$11","v":"LASTEN 2020 en ouder"}]
[null,null,null,null,null,null,null,{"$f":"H$12","v":"LASTEN 2022 inclusief balanspost "},{"$f":"I$12","v":"Ontvangen en geaccepteerde declaraties m.b.t. 2022"},"LASTEN 2021 inclusief balanspost ","Ontvangen en geaccepteerde declaraties m.b.t. 2021","Ontvangen en geaccepteerde declaraties m.b.t. 2020 en ouder"]
[]
[null,null,null," Integrale kosten DBC-zorgproduct \n gereguleerde segment",null,"613.1",null,null,null,null,null,null,null,null,{"$f":"IF(OR((H58-I58)/IF(H58=0,1,H58)<-10%,(J58-K58)/IF(J58=0,1,J58)<-10%,(L58-M58)/IF(L58=0,1,L58)<-10%),\"De balans is < -10%, als dit plausibel is dan vragen wij u dit nader toe te lichten bij de opmerkingen, zo niet dan dient u uw raming aan te scherpen.\",\"\")","v":""}]
[null,null,null," Academische ziekenhuizen",null,null,null,null,null,null,null,null,null,null,""]
[null,null,null," Algemene ziekenhuizen",null,null,null,null,null,null,null,null,null,null,""]
[null,null,null," Zelfstandige behandelcentra",null,null,null,null,null,null,null,null,null,null,""]
[null,null,null," Overige zorgaanbieders "]
[null,null,null," TOTAAL code 613.1",null,null,null,{"$f":"SUM(H58:H61)","v":0},{"$f":"SUM(I58:I61)","v":0},{"$f":"SUM(J58:J61)","v":0},{"$f":"SUM(K58:K61)","v":0},{"$f":"SUM(L58:L61)","v":0}]
[null,null,null," Integrale kosten DBC-zorgproduct \n vrije segment",null,"615.1",null,null,null,null,null,null,null,null,{"$f":"IF(OR((H64-I64)/IF(H64=0,1,H64)<-10%,(J64-K64)/IF(J64=0,1,J64)<-10%,(L64-M64)/IF(L64=0,1,L64)<-10%),\"De balans is < -10%, als dit plausibel is dan vragen wij u dit nader toe te lichten bij de opmerkingen, zo niet dan dient u uw raming aan te scherpen.\",\"\")","v":""}]
[null,null,null," Academische ziekenhuizen",null,null,null,null,null,null,null,null,null,null,""]
[null,null,null," Algemene ziekenhuizen",null,null,null,null,null,null,null,null,null,null,""]
[null,null,null," Zelfstandige behandelcentra",null,null,null,null,null,null,null,null,null,null,""]
[null,null,null," Overige zorgaanbieders "]
[null,null,null," TOTAAL code 615.1",null,null,null,{"$f":"SUM(H64:H67)","v":0},{"$f":"SUM(I64:I67)","v":0},{"$f":"SUM(J64:J67)","v":0},0,{"$f":"SUM(L64:L67)","v":0}]
[]
[]
[]
[]
[]
[]
[]
[]
[]
[]
[]
[]
[]
[]
[]
[]
[null,null,null,{"$f":"NOW()","v":"2023-03-21T09:46:00.640"},null,null,null,null,null,null,null,{"$f":"CONCATENATE(\"Specifieke informatie C, \",LOWER(A49))","v":"Specifieke informatie C, pagina 2"}]
[]
["Pagina 3",null,null,{"$f":"CONCATENATE(\"JAARSTAAT ZVW \", jaar_id)","v":"JAARSTAAT ZVW 2022"}]
[null,null,null,"SPECIFIEKE INFORMATIE C (BELEIDSINFORMATIE)"]
[null,null,null,{"$f":"IF(naw_uzovi_zorgverzekeraar<>\"0000\",CONCATENATE(UPPER(naw_naam_zorgverzekeraar),\", \",UPPER(naw_plaats_zorgverzekeraar)),\"\")","v":""},null,null,null,null,null,null,null,{"$f":"CONCATENATE(\"UZOVI: \",naw_uzovi_zorgverzekeraar)","v":"UZOVI: 0000"}]
[null,null,null,"RUBRIEK 13 DIVERSE OVERIGE KOSTEN"]
[]
[null,null,null," CODE 701 - OVERIGE GENEESKUNDIGE ZORG",null,null,null,null,null,null,"Ontvangen en geaccepteerde declaraties mbt jaar 2022","Ontvangen en geaccepteerde declaraties mbt jaar 2021"]
[null,null,null,null,null,null,null,null,null,null,"Ontvangen en geaccepteerde declaraties mbt jaar T","Ontvangen en geaccepteerde declaraties mbt jaar T-1"]
[null,null,null," Geneeskundige individuele zorg bij tuberculose en infectieziekten door GGD'en"]
[null,null,null," Huidtherapie"]
[null,null,null," Orthoptie"]
[null,null,null," Optometrie"]
[null,null,null," Kosten voetzorg bij Diabetes Mellitus type 2"]
[null,null,null," Koemelkallergietest (niet horend bij Multidisciplinaire Zorg) "]
[null,null,null," Regiefunctie complexe wondzorg"]
[null,null,null," TOTAAL code 701",null,null,null,null,null,null,{"$f":"SUM(K94:K100)","v":0},{"$f":"SUM(L94:L100)","v":0}]
[]
[null,null,null," CODE 702 - ZINTUIGLIJK GEHANDICAPTEN",null,null,null,null,null,null,"Ontvangen en geaccepteerde declaraties mbt jaar 2022","Ontvangen en geaccepteerde declaraties mbt jaar 2021"]
[null,null,null,null,null,null,null,null,null,null,"Ontvangen en geaccepteerde declaraties mbt jaar T","Ontvangen en geaccepteerde declaraties mbt jaar T-1"]
[null,null,null," Kosten van zorg ivm visuele beperking "]
[null,null,null," Kosten van zorg ivm auditieve en communicatieve beperking"]
[null,null,null," TOTAAL code 702",null,null,null,null,null,null,{"$f":"SUM(K105:K106)","v":0},{"$f":"SUM(L105:L106)","v":0}]
[]
[null,null,null,"RUBRIEK 15 GRENSOVERSCHRIJDENDE ZORG"]
[null,null,null,"  CODE 720 - KOSTEN GRENSOVERSCHRIJDENDE ZORG VIA VERZEKERAAR",null,null,null,null,null,null,"Ontvangen en geaccepteerde declaraties mbt jaar 2022","Ontvangen en geaccepteerde declaraties mbt jaar 2021"]
[null,null,null,null,null,null,null,null,null,null,"Ontvangen en geaccepteerde declaraties mbt jaar T","Ontvangen en geaccepteerde declaraties mbt jaar T-1"]
[null,null,null," Kosten gemaakt in het buitenland \n van Zvw verzekerden die wonen in \n Nederland",null," Op basis van een contract "]
[null,null,null,null,null," Niet op basis van een contract "]
[null,null,null," Kosten gemaakt in het buitenland van Zvw verzekerden die wonen in het buitenland"]
[null,null,null," TOTAAL code 720",null,null,null,null,null,null,{"$f":"SUM(K112:K114)","v":0},{"$f":"SUM(L112:L114)","v":0}]
[]
[null,null,null,"  CODE 720 - GRENSOVERSCHRIJDENDE ZORG VIA VERZEKERAAR",null,null,null,null,null,null,"Aantal verzekerden mbt 2022","Aantal verzekerden mbt 2021"]
[null,null,null,null,null,null,null,null,null,null,"Ontvangen en geaccepteerde declaraties mbt jaar T","Ontvangen en geaccepteerde declaraties mbt jaar T"]
[null,null,null," Kosten gemaakt in het buitenland \n van Zvw verzekerden die wonen in \n Nederland",null," Op basis van een contract"]
[null,null,null,null,null," Niet op basis van een contract"]
[null,null,null," Kosten gemaakt in het buitenland van Zvw verzekerden die wonen in het buitenland"]
[null,null,null," TOTAAL code 720",null,null,null,null,null,null,{"$f":"SUM(K119:K121)","v":0},{"$f":"SUM(L119:L121)","v":0}]
[]
[]
[]
[null,null,null,{"$f":"NOW()","v":"2023-03-21T09:46:00.640"},null,null,null,null,null,null,null,{"$f":"CONCATENATE(\"Specifieke informatie C, \",LOWER(A87))","v":"Specifieke informatie C, pagina 3"}]

{"sheet":"Contractinformatie","index":8,"n_rows":106,"n_cols":12,"rows_kept":106,"cut":false,"hidden":false,"merged":[[95,3,95,11],[99,3,99,8],[76,3,76,8],[77,3,77,8],[86,3,86,8],[87,3,87,8],[92,3,92,8],[85,3,85,8],[88,3,88,8],[93,3,93,8],[98,3,98,8],[80,3,80,10],[30,3,30,8],[31,3,31,8],[43,3,43,8],[44,3,44,8],[64,3,64,8],[56,3,57,8],[58,3,58,8],[59,3,59,8],[60,3,60,8],[61,3,61,8],[62,3,62,8],[63,3,63,8],[25,9,26,9],[10,11,11,11],[16,3,16,11],[12,3,12,11],[10,10,11,10],[10,9,11,9],[14,3,14,8],[15,3,15,8],[25,3,26,8],[17,3,17,8],[18,3,18,8],[19,3,19,8],[22,3,22,8],[20,3,20,8],[21,3,21,8],[56,11,57,11],[25,10,26,10],[56,10,57,10],[35,11,36,11],[25,11,26,11],[35,10,36,10],[35,9,36,9],[35,3,36,8],[39,3,39,8],[40,3,40,8],[49,3,49,4],[48,3,48,8],[56,9,57,9],[41,3,41,8],[42,3,42,8],[47,3,47,8],[45,3,45,8],[66,3,66,8],[65,3,65,8],[105,3,105,4],[89,3,89,11],[72,11,73,11],[72,10,73,10],[79,5,79,9],[79,3,79,4],[81,10,82,10],[81,11,82,11],[83,3,83,11],[81,9,82,9],[72,9,73,9],[72,3,73,8],[81,3,82,8],[84,3,84,8]]}
[null,null,"INVULSPECIFICATIES SPECIFIEKE INFORMATIE C"]
[]
[]
[]
[]
["Pagina 1",null,null,{"$f":"CONCATENATE(\"JAARSTAAT ZVW \", jaar_id)","v":"JAARSTAAT ZVW 2022"}]
[null,null,null,"SPECIFIEKE INFORMATIE C (CONTRACTINFORMATIE)"]
[null,null,null,{"$f":"IF(naw_uzovi_zorgverzekeraar<>\"0000\",CONCATENATE(UPPER(naw_naam_zorgverzekeraar),\", \",UPPER(naw_plaats_zorgverzekeraar)),\"\")","v":""},null,null,null,null,null,null,null,{"$f":"CONCATENATE(\"UZOVI: \",naw_uzovi_zorgverzekeraar)","v":"UZOVI: 0000"}]
[]
[null,null,null,"CONTRACTINFORMATIE HUISARTSENZORG EN MULTIDISCIPLINAIRE ZORG, rubriek 01"]
[null,null,null,null,null,null,null,null,null,"Lasten inclusief balanspost 2022","Lasten inclusief balanspost 2021","Lasten inclusief balanspost 2020"]
[null,null,null,null,null,null,null,null,null,"Ontvangen en geaccepteerde declaraties mbt jaar T","Ontvangen en geaccepteerde declaraties mbt jaar T","Ontvangen en geaccepteerde declaraties mbt jaar T"]
[null,null,null," Huisartsenzorg, codes 503, 504, 505, 506,507, 515"]
[null,null,null," Gecontracteerde zorg"]
[null,null,null," Niet gecontracteerde zorg"]
[null,null,null," Subtotaal huisartsenzorg",null,null,null,null,null,{"$f":"SUM(J14:J15)","v":0},0,{"$f":"SUM(L14:L15)","v":0}]
[null,null,null," Multidisciplinaire zorg, codes 510 en 516"]
[null,null,null," Gecontracteerde zorg"]
[null,null,null," Niet gecontracteerde zorg"]
[null,null,null," Subtotaal multidisciplinaire zorg",null,null,null,null,null,{"$f":"SUM(J18:J19)","v":0},{"$f":"SUM(K18:K19)","v":0},{"$f":"SUM(L18:L19)","v":0}]
[null,null,null," Meerkosten Corona, indirect en toeslagen, gecontracteerd, niet gecontracteerd"]
[null,null,null," Netto continuïteitsbijdrage Corona, gecontracteerd, niet gecontracteerd"]
[null,null,null," TOTAAL RUBRIEK 01",null,null,null,null,null,{"$f":"SUM(J16,J20,J21,J22)","v":0},{"$f":"SUM(K16,K20,K21,K22)","v":0},0]
[]
[null,null,null,"CONTRACTINFORMATIE VERPLEGING EN VERZORGING, rubriek 03"]
[null,null,null,null,null,null,null,null,null,"Lasten inclusief balanspost 2022","Lasten inclusief balanspost 2021","Lasten inclusief balanspost 2020"]
[null,null,null,null,null,null,null,null,null,"Ontvangen en geaccepteerde declaraties mbt jaar T","Ontvangen en geaccepteerde declaraties mbt jaar T","Ontvangen en geaccepteerde declaraties mbt jaar T"]
[null,null,null," Gecontracteerde zorg"]
[null,null,null," Niet gecontracteerde zorg"]
[null,null,null," PGB"]
[null,null,null," Meerkosten Corona, indirect en toeslagen, gecontracteerd, niet gecontracteerd"]
[null,null,null," Netto continuïteitsbijdrage Corona, gecontracteerd, niet gecontracteerd"]
[null,null,null," TOTAAL RUBRIEK 03",null,null,null,null,null,{"$f":"SUM(J28:J32)","v":0},{"$f":"SUM(K28:K32)","v":0},0]
[]
[null,null,null,"CONTRACTINFORMATIE MEDISCH SPECIALISTISCHE ZORG, rubriek 06"]
[null,null,null,null,null,null,null,null,null,"Lasten inclusief balanspost 2022","Lasten inclusief balanspost 2021","Lasten inclusief balanspost 2020"]
[null,null,null,null,null,null,null,null,null,"Ontvangen en geaccepteerde declaraties mbt jaar T","Ontvangen en geaccepteerde declaraties mbt jaar T","Ontvangen en geaccepteerde declaraties mbt jaar T"]
[null,null,null," Gecontracteerde zorg: aanneemsom"]
[null,null,null," Gecontracteerde zorg: plafond"]
[null,null,null," Gecontracteerde zorg: nacalculatie bij aanneemsommen en plafondcontracten"]
[null,null,null," Gecontracteerde zorg: open einde contract"]
[null,null,null," Subtotaal gecontracteerde zorg",null,null,null,null,null,{"$f":"SUM(J38:J41)","v":0},{"$f":"SUM(K38:K41)","v":0},{"$f":"SUM(L38:L41)","v":0}]
[null,null,null," Niet gecontracteerde zorg"]
[null,null,null," Meerkosten Corona, indirect en toeslagen, gecontracteerd, niet gecontracteerd"]
[null,null,null," Netto continuïteitsbijdrage Corona, gecontracteerd, niet gecontracteerd"]
[null,null,null," TOTAAL RUBRIEK 06",null,null,null,null,null,{"$f":"SUM(J42:J45)","v":0},{"$f":"SUM(K42:K45)","v":0},0]
[]
[null,null,null,null,null,null,null,null,null,2022,2021,2020]
[null,null,null," Totaal afgesproken maximum omzet plafondcontracten"]
[null,null,null,{"$f":"NOW()","v":"2023-03-21T09:46:00.640"},null,null,null,null,null,null,null,{"$f":"CONCATENATE(\"Contractinformatie, \",LOWER(A6))","v":"Contractinformatie, pagina 1"}]
[]
["Pagina 2",null,null,{"$f":"CONCATENATE(\"JAARSTAAT ZVW \", jaar_id)","v":"JAARSTAAT ZVW 2022"}]
[null,null,null,"SPECIFIEKE INFORMATIE C (CONTRACTINFORMATIE)"]
[null,null,null,{"$f":"IF(naw_uzovi_zorgverzekeraar<>\"0000\",CONCATENATE(UPPER(naw_naam_zorgverzekeraar),\", \",UPPER(naw_plaats_zorgverzekeraar)),\"\")","v":""},null,null,null,null,null,null,null,{"$f":"CONCATENATE(\"UZOVI: \",naw_uzovi_zorgverzekeraar)","v":"UZOVI: 0000"}]
[]
[null,null,null,"CONTRACTINFORMATIE GGZ, rubriek 10"]
[null,null,null,null,null,null,null,null,null,"Lasten inclusief balanspost 2022","Lasten inclusief balanspost 2021","Lasten inclusief balanspost 2020"]
[null,null,null,null,null,null,null,null,null,"Ontvangen en geaccepteerde declaraties mbt jaar T","Ontvangen en geaccepteerde declaraties mbt jaar T","Ontvangen en geaccepteerde declaraties mbt jaar T"]
[null,null,null," Gecontracteerde zorg: aanneemsom"]
[null,null,null," Gecontracteerde zorg: plafond"]
[null,null,null," Gecontracteerde zorg: nacalculatie bij aanneemsommen en plafondcontracten"]
[null,null,null," Gecontracteerde zorg: open einde contract"]
[null,null,null," Subtotaal gecontracteerde zorg",null,null,null,null,null,{"$f":"SUM(J59:J62)","v":0},{"$f":"SUM(K59:K62)","v":0},{"$f":"SUM(L59:L62)","v":0}]
[null,null,null," Niet gecontracteerde zorg"]
[null,null,null," Meerkosten Corona, indirect en toeslagen, gecontracteerd, niet gecontracteerd"]
[null,null,null," Netto continuïteitsbijdrage Corona, gecontracteerd, niet gecontracteerd"]
[null,null,null," TOTAAL RUBRIEK 10",null,null,null,null,null,{"$f":"SUM(J63:J66)","v":0},{"$f":"SUM(K63:K66)","v":0},0]
[]
[null,null,null,null,null,null,null,null,null,2022,2021,2020]
[null,null,null," Totaal afgesproken maximum omzet plafondcontracten"]
[]
[null,null,null,"CONTRACTINFORMATIE ZINTUIGLIJK GEHANDICAPTEN, code 702"]
[null,null,null,null,null,null,null,null,null,"Lasten inclusief balanspost 2022","Lasten inclusief balanspost 2021","Lasten inclusief balanspost 2020"]
[null,null,null,null,null,null,null,null,null,"Ontvangen en geaccepteerde declaraties mbt jaar T","Ontvangen en geaccepteerde declaraties mbt jaar T","Ontvangen en geaccepteerde declaraties mbt jaar T"]
[null,null,null," Gecontracteerde zorg"]
[null,null,null," Niet gecontracteerde zorg"]
[null,null,null," Meerkosten Corona, indirect en toeslagen, gecontracteerd, niet gecontracteerd"]
[null,null,null," Netto continuïteitsbijdrage Corona, gecontracteerd, niet gecontracteerd"]
[null,null,null," TOTAAL CODE 702",null,null,null,null,null,{"$f":"SUM(J75:J78)","v":0},{"$f":"SUM(K75:K78)","v":0},0]
[]
[null,null,null,"CONTRACTINFORMATIE GERIATRISCHE REVALIDATIE, EERSTELIJNSVERBLIJF EN GENEESKUNDIGE ZORG SPECIFIEKE PATIENTGROEPEN, rubriek 11"]
[null,null,null,null,null,null,null,null,null,"Lasten inclusief balanspost 2022","Lasten inclusief balanspost 2021","Lasten inclusief balanspost 2020"]
[null,null,null,null,null,null,null,null,null,"Ontvangen en geaccepteerde declaraties mbt jaar T","Ontvangen en geaccepteerde declaraties mbt jaar T","Ontvangen en geaccepteerde declaraties mbt jaar T"]
[null,null,null," Geriatrische Revalidatie, code 670"]
[null,null,null," Gecontracteerde zorg"]
[null,null,null," Niet gecontracteerde zorg"]
[null,null,null," Meerkosten Corona, indirect en toeslagen, gecontracteerd, niet gecontracteerd"]
[null,null,null," Netto continuïteitsbijdrage Corona, gecontracteerd, niet gecontracteerd"]
[null,null,null," Subtotaal Geriatrische Revalidatie ",null,null,null,null,null,{"$f":"SUM(J85:J88)","v":0},{"$f":"SUM(K85:K88)","v":0},0]
[null,null,null," Eerstelijnsverblijf, code 671"]
[null,null,null," Gecontracteerde zorg"]
[null,null,null," Niet gecontracteerde zorg"]
[null,null,null," Meerkosten Corona, indirect en toeslagen, gecontracteerd, niet gecontracteerd"]
[null,null,null," Netto continuïteitsbijdrage Corona, gecontracteerd, niet gecontracteerd"]
[null,null,null," Subtotaal Eerstelijnsverblijf ",null,null,null,null,null,{"$f":"SUM(J91:J94)","v":0},{"$f":"SUM(K91:K94)","v":0},0]
[null,null,null," Geneeskundige Zorg Specifieke Patiëntgroepen, code 672"]
[null,null,null," Gecontracteerde zorg"]
[null,null,null," Niet gecontracteerde zorg"]
[null,null,null," Meerkosten Corona, indirect en toeslagen, gecontracteerd, niet gecontracteerd"]
[null,null,null," Netto continuïteitsbijdrage Corona, gecontracteerd, niet gecontracteerd"]
[null,null,null," Subtotaal Geneeskundige Zorg Specifieke Patiëntgroepen",null,null,null,null,null,{"$f":"SUM(J97:J100)","v":0},{"$f":"SUM(K97:K100)","v":0},0]
[null,null,null," TOTAAL RUBRIEK 11",null,null,null,null,null,{"$f":"SUM(J89,J95,J101)","v":0},{"$f":"SUM(K89,K95,K101)","v":0},0]
[]
[]
[]
[null,null,null,{"$f":"NOW()","v":"2023-03-21T09:46:00.640"},null,null,null,null,null,null,null,{"$f":"CONCATENATE(\"Contractinformatie, \",LOWER(A52))","v":"Contractinformatie, pagina 2"}]

{"sheet":"Controleoverzicht","index":9,"n_rows":231,"n_cols":12,"rows_kept":231,"cut":false,"hidden":false,"merged":[[95,10,96,10],[95,11,96,11],[111,3,111,9],[107,3,107,9],[98,3,98,9],[101,3,101,9],[102,3,102,9],[99,3,99,9],[105,3,105,9],[110,3,110,9],[104,3,104,9],[118,3,118,9],[117,3,117,8],[121,9,122,9],[220,3,220,8],[214,3,214,8],[215,3,215,8],[203,3,203,8],[204,3,204,8],[140,3,140,8],[138,3,138,8],[139,3,139,8],[166,3,166,8],[176,3,176,8],[219,3,219,8],[195,3,195,8],[196,3,196,8],[197,3,197,8],[194,3,194,8],[175,3,175,8],[173,3,173,8],[143,3,143,8],[174,3,174,8],[144,3,144,8],[25,3,25,8],[126,3,126,8],[77,3,77,9],[100,3,100,9],[59,3,59,9],[67,3,67,9],[109,3,109,9],[38,3,38,9],[35,3,35,9],[45,3,45,9],[40,3,40,9],[56,3,56,9],[34,3,34,9],[44,3,44,9],[27,3,28,9],[43,3,43,9],[32,3,32,9],[36,3,36,9],[37,3,37,9],[115,3,115,8],[97,3,97,9],[82,3,82,9],[114,3,114,8],[83,3,83,9],[27,11,28,11],[201,11,202,11],[218,3,218,8],[208,3,208,8],[201,9,202,9],[201,10,202,10],[212,10,213,10],[212,11,213,11],[216,3,216,8],[205,3,205,8],[201,3,202,8],[212,9,213,9],[206,3,206,8],[207,3,207,8],[209,3,209,8],[135,11,136,11],[135,9,136,9],[135,10,136,10],[135,3,136,8],[145,3,145,8],[198,3,198,8],[217,3,217,8],[212,3,213,8],[121,11,122,11],[24,3,24,8],[11,3,11,8],[15,3,15,8],[17,3,18,8],[13,10,14,10],[22,11,23,11],[22,10,23,10],[22,9,23,9],[22,3,23,8],[20,3,20,8],[9,11,10,11],[9,9,10,9],[13,9,14,9],[9,3,10,8],[9,10,10,10],[17,10,18,10],[17,9,18,9],[19,3,19,8],[13,3,14,8],[17,11,18,11],[13,11,14,11],[54,11,55,11],[76,3,76,9],[58,3,58,9],[66,3,66,9],[73,3,73,9],[75,3,75,9],[57,3,57,9],[79,3,79,9],[62,3,62,9],[65,3,65,9],[64,3,64,9],[68,3,68,9],[69,3,69,9],[70,3,70,9],[27,10,28,10],[60,3,60,9],[63,3,63,9],[46,3,46,9],[33,3,33,9],[29,3,29,9],[31,3,31,9],[54,10,55,10],[30,3,30,9],[39,3,39,9],[42,3,42,9],[41,3,41,9],[47,3,47,9],[54,3,55,9],[61,3,61,9],[112,3,112,9],[116,3,116,8],[71,3,71,9],[113,3,113,9],[81,3,81,9],[80,3,80,9],[108,3,108,9],[72,3,72,9],[103,3,103,9],[78,3,78,9],[106,3,106,9],[74,3,74,9],[85,3,85,9],[86,3,86,9],[87,3,87,9],[84,3,84,9],[88,3,88,9],[95,3,96,9],[192,11,193,11],[192,3,193,8],[177,3,177,8],[178,3,178,8],[192,9,193,9],[192,10,193,10],[179,3,179,8],[180,3,180,8],[181,3,181,8],[121,10,122,10],[128,3,128,8],[171,11,172,11],[171,3,172,8],[165,3,165,8],[171,10,172,10],[171,9,172,9],[168,3,168,8],[162,11,163,11],[162,10,163,10],[169,3,169,8],[167,3,167,8],[162,3,163,8],[162,9,163,9],[164,3,164,8],[137,3,137,8],[127,3,127,8],[125,3,125,8],[121,3,122,8],[124,3,124,8],[123,3,123,8],[141,3,141,8],[142,3,142,8]]}
[null,null,"SPECIFICATIES CONTROLEOVERZICHT"]
[]
[]
[]
[]
["Pagina 1",null,null,{"$f":"CONCATENATE(\"JAARSTAAT ZVW \", jaar_id)","v":"JAARSTAAT ZVW 2022"}]
[null,null,null,"CONTROLEOVERZICHT"]
[null,null,null,{"$f":"IF(naw_uzovi_zorgverzekeraar<>\"0000\",CONCATENATE(UPPER(naw_naam_zorgverzekeraar),\", \",UPPER(naw_plaats_zorgverzekeraar)),\"\")","v":""},null,null,null,null,null,null,null,{"$f":"CONCATENATE(\"UZOVI: \",naw_uzovi_zorgverzekeraar)","v":"UZOVI: 0000"}]
[null,null,null,"SPECIFIEKE INFORMATIE 2022 EN A"]
[null,null,null," SPECIFICATIES KOSTEN NAAR DEELBIJDRAGE",null,null,null,null,null,"Lasten 2022 inclusief balanspost","Kosten naar deelbijdrage","Verschil"]
[]
[null,null,null," Totaal kosten naar deelbijdrage (totaal lasten t/m rubriek 16) - \n inclusief balanspost",null,null,null,null,null,{"$f":"Kostenverzamelstaat!I156","v":0},{"$f":"'Specifieke informatie A'!K17","v":0},{"$f":"IF(J12<>K12,J12-K12,\"\")","v":""}]
[]
[null,null,null," SPECIFICATIES KOSTEN NAAR DEELBIJDRAGE",null,null,null,null,null,"Ontvangen en \ngeaccepteerde \ndeclaraties mbt \n2020 en ouder","Kosten naar deelbijdrage","Verschil"]
[]
[null,null,null," Totaal kosten naar deelbijdrage (totaal lasten t/m rubriek 16)",null,null,null,null,null,{"$f":"Kostenverzamelstaat!M156","v":0},{"$f":"'Specifieke informatie A'!L17","v":0},{"$f":"IF(J16<>K16,J16-K16,\"\")","v":""}]
[]
[null,null,null," KOSTEN PER CODENUMMER - LASTEN 2022 INCLUSIEF BALANSPOST",null,null,null,null,null,"Volgens\nkostenver- \nzamelstaat","Volgens\ndetail- \nspecificatie ","Verschil"]
[]
[null,null,null," 720 Grensoverschrijdende zorg -Kosten via verzekeraar",null,null,null,null,null,{"$f":"Kostenverzamelstaat!I150","v":0},{"$f":"'Specifieke informatie A'!K53","v":0},{"$f":"IF(J20<>K20,J20-K20,\"\")","v":""}]
[null,null,null," 721 Grensoverschrijdende zorg - Kosten via verbindingsorgaan",null,null,null,null,null,{"$f":"Kostenverzamelstaat!I151","v":0},{"$f":"'Specifieke informatie A'!K60","v":0},{"$f":"IF(J21<>K21,J21-K21,\"\")","v":""}]
[]
[null,null,null," KOSTEN PER CODENUMMER - ONTVANGEN EN GEACCEPTEERDE \n                                            DECLARATIES MBT 2020 EN OUDER",null,null,null,null,null,"Volgens\nkostenver- \nzamelstaat","Volgens\ndetail- \nspecificatie ","Verschil"]
[]
[null,null,null," 720 Grensoverschrijdende zorg -Kosten via verzekeraar",null,null,null,null,null,{"$f":"Kostenverzamelstaat!M150","v":0},{"$f":"'Specifieke informatie A'!L53","v":0},{"$f":"IF(J25<>K25,J25-K25,\"\")","v":""}]
[null,null,null," 721 Grensoverschrijdende zorg - Kosten via verbindingsorgaan",null,null,null,null,null,{"$f":"Kostenverzamelstaat!M151","v":0},{"$f":"'Specifieke informatie A'!L60","v":0},{"$f":"IF(J26<>K26,J26-K26,\"\")","v":""}]
[]
[null,null,null," KOSTENVERZAMELSTAAT",null,null,null,null,null,null,"Kosten balanspost mbt 2022","Kosten balanspost mbt 2021"]
[]
[null,null,null," 503 Bijzondere betalingen",null,null,null,null,null,null,{"$f":"Kostenverzamelstaat!I16-Kostenverzamelstaat!J16","v":0},{"$f":"Kostenverzamelstaat!K16-Kostenverzamelstaat!L16","v":0}]
[null,null,null," 504 Avond-, nacht- en weekenddiensten",null,null,null,null,null,null,{"$f":"Kostenverzamelstaat!I17-Kostenverzamelstaat!J17","v":0},{"$f":"SUM(Kostenverzamelstaat!K17+'Specifieke informatie B'!I15)-(Kostenverzamelstaat!L17+'Specifieke informatie B'!J15)","v":0}]
[null,null,null," 505 Inschrijftarieven",null,null,null,null,null,null,{"$f":"Kostenverzamelstaat!I18-Kostenverzamelstaat!J18","v":0},{"$f":"Kostenverzamelstaat!K18-Kostenverzamelstaat!L18","v":0}]
[null,null,null," 506 Consulttarieven",null,null,null,null,null,null,{"$f":"Kostenverzamelstaat!I19-Kostenverzamelstaat!J19","v":0},{"$f":"SUM(Kostenverzamelstaat!K19+'Specifieke informatie B'!I16)-(Kostenverzamelstaat!L19+'Specifieke informatie B'!J16)","v":0}]
[null,null,null," 507 Overige tarieven",null,null,null,null,null,null,{"$f":"Kostenverzamelstaat!I20-Kostenverzamelstaat!J20","v":0},{"$f":"SUM(Kostenverzamelstaat!K20+'Specifieke informatie B'!I17)-(Kostenverzamelstaat!L20+'Specifieke informatie B'!J17)","v":0}]
[null,null,null," 510 Multidisciplinaire zorg ",null,null,null,null,null,null,{"$f":"Kostenverzamelstaat!I21-Kostenverzamelstaat!J21","v":0},{"$f":"Kostenverzamelstaat!K21-Kostenverzamelstaat!L21","v":0}]
[null,null,null," 515 Resultaatbeloning en zorgvernieuwing huisartsen",null,null,null,null,null,null,{"$f":"Kostenverzamelstaat!I22-Kostenverzamelstaat!J22","v":0},{"$f":"SUM(Kostenverzamelstaat!K22+'Specifieke informatie B'!I18)-(Kostenverzamelstaat!L22+'Specifieke informatie B'!J18)","v":0}]
[null,null,null," 516 Resultaatbeloning en zorgvernieuwing MDZ",null,null,null,null,null,null,{"$f":"Kostenverzamelstaat!I23-Kostenverzamelstaat!J23","v":0},{"$f":"Kostenverzamelstaat!K23-Kostenverzamelstaat!L23","v":0}]
[null,null,null," 821 Netto continuïteitsbijdrage Corona (basisverzekering)",null,null,null,null,null,null,null,{"$f":"Kostenverzamelstaat!K24-Kostenverzamelstaat!L24","v":0}]
[null,null,null," 520 Farmaceutische hulp",null,null,null,null,null,null,{"$f":"Kostenverzamelstaat!I29-Kostenverzamelstaat!J29","v":0},{"$f":"Kostenverzamelstaat!K29-Kostenverzamelstaat!L29","v":0}]
[null,null,null," 822 Netto continuïteitsbijdrage Corona (basisverzekering)",null,null,null,null,null,null,null,{"$f":"Kostenverzamelstaat!K31-Kostenverzamelstaat!L31","v":0}]
[null,null,null," 530 Kosten van verpleging en verzorging",null,null,null,null,null,null,{"$f":"Kostenverzamelstaat!I34-Kostenverzamelstaat!J34","v":0},{"$f":"(Kostenverzamelstaat!K34+'Specifieke informatie B'!I26)-(Kostenverzamelstaat!L34+'Specifieke informatie B'!J26)","v":0}]
[null,null,null," 803.1 Meerkosten COVID-19, indirect",null,null,null,null,null,null,{"$f":"Kostenverzamelstaat!I35-Kostenverzamelstaat!J35","v":0}]
[null,null,null," 823 Netto continuïteitsbijdrage Corona (basisverzekering)",null,null,null,null,null,null,null,{"$f":"Kostenverzamelstaat!K36-Kostenverzamelstaat!L36","v":0}]
[null,null,null," 545 Kosten specialisten mondziekten en kaakchirurgie",null,null,null,null,null,null,{"$f":"Kostenverzamelstaat!I67-Kostenverzamelstaat!J67","v":0},{"$f":"Kostenverzamelstaat!K67-Kostenverzamelstaat!L67","v":0}]
[null,null,null," 560.1 Kosten mondzorg volwassen verzekerden",null,null,null,null,null,null,{"$f":"Kostenverzamelstaat!I39-Kostenverzamelstaat!J39","v":0},{"$f":"Kostenverzamelstaat!K39-Kostenverzamelstaat!L39","v":0}]
[null,null,null," 560.2 Kosten mondzorg jeugdige verzekerden",null,null,null,null,null,null,{"$f":"Kostenverzamelstaat!I40-Kostenverzamelstaat!J40","v":0},{"$f":"Kostenverzamelstaat!K40-Kostenverzamelstaat!L40","v":0}]
[null,null,null," 561 Kosten gebitsprothesen",null,null,null,null,null,null,{"$f":"Kostenverzamelstaat!I41-Kostenverzamelstaat!J41","v":0},{"$f":"Kostenverzamelstaat!K41-Kostenverzamelstaat!L41","v":0}]
[null,null,null," 824 Netto continuïteitsbijdrage Corona (basisverzekering)",null,null,null,null,null,null,{"$f":"Kostenverzamelstaat!I42-Kostenverzamelstaat!J42","v":0},{"$f":"Kostenverzamelstaat!K42-Kostenverzamelstaat!L42","v":0}]
[null,null,null,{"$f":"NOW()","v":"2023-03-21T09:46:00.640"},null,null,null,null,null,null,null,{"$f":"CONCATENATE(\"Controleoverzicht \",LOWER(A6))","v":"Controleoverzicht pagina 1"}]
[]
["Pagina 2",null,null,{"$f":"CONCATENATE(\"JAARSTAAT ZVW \", jaar_id)","v":"JAARSTAAT ZVW 2022"}]
[null,null,null,"CONTROLEOVERZICHT"]
[null,null,null,{"$f":"IF(naw_uzovi_zorgverzekeraar<>\"0000\",CONCATENATE(UPPER(naw_naam_zorgverzekeraar),\", \",UPPER(naw_plaats_zorgverzekeraar)),\"\")","v":""},null,null,null,null,null,null,null,{"$f":"CONCATENATE(\"UZOVI: \",naw_uzovi_zorgverzekeraar)","v":"UZOVI: 0000"}]
[null,null,null,"SPECIFIEKE INFORMATIE 2022 EN A - vervolg"]
[null,null,null," KOSTENVERZAMELSTAAT",null,null,null,null,null,null,"Kosten balanspost mbt 2022","Kosten balanspost mbt 2021"]
[]
[null,null,null," 580 Kosten verloskundige hulp door verloskundigen",null,null,null,null,null,null,{"$f":"Kostenverzamelstaat!I47-Kostenverzamelstaat!J47","v":0},{"$f":"Kostenverzamelstaat!K47-Kostenverzamelstaat!L47","v":0}]
[null,null,null," 582 Kosten Integrale geboortezorg ",null,null,null,null,null,null,{"$f":"Kostenverzamelstaat!I48-Kostenverzamelstaat!J48","v":0},{"$f":"Kostenverzamelstaat!K48-Kostenverzamelstaat!L48","v":0}]
[null,null,null," 825 Netto continuïteitsbijdrage Corona (basisverzekering)",null,null,null,null,null,null,null,{"$f":"Kostenverzamelstaat!K50-Kostenverzamelstaat!L50","v":0}]
[null,null,null," 610 Overige kosten ziekenhuiszorg en curatieve zorg",null,null,null,null,null,null,{"$f":"Kostenverzamelstaat!I68-Kostenverzamelstaat!J68","v":0},{"$f":"Kostenverzamelstaat!K68-Kostenverzamelstaat!L68","v":0}]
[null,null,null," 611 Overige zorgproducten",null,null,null,null,null,null,{"$f":"Kostenverzamelstaat!I69-Kostenverzamelstaat!J69","v":0},{"$f":"Kostenverzamelstaat!K69-Kostenverzamelstaat!L69","v":0}]
[null,null,null," 612.1 Kosten addons - Dure geneesmiddelen",null,null,null,null,null,null,{"$f":"Kostenverzamelstaat!I70-Kostenverzamelstaat!J70","v":0},{"$f":"Kostenverzamelstaat!K70-Kostenverzamelstaat!L70","v":0}]
[null,null,null," 612.2  Kosten add-ons - IC",null,null,null,null,null,null,{"$f":"Kostenverzamelstaat!I71-Kostenverzamelstaat!J71","v":0},{"$f":"SUM(Kostenverzamelstaat!K71+'Specifieke informatie B'!I48)-(Kostenverzamelstaat!L71+'Specifieke informatie B'!J48)","v":0}]
[null,null,null," 613.1 Integrale kosten DBC-zorgproduct gereguleerde segment",null,null,null,null,null,null,{"$f":"Kostenverzamelstaat!I72-Kostenverzamelstaat!J72","v":0},{"$f":"SUM(Kostenverzamelstaat!K72+'Specifieke informatie B'!I49)-(Kostenverzamelstaat!L72+'Specifieke informatie B'!J49)","v":0}]
[null,null,null," 615.1 Integrale kosten DBC-zorgproduct vrije segment",null,null,null,null,null,null,{"$f":"Kostenverzamelstaat!I73-Kostenverzamelstaat!J73","v":0},{"$f":"SUM(Kostenverzamelstaat!K73+'Specifieke informatie B'!I50)-(Kostenverzamelstaat!L73+'Specifieke informatie B'!J50)","v":0}]
[null,null,null," 619 Kosten en honoraria extramuraal werkende specialisten",null,null,null,null,null,null,{"$f":"Kostenverzamelstaat!I74-Kostenverzamelstaat!J74","v":0},{"$f":"Kostenverzamelstaat!K74-Kostenverzamelstaat!L74","v":0}]
[null,null,null," 826 Netto continuïteitsbijdrage Corona (basisverzekering)",null,null,null,null,null,null,null,{"$f":"Kostenverzamelstaat!K77-Kostenverzamelstaat!L77","v":0}]
[null,null,null," 620 Kosten fysiotherapie",null,null,null,null,null,null,{"$f":"Kostenverzamelstaat!I80-Kostenverzamelstaat!J80","v":0},{"$f":"(Kostenverzamelstaat!K80+'Specifieke informatie B'!I55)-(Kostenverzamelstaat!L80+'Specifieke informatie B'!J55)","v":0}]
[null,null,null," 621 Kosten oefentherapie Mensendieck/Cesar",null,null,null,null,null,null,{"$f":"Kostenverzamelstaat!I81-Kostenverzamelstaat!J81","v":0},{"$f":"(Kostenverzamelstaat!K81+'Specifieke informatie B'!I56)-(Kostenverzamelstaat!L81+'Specifieke informatie B'!J56)","v":0}]
[null,null,null," 623 Kosten logopedie",null,null,null,null,null,null,{"$f":"Kostenverzamelstaat!I82-Kostenverzamelstaat!J82","v":0},{"$f":"(Kostenverzamelstaat!K82+'Specifieke informatie B'!I57)-(Kostenverzamelstaat!L82+'Specifieke informatie B'!J57)","v":0}]
[null,null,null," 624 Kosten ergotherapie",null,null,null,null,null,null,{"$f":"Kostenverzamelstaat!I83-Kostenverzamelstaat!J83","v":0},{"$f":"(Kostenverzamelstaat!K83+'Specifieke informatie B'!I58)-(Kostenverzamelstaat!L83+'Specifieke informatie B'!J58)","v":0}]
[null,null,null," 625 Kosten dieetadvisering",null,null,null,null,null,null,{"$f":"Kostenverzamelstaat!I84-Kostenverzamelstaat!J84","v":0},{"$f":"(Kostenverzamelstaat!K84+'Specifieke informatie B'!I59)-(Kostenverzamelstaat!L84+'Specifieke informatie B'!J59)","v":0}]
[null,null,null," 626  Gecombineerde Leefstijl Interventie (GLI)",null,null,null,null,null,null,{"$f":"Kostenverzamelstaat!I85-Kostenverzamelstaat!J85","v":0},{"$f":"Kostenverzamelstaat!K85-Kostenverzamelstaat!L85","v":0}]
[null,null,null," 827 Netto continuïteitsbijdrage Corona (basisverzekering)",null,null,null,null,null,null,null,{"$f":"Kostenverzamelstaat!K87-Kostenverzamelstaat!L87","v":0}]
[null,null,null," 640 Hulpmiddelen",null,null,null,null,null,null,{"$f":"Kostenverzamelstaat!I90-Kostenverzamelstaat!J90","v":0},{"$f":"Kostenverzamelstaat!K90-Kostenverzamelstaat!L90","v":0}]
[null,null,null," 828 Netto continuïteitsbijdrage Corona (basisverzekering)",null,null,null,null,null,null,null,{"$f":"Kostenverzamelstaat!K92-Kostenverzamelstaat!L92","v":0}]
[null,null,null," 650 Kosten vervoer per ambulance/helikopter",null,null,null,null,null,null,{"$f":"Kostenverzamelstaat!I95-Kostenverzamelstaat!J95","v":0},{"$f":"(Kostenverzamelstaat!K95+'Specifieke informatie B'!I66)-(Kostenverzamelstaat!L95+'Specifieke informatie B'!J66)","v":0}]
[null,null,null," 650.1 Opbrengstenverrekeningen regionale ambulancevoorzieningen ",null,null,null,null,null,null,{"$f":"Kostenverzamelstaat!I96-Kostenverzamelstaat!J96","v":0},{"$f":"Kostenverzamelstaat!K96-Kostenverzamelstaat!L96","v":0}]
[null,null,null," 651 Kosten vervoer per openbaar vervoer, taxi en eigen auto",null,null,null,null,null,null,{"$f":"Kostenverzamelstaat!I97-Kostenverzamelstaat!J97","v":0},{"$f":"Kostenverzamelstaat!K97-Kostenverzamelstaat!L97","v":0}]
[null,null,null," 829 Netto continuïteitsbijdrage Corona (basisverzekering)",null,null,null,null,null,null,null,{"$f":"Kostenverzamelstaat!K99-Kostenverzamelstaat!L99","v":0}]
[null,null,null," 661 Kosten specialistische GGZ met verblijf",null,null,null,null,null,null,null,{"$f":"Kostenverzamelstaat!K116-Kostenverzamelstaat!L116","v":0}]
[null,null,null," 661.1 Kosten LGGZ (langdurige GGZ, jaar 2 en 3)",null,null,null,null,null,null,null,{"$f":"Kostenverzamelstaat!K117-Kostenverzamelstaat!L117","v":0}]
[null,null,null," 662 Kosten specialistische GGZ zonder verblijf",null,null,null,null,null,null,null,{"$f":"Kostenverzamelstaat!K118-Kostenverzamelstaat!L118","v":0}]
[null,null,null," 665 Generalistische basis GGZ",null,null,null,null,null,null,null,{"$f":"Kostenverzamelstaat!K119-Kostenverzamelstaat!L119","v":0}]
[null,null,null," 666 Kosten specialistische GGZ met verblijf",null,null,null,null,null,null,{"$f":"Kostenverzamelstaat!I120-Kostenverzamelstaat!J120","v":0}]
[null,null,null," 667 Kosten specialistische GGZ zonder verblijf",null,null,null,null,null,null,{"$f":"Kostenverzamelstaat!I121-Kostenverzamelstaat!J121","v":0}]
[null,null,null," 668 Kosten overige prestaties GGZ",null,null,null,null,null,null,{"$f":"Kostenverzamelstaat!I122-Kostenverzamelstaat!J122","v":0}]
[null,null,null," 810.1 Meerkosten COVID-19, indirect",null,null,null,null,null,null,{"$f":"Kostenverzamelstaat!I123-Kostenverzamelstaat!J123","v":0}]
[null,null,null," 830 Netto continuïteitsbijdrage Corona (basisverzekering)",null,null,null,null,null,null,null,{"$f":"Kostenverzamelstaat!K124-Kostenverzamelstaat!L124","v":0}]
[null,null,null,{"$f":"NOW()","v":"2023-03-21T09:46:00.640"},null,null,null,null,null,null,null,{"$f":"CONCATENATE(\"Controleoverzicht \",LOWER(A51))","v":"Controleoverzicht pagina 2"}]
[]
["Pagina 3",null,null,{"$f":"CONCATENATE(\"JAARSTAAT ZVW \", jaar_id)","v":"JAARSTAAT ZVW 2022"}]
[null,null,null,"CONTROLEOVERZICHT"]
[null,null,null,{"$f":"IF(naw_uzovi_zorgverzekeraar<>\"0000\",CONCATENATE(UPPER(naw_naam_zorgverzekeraar),\", \",UPPER(naw_plaats_zorgverzekeraar)),\"\")","v":""},null,null,null,null,null,null,null,{"$f":"CONCATENATE(\"UZOVI: \",naw_uzovi_zorgverzekeraar)","v":"UZOVI: 0000"}]
[null,null,null,"SPECIFIEKE INFORMATIE 2022 EN A - vervolg"]
[null,null,null," KOSTENVERZAMELSTAAT",null,null,null,null,null,null,"Kosten balanspost mbt 2022","Kosten balanspost mbt 2021"]
[]
[null,null,null," 670 Geriatische revalidatiezorg",null,null,null,null,null,null,{"$f":"Kostenverzamelstaat!I127-Kostenverzamelstaat!J127","v":0},{"$f":"(Kostenverzamelstaat!K127+'Specifieke informatie B'!I83)-(Kostenverzamelstaat!L127+'Specifieke informatie B'!J83)","v":0}]
[null,null,null," 831.1 Netto continuïteitsbijdrage Corona (basisverzekering)",null,null,null,null,null,null,null,{"$f":"Kostenverzamelstaat!K129-Kostenverzamelstaat!L129","v":0}]
[null,null,null," 811.1.1 Meerkosten Corona, indirect GRZ",null,null,null,null,null,null,{"$f":"Kostenverzamelstaat!I128-Kostenverzamelstaat!J128","v":0}]
[null,null,null," 671 Eerstelijnsverblijf ",null,null,null,null,null,null,{"$f":"Kostenverzamelstaat!I130-Kostenverzamelstaat!J130","v":0},{"$f":"(Kostenverzamelstaat!K130+'Specifieke informatie B'!I84)-(Kostenverzamelstaat!L130+'Specifieke informatie B'!J84)","v":0}]
[null,null,null," 811.2.1 Meerkosten Corona, indirect ELV",null,null,null,null,null,null,{"$f":"Kostenverzamelstaat!I131-Kostenverzamelstaat!J131","v":0}]
[null,null,null," 831.2 Netto continuïteitsbijdrage Corona (basisverzekering)",null,null,null,null,null,null,null,{"$f":"Kostenverzamelstaat!K132-Kostenverzamelstaat!L132","v":0}]
[null,null,null," 672  Generalistische Geneeskundige Zorg Specifieke Patiëntgroepen",null,null,null,null,null,null,{"$f":"Kostenverzamelstaat!I133-Kostenverzamelstaat!J133","v":0},{"$f":"Kostenverzamelstaat!K133-Kostenverzamelstaat!L133","v":0}]
[null,null,null," 811.3.1 Meerkosten Corona, indirect GZSP",null,null,null,null,null,null,{"$f":"Kostenverzamelstaat!I134-Kostenverzamelstaat!J134","v":0}]
[null,null,null," 831.3 Netto continuïteitsbijdrage Corona (basisverzekering)",null,null,null,null,null,null,null,{"$f":"Kostenverzamelstaat!K135-Kostenverzamelstaat!L135","v":0}]
[null,null,null," 680 Kraamzorg",null,null,null,null,null,null,{"$f":"Kostenverzamelstaat!I138-Kostenverzamelstaat!J138","v":0},{"$f":"Kostenverzamelstaat!K138-Kostenverzamelstaat!L138","v":0}]
[null,null,null," 832 Netto continuïteitsbijdrage Corona (basisverzekering)",null,null,null,null,null,null,null,{"$f":"Kostenverzamelstaat!K140-Kostenverzamelstaat!L140","v":0}]
[null,null,null," 700 Overige kosten",null,null,null,null,null,null,{"$f":"Kostenverzamelstaat!I143-Kostenverzamelstaat!J143","v":0},{"$f":"Kostenverzamelstaat!K143-Kostenverzamelstaat!L143","v":0}]
[null,null,null," 701 Overige geneeskundige zorg ",null,null,null,null,null,null,{"$f":"Kostenverzamelstaat!I144-Kostenverzamelstaat!J144","v":0},{"$f":"Kostenverzamelstaat!K144-Kostenverzamelstaat!L144","v":0}]
[null,null,null," 702 Kosten van zorg zintuiglijk gehandicapten",null,null,null,null,null,null,{"$f":"Kostenverzamelstaat!I145-Kostenverzamelstaat!J145","v":0},{"$f":"Kostenverzamelstaat!K145-Kostenverzamelstaat!L145","v":0}]
[null,null,null," 833 Netto continuïteitsbijdrage Corona (basisverzekering)",null,null,null,null,null,null,null,{"$f":"Kostenverzamelstaat!K147-Kostenverzamelstaat!L147","v":0}]
[null,null,null," 720 Grensoverschrijdende zorg, kosten gemaakt in het buitenland, via verzekeraar ",null,null,null,null,null,null,{"$f":"Kostenverzamelstaat!I150-Kostenverzamelstaat!J150","v":0},{"$f":"Kostenverzamelstaat!K150-Kostenverzamelstaat!L150","v":0}]
[null,null,null," 721 Grensoverschrijdende zorg, kosten gemaakt in het buitenland, via verbingsorgaan",null,null,null,null,null,null,{"$f":"Kostenverzamelstaat!I151-Kostenverzamelstaat!J151","v":0},{"$f":"Kostenverzamelstaat!K151-Kostenverzamelstaat!L151","v":0}]
[null,null,null," 730 Kwaliteitsgelden",null,null,null,null,null,null,{"$f":"Kostenverzamelstaat!I154-Kostenverzamelstaat!J154","v":0},{"$f":"Kostenverzamelstaat!K154-Kostenverzamelstaat!L154","v":0}]
[null,null,null," 890.1 Opbrengsten verhaal",null,null,null,null,null,null,{"$f":"Kostenverzamelstaat!I160-Kostenverzamelstaat!J160","v":0},{"$f":"Kostenverzamelstaat!K160-Kostenverzamelstaat!L160","v":0}]
[null,null,null," 910 Schade t.l.v. het vrijwillig eigen risico",null,null,null,null,null,null,{"$f":"Kostenverzamelstaat!I161-Kostenverzamelstaat!J161","v":0},{"$f":"Kostenverzamelstaat!K161-Kostenverzamelstaat!L161","v":0}]
[null,null,null," 915 Schade t.l.v. het verplicht eigen risico",null,null,null,null,null,null,{"$f":"Kostenverzamelstaat!I162-Kostenverzamelstaat!J162","v":0},{"$f":"(Kostenverzamelstaat!K162+'Specifieke informatie B'!I110)-(Kostenverzamelstaat!L162+'Specifieke informatie B'!J110)","v":0}]
[null,null,null," 940 Netto premieopbrengsten",null,null,null,null,null,null,{"$f":"Kostenverzamelstaat!I163-Kostenverzamelstaat!J163","v":0},{"$f":"Kostenverzamelstaat!K163-Kostenverzamelstaat!L163","v":0}]
[]
[null,null,null,"VERGELIJKING SPECIFIEKE INFORMATIE 2022 EN C"]
[null,null,null," LASTEN 2022 INCLUSIEF BALANSPOST",null,null,null,null,null,"Kosten- verzamelstaat","Spec. inform. C\ndetailinformatie","Verschil"]
[]
[null,null,null," 610 Overige kosten ziekenhuiszorg en curatieve zorg",null,null,null,null,null,{"$f":"Kostenverzamelstaat!I68","v":0},{"$f":"'Specifieke informatie C'!H17","v":0},{"$f":"IF(J124<>K124,J124-K124,\"\")","v":""}]
[null,null,null," 611 Overige zorgproducten (Instellingen)",null,null,null,null,null,{"$f":"Kostenverzamelstaat!I69","v":0},{"$f":"'Specifieke informatie C'!H27","v":0},""]
[null,null,null," 612.1 Kosten add ons Dure geneesmiddelen",null,null,null,null,null,{"$f":"Kostenverzamelstaat!I70","v":0},{"$f":"'Specifieke informatie C'!H36","v":0},""]
[null,null,null," 612.2 Kosten add-ons - IC",null,null,null,null,null,{"$f":"Kostenverzamelstaat!I71","v":0},{"$f":"'Specifieke informatie C'!H45","v":0},""]
[null,null,null," 613.1 Integrale kosten DBC-zorgproduct gereguleerde segment",null,null,null,null,null,{"$f":"Kostenverzamelstaat!I72","v":0},{"$f":"'Specifieke informatie C'!H62","v":0},""]
[null,null,null," 615.1 Integrale kosten DBC-zorgproduct vrije segment",null,null,null,null,null,{"$f":"Kostenverzamelstaat!I73","v":0},{"$f":"'Specifieke informatie C'!H68","v":0},""]
[null,null,null,{"$f":"NOW()","v":"2023-03-21T09:46:00.640"},null,null,null,null,null,null,null,{"$f":"CONCATENATE(\"Controleoverzicht \",LOWER(A92))","v":"Controleoverzicht pagina 3"}]
[]
["Pagina 4",null,null,{"$f":"CONCATENATE(\"JAARSTAAT ZVW \", jaar_id)","v":"JAARSTAAT ZVW 2022"}]
[null,null,null,"CONTROLEOVERZICHT"]
[null,null,null,{"$f":"IF(naw_uzovi_zorgverzekeraar<>\"0000\",CONCATENATE(UPPER(naw_naam_zorgverzekeraar),\", \",UPPER(naw_plaats_zorgverzekeraar)),\"\")","v":""},null,null,null,null,null,null,null,{"$f":"CONCATENATE(\"UZOVI: \",naw_uzovi_zorgverzekeraar)","v":"UZOVI: 0000"}]
[null,null,null,"VERGELIJKING SPECIFIEKE INFORMATIE A EN C"]
[null,null,null," ONTVANGEN EN GEACCEPTEERDE DECLARATIES mbt 2022",null,null,null,null,null,"Kosten- verzamelstaat","Spec. inform. C\ndetailinformatie","Verschil"]
[]
[null,null,null," 610 Overige kosten ziekenhuiszorg en curatieve zorg",null,null,null,null,null,{"$f":"Kostenverzamelstaat!J68","v":0},{"$f":"'Specifieke informatie C'!I17","v":0},{"$f":"IF(J138<>K138,J138-K138,\"\")","v":""}]
[null,null,null," 611 Overige zorgproducten (Instellingen)",null,null,null,null,null,{"$f":"Kostenverzamelstaat!J69","v":0},{"$f":"'Specifieke informatie C'!I27","v":0},""]
[null,null,null," 612.1 Kosten add-ons - Dure geneesmiddelen ",null,null,null,null,null,{"$f":"Kostenverzamelstaat!J70","v":0},{"$f":"'Specifieke informatie C'!I36","v":0},""]
[null,null,null," 612.2 Kosten add-ons - IC",null,null,null,null,null,{"$f":"Kostenverzamelstaat!J71","v":0},{"$f":"'Specifieke informatie C'!I45","v":0},""]
[null,null,null," 613.1 Integrale kosten DBC-zorgproduct gereguleerde segment",null,null,null,null,null,{"$f":"Kostenverzamelstaat!J72","v":0},{"$f":"'Specifieke informatie C'!I62","v":0},""]
[null,null,null," 615.1 Integrale kosten DBC-zorgproduct vrije segment",null,null,null,null,null,{"$f":"Kostenverzamelstaat!J73","v":0},{"$f":"'Specifieke informatie C'!I68","v":0},""]
[null,null,null," 701 Overige geneeskundige zorg",null,null,null,null,null,{"$f":"Kostenverzamelstaat!J144","v":0},{"$f":"'Specifieke informatie C'!K101","v":0},""]
[null,null,null," 702 Kosten van zorg zintuiglijk gehandicapten",null,null,null,null,null,{"$f":"Kostenverzamelstaat!J145","v":0},{"$f":"'Specifieke informatie C'!K107","v":0},""]
[null,null,null," 720 Kosten grensoverschrijdende zorg, via verzekeraar",null,null,null,null,null,{"$f":"Kostenverzamelstaat!J150","v":0},{"$f":"'Specifieke informatie C'!K115","v":0},""]
[]
[]
[]
[]
[]
[]
[]
[]
[]
[]
[null,null,null,{"$f":"NOW()","v":"2023-03-21T09:46:00.640"},null,null,null,null,null,null,null,{"$f":"CONCATENATE(\"Controleoverzicht \",LOWER(A132))","v":"Controleoverzicht pagina 4"}]
[]
["Pagina 5",null,null,{"$f":"CONCATENATE(\"JAARSTAAT ZVW \", jaar_id)","v":"JAARSTAAT ZVW 2022"}]
[null,null,null,"CONTROLEOVERZICHT"]
[null,null,null,{"$f":"IF(naw_uzovi_zorgverzekeraar<>\"0000\",CONCATENATE(UPPER(naw_naam_zorgverzekeraar),\", \",UPPER(naw_plaats_zorgverzekeraar)),\"\")","v":""},null,null,null,null,null,null,null,{"$f":"CONCATENATE(\"UZOVI: \",naw_uzovi_zorgverzekeraar)","v":"UZOVI: 0000"}]
[null,null,null,"VERGELIJKING SPECIFIEKE INFORMATIE A EN C"]
[null,null,null," LASTEN 2021 INCLUSIEF BALANSPOST",null,null,null,null,null,"Kosten- verzamelstaat","Spec. inform. C\ndetailinformatie","Verschil "]
[]
[null,null,null," 610 Overige kosten ziekenhuiszorg en curatieve zorg",null,null,null,null,null,{"$f":"Kostenverzamelstaat!K68","v":0},{"$f":"'Specifieke informatie C'!J17","v":0},{"$f":"IF(J165<>K165,J165-K165,\"\")","v":""}]
[null,null,null," 611 Overige zorgproducten (Instellingen)",null,null,null,null,null,{"$f":"Kostenverzamelstaat!K69","v":0},{"$f":"'Specifieke informatie C'!J27","v":0},""]
[null,null,null," 612.1  Kosten add ons",null,null,null,null,null,{"$f":"Kostenverzamelstaat!K70","v":0},{"$f":"'Specifieke informatie C'!J36","v":0},""]
[null,null,null," 612.2 Kosten add ons",null,null,null,null,null,{"$f":"Kostenverzamelstaat!K71+'Specifieke informatie B'!I48","v":0},{"$f":"'Specifieke informatie C'!J45","v":0},""]
[null,null,null," 613.1 Integrale kosten DBC-zorgproduct gereguleerde segment ",null,null,null,null,null,{"$f":"Kostenverzamelstaat!K72+'Specifieke informatie B'!I49","v":0},{"$f":"'Specifieke informatie C'!J62","v":0},""]
[null,null,null," 615.1 Integrale kosten DBC-zorgproduct vrije segment ",null,null,null,null,null,{"$f":"Kostenverzamelstaat!K73+'Specifieke informatie B'!I50","v":0},{"$f":"'Specifieke informatie C'!J68","v":0},""]
[]
[null,null,null," ONTVANGEN EN GEACCEPTEERDE DECLARATIES mbt 2021",null,null,null,null,null,"Kosten- verzamelstaat","Spec. inform. C\ndetailinformatie","Verschil"]
[]
[null,null,null," 610 Overige kosten ziekenhuiszorg en curatieve zorg ",null,null,null,null,null,{"$f":"Kostenverzamelstaat!L68","v":0},{"$f":"'Specifieke informatie C'!K17","v":0},{"$f":"IF(J174<>K174,J174-K174,\"\")","v":""}]
[null,null,null," 611 Overige zorgproducten (Instellingen)",null,null,null,null,null,{"$f":"Kostenverzamelstaat!L69","v":0},{"$f":"'Specifieke informatie C'!K27","v":0},""]
[null,null,null," 612.1  Kosten add-ons - Dure geneesmiddelen",null,null,null,null,null,{"$f":"Kostenverzamelstaat!L70","v":0},{"$f":"'Specifieke informatie C'!K36","v":0},""]
[null,null,null," 612.2 Kosten add-ons - IC",null,null,null,null,null,{"$f":"Kostenverzamelstaat!L71+'Specifieke informatie B'!J48","v":0},{"$f":"'Specifieke informatie C'!K45","v":0},{"$f":"IF(J177<>K177,J177-K177,\"\")","v":""}]
[null,null,null," 613.1 Integrale kosten DBC-zorgproduct gereguleerde segment",null,null,null,null,null,{"$f":"Kostenverzamelstaat!L72+'Specifieke informatie B'!J49","v":0},{"$f":"'Specifieke informatie C'!K62","v":0},""]
[null,null,null," 615.1 Integrale kosten DBC-zorgproduct vrije segment",null,null,null,null,null,{"$f":"Kostenverzamelstaat!L73+'Specifieke informatie B'!J50","v":0},{"$f":"'Specifieke informatie C'!K68","v":0},""]
[null,null,null," 701 Overige geneeskundige zorg",null,null,null,null,null,{"$f":"Kostenverzamelstaat!L144","v":0},{"$f":"'Specifieke informatie C'!L101","v":0},""]
[null,null,null," 702 Kosten van zorg zintuiglijk gehandicapten",null,null,null,null,null,{"$f":"Kostenverzamelstaat!L145","v":0},{"$f":"'Specifieke informatie C'!L107","v":0},""]
[null,null,null," 720 Kosten grensoverschrijdende zorg, via verzekeraar",null,null,null,null,null,{"$f":"Kostenverzamelstaat!L150","v":0},{"$f":"'Specifieke informatie C'!L115","v":0},{"$f":"IF(J182<>K182,J182-K182,\"\")","v":""}]
[]
[]
[]
[null,null,null,{"$f":"NOW()","v":"2023-03-21T09:46:00.640"},null,null,null,null,null,null,null,{"$f":"CONCATENATE(\"Controleoverzicht \",LOWER(A159))","v":"Controleoverzicht pagina 5"}]
[]
["Pagina 6",null,null,{"$f":"CONCATENATE(\"JAARSTAAT ZVW \", jaar_id)","v":"JAARSTAAT ZVW 2022"}]
[null,null,null,"CONTROLEOVERZICHT"]
[null,null,null,{"$f":"IF(naw_uzovi_zorgverzekeraar<>\"0000\",CONCATENATE(UPPER(naw_naam_zorgverzekeraar),\", \",UPPER(naw_plaats_zorgverzekeraar)),\"\")","v":""},null,null,null,null,null,null,null,{"$f":"CONCATENATE(\"UZOVI: \",naw_uzovi_zorgverzekeraar)","v":"UZOVI: 0000"}]
[]
[null,null,null,"VERGELIJKING SPECIFIEKE INFORMATIE A EN C"]
[null,null,null," ONTVANGEN EN GEACCEPTEERDE DECLARATIES mbt 2020 en ouder",null,null,null,null,null,"Kosten- verzamelstaat","Spec. inform. C\ndetailinformatie","Verschil "]
[]
[null,null,null," 610 Overige kosten ziekenhuiszorg en curatieve zorg ",null,null,null,null,null,{"$f":"Kostenverzamelstaat!M68","v":0},{"$f":"'Specifieke informatie C'!L17","v":0},{"$f":"IF(J195<>K195,J195-K195,\"\")","v":""}]
[null,null,null," 611 Overige zorgproducten (Instellingen)",null,null,null,null,null,{"$f":"Kostenverzamelstaat!M69","v":0},{"$f":"'Specifieke informatie C'!L27","v":0},""]
[null,null,null," 612 Kosten add-ons",null,null,null,null,null,{"$f":"Kostenverzamelstaat!M70+Kostenverzamelstaat!M71","v":0},{"$f":"'Specifieke informatie C'!L46","v":0},""]
[null,null,null," 613.1 Integrale kosten DBC-zorgproduct gereguleerde segment",null,null,null,null,null,{"$f":"Kostenverzamelstaat!M71","v":0},{"$f":"'Specifieke informatie C'!L62","v":0},""]
[null,null,null," 615.1 Integrale kosten DBC-zorgproduct vrije segment",null,null,null,null,null,{"$f":"Kostenverzamelstaat!M72","v":0},{"$f":"'Specifieke informatie C'!L68","v":0},""]
[]
[null,null,null,"VERGELIJKING SPECIFIEKE INFORMATIE 2021 EN CONTRACTINFORMATIE"]
[null,null,null," LASTEN 2022 INCLUSIEF BALANSPOST",null,null,null,null,null,"Kosten- verzamelstaat","Spec. inform. C\ncontract inform.","Verschil "]
[]
[null,null,null," Totaal code 503, 504, 505, 506, 507, 515 ",null,null,null,null,null,{"$f":"SUM(Kostenverzamelstaat!I16+Kostenverzamelstaat!I17+Kostenverzamelstaat!I18+Kostenverzamelstaat!I19+Kostenverzamelstaat!I20+Kostenverzamelstaat!I22)","v":0},{"$f":"Contractinformatie!J16","v":0},{"$f":"IF(J204<>K204,J204-K204,\"\")","v":""}]
[null,null,null," Totaal code 510, 516 ",null,null,null,null,null,{"$f":"SUM(Kostenverzamelstaat!I21+Kostenverzamelstaat!I23)","v":0},{"$f":"Contractinformatie!J20","v":0},""]
[null,null,null," Totaal Rubriek 01",null,null,null,null,null,{"$f":"Kostenverzamelstaat!I27","v":0},{"$f":"Contractinformatie!J23","v":0},""]
[null,null,null," Totaal Rubriek 03",null,null,null,null,null,{"$f":"Kostenverzamelstaat!I37","v":0},{"$f":"Contractinformatie!J33","v":0},""]
[null,null,null," Totaal Rubriek 06",null,null,null,null,null,{"$f":"Kostenverzamelstaat!I78","v":0},{"$f":"Contractinformatie!J46","v":0},""]
[null,null,null," Totaal Rubriek 10",null,null,null,null,null,{"$f":"Kostenverzamelstaat!I125","v":0},{"$f":"Contractinformatie!J67","v":0},{"$f":"IF(J209<>K209,J209-K209,\"\")","v":""}]
[null,null,null," Totaal Code 702",null,null,null,null,null,{"$f":"Kostenverzamelstaat!I145","v":0},{"$f":"Contractinformatie!J79","v":0},{"$f":"IF(J210<>K210,J210-K210,\"\")","v":""}]
[]
[null,null,null,"VERGELIJKING SPECIFIEKE INFORMATIE A EN CONTRACTINFORMATIE"]
[null,null,null," LASTEN 2021 INCLUSIEF BALANSPOST",null,null,null,null,null,"Kosten- verzamelstaat","Spec. inform. C\ncontract inform.","Verschil "]
[]
[null,null,null," Totaal code 503, 504, 505, 506, 507, 515 ",null,null,null,null,null,{"$f":"SUM(Kostenverzamelstaat!K16+Kostenverzamelstaat!K17+Kostenverzamelstaat!K18+Kostenverzamelstaat!K19+Kostenverzamelstaat!K20+Kostenverzamelstaat!K22)+'Specifieke informatie B'!I15+'Specifieke informatie B'!I16+'Specifieke informatie B'!I17+'Specifieke informatie B'!I18","v":0},{"$f":"Contractinformatie!K16","v":0},{"$f":"IF(J215<>K215,J215-K215,\"\")","v":""}]
[null,null,null," Totaal code 510, 516 ",null,null,null,null,null,{"$f":"SUM(Kostenverzamelstaat!K21+Kostenverzamelstaat!K23)","v":0},{"$f":"Contractinformatie!K20","v":0},""]
[null,null,null," Totaal Rubriek 01 ",null,null,null,null,null,{"$f":"Kostenverzamelstaat!K27+'Specifieke informatie B'!I21","v":0},{"$f":"Contractinformatie!K23","v":0},""]
[null,null,null," Totaal Rubriek 03",null,null,null,null,null,{"$f":"Kostenverzamelstaat!K37+'Specifieke informatie B'!I28","v":0},{"$f":"Contractinformatie!K33","v":0},""]
[null,null,null," Totaal Rubriek 06",null,null,null,null,null,{"$f":"Kostenverzamelstaat!K78+'Specifieke informatie B'!I53","v":0},{"$f":"Contractinformatie!K46","v":0},""]
[null,null,null," Totaal Rubriek 10",null,null,null,null,null,{"$f":"Kostenverzamelstaat!K125+'Specifieke informatie B'!I81","v":0},{"$f":"Contractinformatie!K67","v":0},""]
[null,null,null," Totaal Code 702",null,null,null,null,null,{"$f":"Kostenverzamelstaat!K145","v":0},{"$f":"Contractinformatie!K79","v":0},{"$f":"IF(J221<>K221,J221-K221,\"\")","v":""}]
[]
[]
[]
[]
[]
[]
[]
[]
[]
[null,null,null,{"$f":"NOW()","v":"2023-03-21T09:46:00.640"},null,null,null,null,null,null,null,{"$f":"CONCATENATE(\"Controleoverzicht \",LOWER(A188))","v":"Controleoverzicht pagina 6"}]

{"sheet":"Blad1","index":10,"n_rows":883,"n_cols":12,"rows_kept":883,"cut":false,"hidden":true,"merged":[]}
[]
[]
[]
[]
[]
[]
[]
[]
[]
[]
[]
[null,null,null,null,"vcd_spec_idvar","vcd_waarde_flt","vcd_waarde_txt","vcd_toelichting_txt","vcd_spec1_idvar","vcd_spec2_idvar","vcd_spec3_idvar","vcd_attrib_idvar"]
[null,null,null,null,"xstaat_kdrwet_id_",{"$f":"0","v":0},"ZVWY","Excel numeriek om te zetten sleutel kdrwet via waarden","xstaat","kdrwet","id",""]
[null,null,null,null,"xstaat_kdrwet_idjmd_",{"$f":"0","v":0},20221231,"Excel numeriek om te zetten sleutel kdrwet periode","xstaat","kdrwet","idjmd",""]
[null,null,null,null,"xstaat_uzovi_filename_",{"$f":"0","v":0},{"$f":"CELL(\"bestandsnaam\")","v":"G:\\verwerk\\vsd_prod\\formats\\jaarstaat\\ZVW\\2022\\[Onbeveiligd format Jaarstaat ZVW 2022 (versie D).xlsm]Controleoverzicht"},"Excel numeriek filenaam bevat ook sleutels","xstaat","uzovi","filename",""]
[null,null,null,null,"xstaat_uzovi_id_",{"$f":"0","v":0},{"$f":"_xlfn.NUMBERVALUE(NAW_gegevens!$B$6)","v":0},"Excel numeriek om te zetten sleutel uzovi","xstaat","uzovi","id",""]
[null,null,null,null,"xstaat_uzovi_idvrs_",{"$f":"0","v":0},"01","Excel numeriek om te zetten sleutel uzovi versie levering","xstaat","uzovi","idvrs",""]
[null,null,null,null,"zvkx01_c__TY0V01",{"$f":"Kostenverzamelstaat!$I$27","v":0}]
[null,null,null,null,"zvkx01_a__TY0V01",{"$f":"Kostenverzamelstaat!$J$27","v":0}]
[null,null,null,null,"zvkx01_c__TY1V01",{"$f":"Kostenverzamelstaat!$K$27","v":0}]
[null,null,null,null,"zvkx01_a__TY1V01",{"$f":"Kostenverzamelstaat!$L$27","v":0}]
[null,null,null,null,"zvkx01_a__TY2V01",{"$f":"Kostenverzamelstaat!$M$27","v":0}]
[null,null,null,null,"zvkx02_c__TY0V01",{"$f":"Kostenverzamelstaat!$I$32","v":0}]
[null,null,null,null,"zvkx02_a__TY0V01",{"$f":"Kostenverzamelstaat!$J$32","v":0}]
[null,null,null,null,"zvkx02_c__TY1V01",{"$f":"Kostenverzamelstaat!$K$32","v":0}]
[null,null,null,null,"zvkx02_a__TY1V01",{"$f":"Kostenverzamelstaat!$L$32","v":0}]
[null,null,null,null,"zvkx02_a__TY2V01",{"$f":"Kostenverzamelstaat!$M$32","v":0}]
[null,null,null,null,"zvkx03_c__TY0V01",{"$f":"Kostenverzamelstaat!$I$37","v":0}]
[null,null,null,null,"zvkx03_a__TY0V01",{"$f":"Kostenverzamelstaat!$J$37","v":0}]
[null,null,null,null,"zvkx03_c__TY1V01",{"$f":"Kostenverzamelstaat!$K$37","v":0}]
[null,null,null,null,"zvkx03_a__TY1V01",{"$f":"Kostenverzamelstaat!$L$37","v":0}]
[null,null,null,null,"zvkx03_a__TY2V01",{"$f":"Kostenverzamelstaat!$M$37","v":0}]
[null,null,null,null,"zvkx04_c__TY0V01",{"$f":"Kostenverzamelstaat!$I$45","v":0}]
[null,null,null,null,"zvkx04_a__TY0V01",{"$f":"Kostenverzamelstaat!$J$45","v":0}]
[null,null,null,null,"zvkx04_c__TY1V01",{"$f":"Kostenverzamelstaat!$K$45","v":0}]
[null,null,null,null,"zvkx04_a__TY1V01",{"$f":"Kostenverzamelstaat!$L$45","v":0}]
[null,null,null,null,"zvkx04_a__TY2V01",{"$f":"Kostenverzamelstaat!$M$45","v":0}]
[null,null,null,null,"zvkx05_c__TY0V01",{"$f":"Kostenverzamelstaat!$I$51","v":0}]
[null,null,null,null,"zvkx05_a__TY0V01",{"$f":"Kostenverzamelstaat!$J$51","v":0}]
[null,null,null,null,"zvkx05_c__TY1V01",{"$f":"Kostenverzamelstaat!$K$51","v":0}]
[null,null,null,null,"zvkx05_a__TY1V01",{"$f":"Kostenverzamelstaat!$L$51","v":0}]
[null,null,null,null,"zvkx05_a__TY2V01",{"$f":"Kostenverzamelstaat!$M$51","v":0}]
[null,null,null,null,"zvkx06_c__TY0V01",{"$f":"Kostenverzamelstaat!$I$78","v":0}]
[null,null,null,null,"zvkx06_a__TY0V01",{"$f":"Kostenverzamelstaat!$J$78","v":0}]
[null,null,null,null,"zvkx06_c__TY1V01",{"$f":"Kostenverzamelstaat!$K$78","v":0}]
[null,null,null,null,"zvkx06_a__TY1V01",{"$f":"Kostenverzamelstaat!$L$78","v":0}]
[null,null,null,null,"zvkx06_a__TY2V01",{"$f":"Kostenverzamelstaat!$M$78","v":0}]
[null,null,null,null,"zvkx07_c__TY0V01",{"$f":"Kostenverzamelstaat!$I$88","v":0}]
[null,null,null,null,"zvkx07_a__TY0V01",{"$f":"Kostenverzamelstaat!$J$88","v":0}]
[null,null,null,null,"zvkx07_c__TY1V01",{"$f":"Kostenverzamelstaat!$K$88","v":0}]
[null,null,null,null,"zvkx07_a__TY1V01",{"$f":"Kostenverzamelstaat!$L$88","v":0}]
[null,null,null,null,"zvkx07_a__TY2V01",{"$f":"Kostenverzamelstaat!M88","v":0}]
[null,null,null,null,"zvkx08_c__TY0V01",{"$f":"Kostenverzamelstaat!$I$93","v":0}]
[null,null,null,null,"zvkx08_a__TY0V01",{"$f":"Kostenverzamelstaat!$J$93","v":0}]
[null,null,null,null,"zvkx08_c__TY1V01",{"$f":"Kostenverzamelstaat!$K$93","v":0}]
[null,null,null,null,"zvkx08_a__TY1V01",{"$f":"Kostenverzamelstaat!$L$93","v":0}]
[null,null,null,null,"zvkx08_a__TY2V01",{"$f":"Kostenverzamelstaat!$M$93","v":0}]
[null,null,null,null,"zvkx09_c__TY0V01",{"$f":"Kostenverzamelstaat!$I$100","v":0}]
[null,null,null,null,"zvkx09_a__TY0V01",{"$f":"Kostenverzamelstaat!$J$100","v":0}]
[null,null,null,null,"zvkx09_c__TY1V01",{"$f":"Kostenverzamelstaat!$K$100","v":0}]
[null,null,null,null,"zvkx09_a__TY1V01",{"$f":"Kostenverzamelstaat!$L$100","v":0}]
[null,null,null,null,"zvkx09_a__TY2V01",{"$f":"Kostenverzamelstaat!$M$100","v":0}]
[null,null,null,null,"zvkx10_c__TY0V01",{"$f":"Kostenverzamelstaat!$I$125","v":0}]
[null,null,null,null,"zvkx10_a__TY0V01",{"$f":"Kostenverzamelstaat!$J$125","v":0}]
[null,null,null,null,"zvkx10_c__TY1V01",{"$f":"Kostenverzamelstaat!$K$125","v":0}]
[null,null,null,null,"zvkx10_a__TY1V01",{"$f":"Kostenverzamelstaat!$L$125","v":0}]
[null,null,null,null,"zvkx10_a__TY2V01",{"$f":"Kostenverzamelstaat!$M$125","v":0}]
[null,null,null,null,"zvkx11_c__TY0V01",{"$f":"Kostenverzamelstaat!$I$136","v":0}]
[null,null,null,null,"zvkx11_a__TY0V01",{"$f":"Kostenverzamelstaat!$J$136","v":0}]
[null,null,null,null,"zvkx11_c__TY1V01",{"$f":"Kostenverzamelstaat!$K$136","v":0}]
[null,null,null,null,"zvkx11_a__TY1V01",{"$f":"Kostenverzamelstaat!$L$136","v":0}]
[null,null,null,null,"zvkx11_a__TY2V01",{"$f":"Kostenverzamelstaat!$M$136","v":0}]
[null,null,null,null,"zvkx12_c__TY0V01",{"$f":"Kostenverzamelstaat!$M$141","v":0}]
[null,null,null,null,"zvkx12_a__TY0V01",{"$f":"Kostenverzamelstaat!$J$141","v":0}]
[null,null,null,null,"zvkx12_c__TY1V01",{"$f":"Kostenverzamelstaat!$K$141","v":0}]
[null,null,null,null,"zvkx12_a__TY1V01",{"$f":"Kostenverzamelstaat!$L$141","v":0}]
[null,null,null,null,"zvkx12_a__TY2V01",{"$f":"Kostenverzamelstaat!$M$141","v":0}]
[null,null,null,null,"zvkx13_c__TY0V01",{"$f":"Kostenverzamelstaat!$I$148","v":0}]
[null,null,null,null,"zvkx13_a__TY0V01",{"$f":"Kostenverzamelstaat!$J$148","v":0}]
[null,null,null,null,"zvkx13_c__TY1V01",{"$f":"Kostenverzamelstaat!$K$148","v":0}]
[null,null,null,null,"zvkx13_a__TY1V01",{"$f":"Kostenverzamelstaat!$L$148","v":0}]
[null,null,null,null,"zvkx13_a__TY2V01",{"$f":"Kostenverzamelstaat!$M$148","v":0}]
[null,null,null,null,"zvkx15_c__TY0V01",{"$f":"Kostenverzamelstaat!$I$152","v":0}]
[null,null,null,null,"zvkx15_a__TY0V01",{"$f":"Kostenverzamelstaat!$J$152","v":0}]
[null,null,null,null,"zvkx15_c__TY1V01",{"$f":"Kostenverzamelstaat!$I$152","v":0}]
[null,null,null,null,"zvkx15_a__TY2V01",{"$f":"Kostenverzamelstaat!$J$152","v":0}]
[null,null,null,null,"zvkx15_a__TY1V01",{"$f":"Kostenverzamelstaat!$J$152","v":0}]
[null,null,null,null,"zvkx16_c__TY0V01",{"$f":"Kostenverzamelstaat!$I$155","v":0}]
[null,null,null,null,"zvkx16_a__TY0V01",{"$f":"Kostenverzamelstaat!$J$155","v":0}]
[null,null,null,null,"zvkx16_c__TY1V01",{"$f":"Kostenverzamelstaat!$K$155","v":0}]
[null,null,null,null,"zvkx16_a__TY1V01",{"$f":"Kostenverzamelstaat!$L$155","v":0}]
[null,null,null,null,"zvkx16_a__TY2V01",{"$f":"Kostenverzamelstaat!$M$155","v":0}]
[null,null,null,null,"zvkx_c__TY0V01",{"$f":"Kostenverzamelstaat!$I$156","v":0}]
[null,null,null,null,"zvkx_a__TY0V01",{"$f":"Kostenverzamelstaat!$J$156","v":0}]
[null,null,null,null,"zvkx_c__TY1V01",{"$f":"Kostenverzamelstaat!$K$156","v":0}]
[null,null,null,null,"zvkx_a__TY1V01",{"$f":"Kostenverzamelstaat!$L$156","v":0}]
[null,null,null,null,"zvkx_a__TY2V01",{"$f":"Kostenverzamelstaat!$M$156","v":0}]
[null,null,null,null,"zvkx01_c503__TY0V01",{"$f":"Kostenverzamelstaat!$I$16","v":0},"","Huisartsen- bijz betalingen- incl balans","zvkx01","c503","","TY0V01"]
[null,null,null,null,"zvkx01_a503__TY0V01",{"$f":"Kostenverzamelstaat!$J$16","v":0},"","Huisartsen- bijz betalingen- geaccepteerd","zvkx01","a503","","TY0V01"]
[null,null,null,null,"zvkx01_c503__TY1V01",{"$f":"Kostenverzamelstaat!$K$16","v":0},"","Huisartsen- bijz betalingen- incl balans","zvkx01","c503","","TY1V01"]
[null,null,null,null,"zvkx01_a503__TY1V01",{"$f":"Kostenverzamelstaat!$L$16","v":0},"","Huisartsen- bijz betalingen- geaccepteerd","zvkx01","a503","","TY1V01"]
[null,null,null,null,"zvkx01_a503__TY2V01",{"$f":"Kostenverzamelstaat!$M$16","v":0},"","Huisartsen- bijz betalingen- geaccepteerd","zvkx01","a503","","TY2V01"]
[null,null,null,null,"zvkx01_c504__TY0V01",{"$f":"Kostenverzamelstaat!$I$17","v":0},"","Huisartsen- bijz diensttijden- incl balans","zvkx01","c504","","TY0V01"]
[null,null,null,null,"zvkx01_a504__TY0V01",{"$f":"Kostenverzamelstaat!$J$17","v":0},"","Huisartsen- bijz diensttijden- geaccepteerd","zvkx01","a504","","TY0V01"]
[null,null,null,null,"zvkx01_c504__TY1V01",{"$f":"Kostenverzamelstaat!$K$17","v":0},"","Huisartsen- bijz diensttijden- incl balans","zvkx01","c504","","TY1V01"]
[null,null,null,null,"zvkx01_a504__TY1V01",{"$f":"Kostenverzamelstaat!$L$17","v":0},"","Huisartsen- bijz diensttijden- geaccepteerd","zvkx01","a504","","TY1V01"]
[null,null,null,null,"zvkx01_a504__TY2V01",{"$f":"Kostenverzamelstaat!$M$17","v":0},"","Huisartsen- bijz diensttijden- geaccepteerd","zvkx01","a504","","TY2V01"]
[null,null,null,null,"zvkx01_c505__TY0V01",{"$f":"Kostenverzamelstaat!$I$18","v":0},"","Huisartsen- Inschrijvingen- incl balans","zvkx01","c505","","TY0V01"]
[null,null,null,null,"zvkx01_a505__TY0V01",{"$f":"Kostenverzamelstaat!$J$18","v":0},"","Huisartsen- Inschrijvingen- geaccepteerd","zvkx01","a505","","TY0V01"]
[null,null,null,null,"zvkx01_c505__TY1V01",{"$f":"Kostenverzamelstaat!$K$18","v":0},"","Huisartsen- Inschrijvingen- incl balans","zvkx01","c505","","TY1V01"]
[null,null,null,null,"zvkx01_a505__TY1V01",{"$f":"Kostenverzamelstaat!$L$18","v":0},"","Huisartsen- Inschrijvingen- geaccepteerd","zvkx01","a505","","TY1V01"]
[null,null,null,null,"zvkx01_a505__TY2V01",{"$f":"Kostenverzamelstaat!$M$18","v":0},"","Huisartsen- Inschrijvingen- geaccepteerd","zvkx01","a505","","TY2V01"]
[null,null,null,null,"zvkx01_c506__TY0V01",{"$f":"Kostenverzamelstaat!$I$19","v":0},"","Huisartsen- Consult- incl balans","zvkx01","c506","","TY0V01"]
[null,null,null,null,"zvkx01_a506__TY0V01",{"$f":"Kostenverzamelstaat!$J$19","v":0},"","Huisartsen- Consult- geaccepteerd","zvkx01","a506","","TY0V01"]
[null,null,null,null,"zvkx01_c506__TY1V01",{"$f":"Kostenverzamelstaat!$K$19","v":0},"","Huisartsen- Consult- incl balans","zvkx01","c506","","TY1V01"]
[null,null,null,null,"zvkx01_a506__TY1V01",{"$f":"Kostenverzamelstaat!$L$19","v":0},"","Huisartsen- Consult- geaccepteerd","zvkx01","a506","","TY1V01"]
[null,null,null,null,"zvkx01_a506__TY2V01",{"$f":"Kostenverzamelstaat!$M$19","v":0},"","Huisartsen- Consult- geaccepteerd","zvkx01","a506","","TY2V01"]
[null,null,null,null,"zvkx01_a507__TY0V01",{"$f":"Kostenverzamelstaat!$J$20","v":0},"","Huisartsen- Overige- geaccepteerd","zvkx01","a507","","TY0V01"]
[null,null,null,null,"zvkx01_c507__TY0V01",{"$f":"Kostenverzamelstaat!$I$20","v":0},"","Huisartsen- Overige- incl balans","zvkx01","c507","","TY0V01"]
[null,null,null,null,"zvkx01_c507__TY1V01",{"$f":"Kostenverzamelstaat!$K$20","v":0},"","Huisartsen- Overige- incl balans","zvkx01","c507","","TY1V01"]
[null,null,null,null,"zvkx01_a507__TY1V01",{"$f":"Kostenverzamelstaat!$L$20","v":0},"","Huisartsen- Overige- geaccepteerd","zvkx01","a507","","TY1V01"]
[null,null,null,null,"zvkx01_a507__TY2V01",{"$f":"Kostenverzamelstaat!$M$20","v":0},"","Huisartsen- Overige- geaccepteerd","zvkx01","a507","","TY2V01"]
[null,null,null,null,"zvkx01_c510__TY0V01",{"$f":"Kostenverzamelstaat!$I$21","v":0},"","Huisartsen- MDZ- incl balans","zvkx01","c510","","TY0V01"]
[null,null,null,null,"zvkx01_a510__TY0V01",{"$f":"Kostenverzamelstaat!$J$21","v":0},"","Huisartsen- MDZ- geaccepteerd","zvkx01","a510","","TY0V01"]
[null,null,null,null,"zvkx01_c510__TY1V01",{"$f":"Kostenverzamelstaat!$K$21","v":0},"","Huisartsen- MDZ- incl balans","zvkx01","c510","","TY1V01"]
[null,null,null,null,"zvkx01_a510__TY1V01",{"$f":"Kostenverzamelstaat!$L$21","v":0},"","Huisartsen- MDZ- geaccepteerd","zvkx01","a510","","TY1V01"]
[null,null,null,null,"zvkx01_a510__TY2V01",{"$f":"Kostenverzamelstaat!$M$21","v":0},"","Huisartsen- MDZ- geaccepteerd","zvkx01","a510","","TY2V01"]
[null,null,null,null,"zvkx01_c515__TY0V01",{"$f":"Kostenverzamelstaat!$I$22","v":0},"","Huisartsen- Resultaatbel. huisartsen- incl balans","zvkx01","c515","","TY0V01"]
[null,null,null,null,"zvkx01_a515__TY0V01",{"$f":"Kostenverzamelstaat!$J$22","v":0},"","Huisartsen- Resultaatbel. huisartsen- geaccepteerd","zvkx01","a515","","TY0V01"]
[null,null,null,null,"zvkx01_c515__TY1V01",{"$f":"Kostenverzamelstaat!$K$22","v":0},"","Huisartsen- Resultaatbel. huisartsen- incl balans","zvkx01","c515","","TY1V01"]
[null,null,null,null,"zvkx01_a515__TY1V01",{"$f":"Kostenverzamelstaat!$L$22","v":0},"","Huisartsen- Resultaatbel. huisartsen- geaccepteerd","zvkx01","a515","","TY1V01"]
[null,null,null,null,"zvkx01_a515__TY2V01",{"$f":"Kostenverzamelstaat!$M$22","v":0},"","Huisartsen- Resultaatbel. huisartsen- geaccepteerd","zvkx01","a515","","TY2V01"]
[null,null,null,null,"zvkx01_c516__TY0V01",{"$f":"Kostenverzamelstaat!$I$23","v":0},"","Huisartsen- Resultaatbel. MDZ- incl balans","zvkx01","c516","","TY0V01"]
[null,null,null,null,"zvkx01_a516__TY0V01",{"$f":"Kostenverzamelstaat!$J$23","v":0},"","Huisartsen- Resultaatbel. MDZ- geaccepteerd","zvkx01","a516","","TY0V01"]
[null,null,null,null,"zvkx01_c516__TY1V01",{"$f":"Kostenverzamelstaat!$K$23","v":0},"","Huisartsen- Resultaatbel. MDZ- incl balans","zvkx01","c516","","TY1V01"]
[null,null,null,null,"zvkx01_a516__TY1V01",{"$f":"Kostenverzamelstaat!$L$23","v":0},"","Huisartsen- Resultaatbel. MDZ- geaccepteerd","zvkx01","a516","","TY1V01"]
[null,null,null,null,"zvkx01_a516__TY2V01",{"$f":"Kostenverzamelstaat!$M$23","v":0},"","Huisartsen- Resultaatbel. MDZ- geaccepteerd","zvkx01","a516","","TY2V01"]
[null,null,null,null,"zvkx01_a8011__TY2V01",{"$f":"Kostenverzamelstaat!$M$24","v":0},null,"Huisartsen- Meerkosten COVID-19, indirect- geaccepteerd","zvkx01","c8011",null,"TY2V01"]
[null,null,null,null,"zvkx01_a8012__TY2V01",{"$f":"Kostenverzamelstaat!$M$25","v":0},null,"Huisartsen-  Meerkosten COVID-19, toeslagen- geaccepteerd","zvkx01","c8012",null,"TY2V01"]
[null,null,null,null,"zvkx01_c821__TY1V01",{"$f":"Kostenverzamelstaat!$K$26","v":0},null,"Huisartsen- Netto continuïteitsbijdrage COVID (basisverzekering)- incl balans","zvkx01","c821",null,"TY1V01"]
[null,null,null,null,"zvkx01_a821__TY1V01",{"$f":"Kostenverzamelstaat!$L$26","v":0},null,"Huisartsen- Netto continuïteitsbijdrage COVID (basisverzekering)- geaccepteerd","zvkx01","a821",null,"TY2V01"]
[null,null,null,null,"zvkx01_a821__TY2V01",{"$f":"Kostenverzamelstaat!$M$26","v":0},null,"Huisartsen- Netto continuïteitsbijdrage COVID (basisverzekering)- geaccepteerd","zvkx01","a821",null,"TY2V01"]
[null,null,null,null,"zvkx02_c520__TY0V01",{"$f":"Kostenverzamelstaat!$I$29","v":0},"","Farmaceutische hulp- incl balans","zvkx02","c520","","TY0V01"]
[null,null,null,null,"zvkx02_a520__TY0V01",{"$f":"Kostenverzamelstaat!$J$29","v":0},"","Farmaceutische hulp- geaccepteerd","zvkx02","a520","","TY0V01"]
[null,null,null,null,"zvkx02_c520__TY1V01",{"$f":"Kostenverzamelstaat!$K$29","v":0},"","Farmaceutische hulp- incl balans","zvkx02","c520","","TY1V01"]
[null,null,null,null,"zvkx02_a520__TY1V01",{"$f":"Kostenverzamelstaat!$L$29","v":0},"","Farmaceutische hulp- geaccepteerd","zvkx02","a520","","TY1V01"]
[null,null,null,null,"zvkx02_a520__TY2V01",{"$f":"Kostenverzamelstaat!$M$29","v":0},"","Farmaceutische hulp- geaccepteerd","zvkx02","a520","","TY2V01"]
[null,null,null,null,"zvkx02_a8021__TY2V01",{"$f":"Kostenverzamelstaat!$M$30","v":0},null,"Farmaceutische hulp- Meerkosten COVID-19, indirect- geaccepteerd","zvkx02","a8021",null,"TY2V01"]
[null,null,null,null,"zvkx02_c822__TY1V01",{"$f":"Kostenverzamelstaat!$K$31","v":0},null,"Farmaceutische hulp- Netto continuïteitsbijdrage COVID (basisverzekering)- incl balans","zvkx02","c822",null,"TY1V01"]
[null,null,null,null,"zvkx02_a822__TY1V01",{"$f":"Kostenverzamelstaat!$L$31","v":0},null,"Farmaceutische hulp- Netto continuïteitsbijdrage COVID (basisverzekering)- geaccepteerd","zvkx02","a822",null,"TY2V01"]
[null,null,null,null,"zvkx02_a822__TY2V01",{"$f":"Kostenverzamelstaat!$M$31","v":0},null,"Farmaceutische hulp- Netto continuïteitsbijdrage COVID (basisverzekering)- geaccepteerd","zvkx02","a822",null,"TY2V01"]
[null,null,null,null,"zvkx03_c530__TY0V01",{"$f":"Kostenverzamelstaat!$I$34","v":0},"","Verpleging en verzorging- incl balans","zvkx03","c530","","TY0V01"]
[null,null,null,null,"zvkx03_a530__TY0V01",{"$f":"Kostenverzamelstaat!$J$34","v":0},"","Verpleging en verzorging- geaccepteerd","zvkx03","a530","","TY0V01"]
[null,null,null,null,"zvkx03_c530__TY1V01",{"$f":"Kostenverzamelstaat!$K$34","v":0},"","Verpleging en verzorging- incl balans","zvkx03","c530","","TY1V01"]
[null,null,null,null,"zvkx03_a530__TY1V01",{"$f":"Kostenverzamelstaat!$L$34","v":0},"","Verpleging en verzorging- geaccepteerd","zvkx03","a530","","TY1V01"]
[null,null,null,null,"zvkx03_a530__TY2V01",{"$f":"Kostenverzamelstaat!$M$34","v":0},"","Verpleging en verzorging- geaccepteerd","zvkx03","a530","","TY2V01"]
[null,null,null,null,"zvkx03_c8031__TY0V01",{"$f":"Kostenverzamelstaat!$I$35","v":0},null,"Verpleging en verzorging-  Meerkosten COVID-19, indirect- incl balans","zvkx03","c8031",null,"TY0V01"]
[null,null,null,null,"zvkx03_a8031__TY0V01",{"$f":"Kostenverzamelstaat!$J$35","v":0},null,"Verpleging en verzorging-  Meerkosten COVID-19, indirect- geaccepteerd","zvkx03","a8031",null,"TY0V01"]
[null,null,null,null,"zvkx03_a8031__TY2V01",{"$f":"Kostenverzamelstaat!$M$35","v":0},null,"Verpleging en verzorging-  Meerkosten COVID-19, indirect- geaccepteerd","zvkx03","a8031",null,"TY2V01"]
[null,null,null,null,"zvkx03_c823__TY1V01",{"$f":"Kostenverzamelstaat!$K$36","v":0},null,"Verpleging en verzorging- Netto continuïteitsbijdrage COVID (basisverzekering)- incl balans","zvkx03","c823",null,"TY1V01"]
[null,null,null,null,"zvkx03_a823__TY1V01",{"$f":"Kostenverzamelstaat!$L$36","v":0},null,"Verpleging en verzorging- Netto continuïteitsbijdrage COVID (basisverzekering)- geaccepteerd","zvkx03","a823",null,"TY1V01"]
[null,null,null,null,"zvkx03_a823__TY2V01",{"$f":"Kostenverzamelstaat!$M$36","v":0},null,"Verpleging en verzorging- Netto continuïteitsbijdrage COVID (basisverzekering)- geaccepteerd","zvkx03","a823",null,"TY2V01"]
[null,null,null,null,"zvkx04_c5601__TY0V01",{"$f":"Kostenverzamelstaat!$I$39","v":0},"","Mondzorg- volwassen verzekerden- incl balans","zvkx04","c5601","","TY0V01"]
[null,null,null,null,"zvkx04_a5601__TY0V01",{"$f":"Kostenverzamelstaat!$J$39","v":0},"","Mondzorg- volwassen verzekerden- geaccepteerd","zvkx04","a5601","","TY0V01"]
[null,null,null,null,"zvkx04_c5601__TY1V01",{"$f":"Kostenverzamelstaat!$K$39","v":0},"","Mondzorg- volwassen verzekerden- incl balans","zvkx04","c5601","","TY1V01"]
[null,null,null,null,"zvkx04_a5601__TY1V01",{"$f":"Kostenverzamelstaat!$L$39","v":0},"","Mondzorg- volwassen verzekerden- geaccepteerd","zvkx04","a5601","","TY1V01"]
[null,null,null,null,"zvkx04_a5601__TY2V01",{"$f":"Kostenverzamelstaat!$M$39","v":0},"","Mondzorg- volwassen verzekerden- geaccepteerd","zvkx04","a5601","","TY2V01"]
[null,null,null,null,"zvkx04_c5602__TY0V01",{"$f":"Kostenverzamelstaat!$I$40","v":0},"","Mondzorg- jeugdige verzekerden- incl balans","zvkx04","c5602","","TY0V01"]
[null,null,null,null,"zvkx04_a5602__TY0V01",{"$f":"Kostenverzamelstaat!$J$40","v":0},"","Mondzorg- jeugdige verzekerden- geaccepteerd","zvkx04","a5602","","TY0V01"]
[null,null,null,null,"zvkx04_a5602__TY1V01",{"$f":"Kostenverzamelstaat!$L$40","v":0},"","Mondzorg- jeugdige verzekerden- geaccepteerd","zvkx04","a5602","","TY1V01"]
[null,null,null,null,"zvkx04_c5602__TY1V01",{"$f":"Kostenverzamelstaat!$K$40","v":0},"","Mondzorg- jeugdige verzekerden- incl balans","zvkx04","c5602","","TY1V01"]
[null,null,null,null,"zvkx04_a5602__TY2V01",{"$f":"Kostenverzamelstaat!$M$40","v":0},"","Mondzorg- jeugdige verzekerden- geaccepteerd","zvkx04","a5602","","TY2V01"]
[null,null,null,null,"zvkx04_c561__TY0V01",{"$f":"Kostenverzamelstaat!$I$41","v":0},"","Mondzorg- gebitsprothesen- incl balans","zvkx04","c561","","TY0V01"]
[null,null,null,null,"zvkx04_a561__TY0V01",{"$f":"Kostenverzamelstaat!$J$41","v":0},"","Mondzorg- gebitsprothesen- geaccepteerd","zvkx04","a561","","TY0V01"]
[null,null,null,null,"zvkx04_c561__TY1V01",{"$f":"Kostenverzamelstaat!$K$41","v":0},"","Mondzorg- gebitsprothesen- incl balans","zvkx04","c561","","TY1V01"]
[null,null,null,null,"zvkx04_a561__TY1V01",{"$f":"Kostenverzamelstaat!$L$41","v":0},"","Mondzorg- gebitsprothesen- geaccepteerd","zvkx04","a561","","TY1V01"]
[null,null,null,null,"zvkx04_a561__TY2V01",{"$f":"Kostenverzamelstaat!$M$41","v":0},"","Mondzorg- gebitsprothesen- geaccepteerd","zvkx04","a561","","TY2V01"]
[null,null,null,null,"zvkx04_a8041__TY2V01",{"$f":"Kostenverzamelstaat!$M$42","v":0},null,"Mondzorg- Meerkosten COVID-19, indirect- geaccepteerd","zvkx04","a8041",null,"TY2V01"]
[null,null,null,null,"zvkx04_a8042__TY2V01",{"$f":"Kostenverzamelstaat!$M$43","v":0},null,"Mondzorg- Meerkosten COVID-19, toeslagen-geaccepteerd","zvkx04","c8042",null,"TY2V01"]
[null,null,null,null,"zvkx04_c824__TY1V01",{"$f":"Kostenverzamelstaat!$K$44","v":0},null,"Mondzorg- Netto continuïteitsbijdrage COVID (basisverzekering)- incl balans","zvkx04","c824",null,"TY1V01"]
[null,null,null,null,"zvkx04_a824__TY1V01",{"$f":"Kostenverzamelstaat!$L$44","v":0},null,"Mondzorg- Netto continuïteitsbijdrage COVID (basisverzekering)-geaccepteerd","zvkx04","c824",null,"TY1V01"]
[null,null,null,null,"zvkx04_a824__TY2V01",{"$f":"Kostenverzamelstaat!$M$44","v":0},null,"Mondzorg- Netto continuïteitsbijdrage COVID (basisverzekering)-geaccepteerd","zvkx04","c824",null,"TY2V01"]
[null,null,null,null,"zvkx05_c580__TY0V01",{"$f":"Kostenverzamelstaat!$I$47","v":0},"","Verloskundige hulp- door verloskundigen- incl balans","zvkx05","c580","","TY0V01"]
[null,null,null,null,"zvkx05_a580__TY0V01",{"$f":"Kostenverzamelstaat!$J$47","v":0},"","Verloskundige hulp- door verloskundigen- geaccepteerd","zvkx05","a580","","TY0V01"]
[null,null,null,null,"zvkx05_c580__TY1V01",{"$f":"Kostenverzamelstaat!$K$47","v":0},"","Verloskundige hulp- door verloskundigen- incl balans","zvkx05","c580","","TY1V01"]
[null,null,null,null,"zvkx05_a580__TY1V01",{"$f":"Kostenverzamelstaat!$L$47","v":0},"","Verloskundige hulp- door verloskundigen- geaccepteerd","zvkx05","a580","","TY1V01"]
[null,null,null,null,"zvkx05_a580__TY2V01",{"$f":"Kostenverzamelstaat!$M$47","v":0},"","Verloskundige hulp- door verloskundigen- geaccepteerd","zvkx05","a580","","TY2V01"]
[null,null,null,null,"zvkx05_c582__TY0V01",{"$f":"Kostenverzamelstaat!$I$48","v":0},"","Verloskundige hulp- Integrale geboortezorg- incl balans","zvkx05","c582","","TY0V01"]
[null,null,null,null,"zvkx05_a582__TY0V01",{"$f":"Kostenverzamelstaat!$J$48","v":0},"","Verloskundige hulp- Integrale geboortezorg- geaccepteerd","zvkx05","a582","","TY0V01"]
[null,null,null,null,"zvkx05_c582__TY1V01",{"$f":"Kostenverzamelstaat!$K$48","v":0},"","Verloskundige hulp- Integrale geboortezorg- incl balans","zvkx05","c582","","TY1V01"]
[null,null,null,null,"zvkx05_a582__TY1V01",{"$f":"Kostenverzamelstaat!$L$48","v":0},"","Verloskundige hulp- Integrale geboortezorg- geaccepteerd","zvkx05","a582","","TY1V01"]
[null,null,null,null,"zvkx05_a582__TY2V01",{"$f":"Kostenverzamelstaat!$M$48","v":0},"","Verloskundige hulp- Integrale geboortezorg- geaccepteerd","zvkx05","a582","","TY2V01"]
[null,null,null,null,"zvkx05_a8051__TY2V01",{"$f":"Kostenverzamelstaat!$M$49","v":0},null,"Verloskundige hulp- Meerkosten COVID-19, indirect- geaccepteerd","zvkx05","c8051",null,"TY2V01"]
[null,null,null,null,"zvkx05_c825__TY1V01",{"$f":"Kostenverzamelstaat!$K$50","v":0},null,"Verloskundige hulp- Netto continuïteitsbijdrage COVID (basisverzekering)- incl balans","zvkx05","c825",null,"TY1V01"]
[null,null,null,null,"zvkx05_a825__TY1V01",{"$f":"Kostenverzamelstaat!$L$50","v":0},null,"Verloskundige hulp- Netto continuïteitsbijdrage COVID (basisverzekering)- geaccepteerd","zvkx05","a825",null,"TY1V01"]
[null,null,null,null,"zvkx05_a825__TY2V01",{"$f":"Kostenverzamelstaat!$M$50","v":0},null,"Verloskundige hulp- Netto continuïteitsbijdrage COVID (basisverzekering)- geaccepteerd","zvkx05","a825",null,"TY2V01"]
[null,null,null,null,"zvkx06_c545__TY0V01",{"$f":"Kostenverzamelstaat!$I$67","v":0},"","Medisch specialistische hulp- mondziekten en kaakchirurgie- incl balans","zvkx06","c545","","TY0V01"]
[null,null,null,null,"zvkx06_a545__TY0V01",{"$f":"Kostenverzamelstaat!$J$67","v":0},"","Medisch specialistische hulp- mondziekten en kaakchirurgie- geaccepteerd","zvkx06","a545","","TY0V01"]
[null,null,null,null,"zvkx06_c545__TY1V01",{"$f":"Kostenverzamelstaat!$K$67","v":0},"","Medisch specialistische hulp- mondziekten en kaakchirurgie- incl balans","zvkx06","c545","","TY1V01"]
[null,null,null,null,"zvkx06_a545__TY1V01",{"$f":"Kostenverzamelstaat!$L$67","v":0},"","Medisch specialistische hulp- mondziekten en kaakchirurgie- geaccepteerd","zvkx06","a545","","TY1V01"]
[null,null,null,null,"zvkx06_a545__TY2V01",{"$f":"Kostenverzamelstaat!$M$67","v":0},"","Medisch specialistische hulp- mondziekten en kaakchirurgie- geaccepteerd","zvkx06","a545","","TY2V01"]
[null,null,null,null,"zvkx06_c610__TY0V01",{"$f":"Kostenverzamelstaat!$I$68","v":0},"","Medisch specialistische hulp- Overige ziekenhuiszorg,curatief- incl balans","zvkx06","c610","","TY0V01"]
[null,null,null,null,"zvkx06_a610__TY0V01",{"$f":"Kostenverzamelstaat!$J$68","v":0},"","Medisch specialistische hulp- Overige ziekenhuiszorg,curatief- geaccepteerd","zvkx06","a610","","TY0V01"]
[null,null,null,null,"zvkx06_c610__TY1V01",{"$f":"Kostenverzamelstaat!$K$68","v":0},"","Medisch specialistische hulp- Overige ziekenhuiszorg,curatief- incl balans","zvkx06","c610","","TY1V01"]
[null,null,null,null,"zvkx06_a610__TY1V01",{"$f":"Kostenverzamelstaat!$L$68","v":0},"","Medisch specialistische hulp- Overige ziekenhuiszorg,curatief- geaccepteerd","zvkx06","a610","","TY1V01"]
[null,null,null,null,"zvkx06_a610__TY2V01",{"$f":"Kostenverzamelstaat!$M$68","v":0},"","Medisch specialistische hulp- Overige ziekenhuiszorg,curatief- geaccepteerd","zvkx06","a610","","TY2V01"]
[null,null,null,null,"zvkx06_c611__TY0V01",{"$f":"Kostenverzamelstaat!$I$69","v":0},"","Medisch specialistische hulp- Overige zorg- incl balans","zvkx06","c611","","TY0V01"]
[null,null,null,null,"zvkx06_a611__TY0V01",{"$f":"Kostenverzamelstaat!$J$69","v":0},"","Medisch specialistische hulp- Overige zorg- geaccepteerd","zvkx06","a611","","TY0V01"]
[null,null,null,null,"zvkx06_c611__TY1V01",{"$f":"Kostenverzamelstaat!$K$69","v":0},"","Medisch specialistische hulp- Overige zorg- incl balans","zvkx06","c611","","TY1V01"]
[null,null,null,null,"zvkx06_a611__TY1V01",{"$f":"Kostenverzamelstaat!$L$69","v":0},"","Medisch specialistische hulp- Overige zorg- geaccepteerd","zvkx06","a611","","TY1V01"]
[null,null,null,null,"zvkx06_a611__TY2V01",{"$f":"Kostenverzamelstaat!$M$69","v":0},"","Medisch specialistische hulp- Overige zorg- geaccepteerd","zvkx06","a611","","TY2V01"]
[null,null,null,null,"zvkx06_c6121__TY0V01",{"$f":"Kostenverzamelstaat!$I$70","v":0},"","Medisch specialistische hulp- add-on's Dure geneesmiddelen- incl balans","zvkx06","c6121","","TY0V01"]
[null,null,null,null,"zvkx06_a6121__TY0V01",{"$f":"Kostenverzamelstaat!$J$70","v":0},"","Medisch specialistische hulp- add-on's Dure geneesmiddelen- geaccepteerd","zvkx06","a6121","","TY0V01"]
[null,null,null,null,"zvkx06_c6121__TY1V01",{"$f":"Kostenverzamelstaat!$K$70","v":0},"","Medisch specialistische hulp- add-on's Dure geneesmiddelen- incl balans","zvkx06","c6121","","TY1V01"]
[null,null,null,null,"zvkx06_a6121__TY1V01",{"$f":"Kostenverzamelstaat!$L$70","v":0},"","Medisch specialistische hulp- add-on's Dure geneesmiddelen- geaccepteerd","zvkx06","a6121","","TY1V01"]
[null,null,null,null,"zvkx06_a6121__TY2V01",{"$f":"Kostenverzamelstaat!$M$70","v":0},"","Medisch specialistische hulp- add-on's Dure geneesmiddelen- geaccepteerd","zvkx06","a6121","","TY2V01"]
[null,null,null,null,"zvkx06_c6122__TY0V01",{"$f":"Kostenverzamelstaat!$I$71","v":0},"","Medisch specialistische hulp- IC- incl balans","zvkx06","c6122","","TY0V01"]
[null,null,null,null,"zvkx06_a6122__TY0V01",{"$f":"Kostenverzamelstaat!$J$71","v":0},"","Medisch specialistische hulp- IC- geaccepteerd","zvkx06","a6122","","TY0V01"]
[null,null,null,null,"zvkx06_c6122__TY1V01",{"$f":"Kostenverzamelstaat!$K$71","v":0},"","Medisch specialistische hulp- IC- incl balans","zvkx06","c6122","","TY1V01"]
[null,null,null,null,"zvkx06_a6122__TY1V01",{"$f":"Kostenverzamelstaat!$L$71","v":0},"","Medisch specialistische hulp- IC- geaccepteerd","zvkx06","a6122","","TY1V01"]
[null,null,null,null,"zvkx06_a6122__TY2V01",{"$f":"Kostenverzamelstaat!$M$71","v":0},"","Medisch specialistische hulp- IC- geaccepteerd","zvkx06","a6122","","TY2V01"]
[null,null,null,null,"zvkx06_c6131__TY0V01",{"$f":"Kostenverzamelstaat!$I$72","v":0},"","Medisch specialistische hulp- Integraal DBC-zorgproduct gereguleerd- incl balans","zvkx06","c6131","","TY0V01"]
[null,null,null,null,"zvkx06_a6131__TY0V01",{"$f":"Kostenverzamelstaat!$J$72","v":0},"","Medisch specialistische hulp- Integraal DBC-zorgproduct gereguleerd- geaccepteerd","zvkx06","a6131","","TY0V01"]
[null,null,null,null,"zvkx06_c6131__TY1V01",{"$f":"Kostenverzamelstaat!$K$72","v":0},"","Medisch specialistische hulp- Integraal DBC-zorgproduct gereguleerd- incl balans","zvkx06","c6131","","TY1V01"]
[null,null,null,null,"zvkx06_a6131__TY1V01",{"$f":"Kostenverzamelstaat!$L$72","v":0},"","Medisch specialistische hulp- Integraal DBC-zorgproduct gereguleerd- geaccepteerd","zvkx06","a6131","","TY1V01"]
[null,null,null,null,"zvkx06_a6131__TY2V01",{"$f":"Kostenverzamelstaat!$M$72","v":0},"","Medisch specialistische hulp- Integraal DBC-zorgproduct gereguleerd- geaccepteerd","zvkx06","a6131","","TY2V01"]
[null,null,null,null,"zvkx06_c6151__TY0V01",{"$f":"Kostenverzamelstaat!$I$73","v":0},"","Medisch specialistische hulp- Integraal DBC-zorgproduct vrije segment- incl balans","zvkx06","c6151","","TY0V01"]
[null,null,null,null,"zvkx06_a6151__TY0V01",{"$f":"Kostenverzamelstaat!$J$73","v":0},"","Medisch specialistische hulp- Integraal DBC-zorgproduct vrije segment- geaccepteerd","zvkx06","a6151","","TY0V01"]
[null,null,null,null,"zvkx06_c6151__TY1V01",{"$f":"Kostenverzamelstaat!$K$73","v":0},"","Medisch specialistische hulp- Integraal DBC-zorgproduct vrije segment- incl balans","zvkx06","c6151","","TY1V01"]
[null,null,null,null,"zvkx06_a6151__TY1V01",{"$f":"Kostenverzamelstaat!$L$73","v":0},"","Medisch specialistische hulp- Integraal DBC-zorgproduct vrije segment- geaccepteerd","zvkx06","a6151","","TY1V01"]
[null,null,null,null,"zvkx06_a6151__TY2V01",{"$f":"Kostenverzamelstaat!$M$73","v":0},"","Medisch specialistische hulp- Integraal DBC-zorgproduct vrije segment- geaccepteerd","zvkx06","a6151","","TY2V01"]
[null,null,null,null,"zvkx06_c619__TY0V01",{"$f":"Kostenverzamelstaat!$I$74","v":0},"","Medisch specialistische hulp- honoraria extramuraal- incl balans","zvkx06","c619","","TY0V01"]
[null,null,null,null,"zvkx06_a619__TY0V01",{"$f":"Kostenverzamelstaat!$J$74","v":0},"","Medisch specialistische hulp- honoraria extramuraal- geaccepteerd","zvkx06","a619","","TY0V01"]
[null,null,null,null,"zvkx06_a619__TY1V01",{"$f":"Kostenverzamelstaat!$L$74","v":0},"","Medisch specialistische hulp- honoraria extramuraal- geaccepteerd","zvkx06","a619","","TY1V01"]
[null,null,null,null,"zvkx06_c619__TY1V01",{"$f":"Kostenverzamelstaat!$K$74","v":0},"","Medisch specialistische hulp- honoraria extramuraal- incl balans","zvkx06","c619","","TY1V01"]
[null,null,null,null,"zvkx06_a619__TY2V01",{"$f":"Kostenverzamelstaat!$M$74","v":0},"","Medisch specialistische hulp- honoraria extramuraal- geaccepteerd","zvkx06","a619","","TY2V01"]
[null,null,null,null,"zvkx06_c8061__TY0V01",{"$f":"Kostenverzamelstaat!$I$75","v":0},null,"Medisch specialistische hulp- Meerkosten COVID-19, indirect- incl balans","zvkx06","c8061",null,"TY0V01"]
[null,null,null,null,"zvkx06_a8061__TY0V01",{"$f":"Kostenverzamelstaat!$J$75","v":0},null,"Medisch specialistische hulp- Meerkosten COVID-19, indirect- geaccepteerd","zvkx06","a8061",null,"TY0V01"]
[null,null,null,null,"zvkx06_a8061__TY2V01",{"$f":"Kostenverzamelstaat!$M$75","v":0},null,"Medisch specialistische hulp- Meerkosten COVID-19, indirect- geaccepteerd","zvkx06","a8061",null,"TY2V01"]
[null,null,null,null,"zvkx06_c8062__TY0V01",{"$f":"Kostenverzamelstaat!$I$76","v":0},null,"Medisch specialistische hulp- Meerkosten COVID-19, toeslagen- incl balans","zvkx06","c8062",null,"TY0V01"]
[null,null,null,null,"zvkx06_a8062__TY0V01",{"$f":"Kostenverzamelstaat!$J$76","v":0},null,"Medisch specialistische hulp- Meerkosten COVID-19, toeslagen- geaccepteerd","zvkx06","a8062",null,"TY0V01"]
[null,null,null,null,"zvkx06_c826__TY1V01",{"$f":"Kostenverzamelstaat!$K$77","v":0},null,"Medisch specialistische hulp- Netto continuïteitsbijdrage COVID (basisverzekering)- incl balans","zvkx06","c826",null,"TY1V01"]
[null,null,null,null,"zvkx06_a826__TY1V01",{"$f":"Kostenverzamelstaat!$L$77","v":0},null,"Medisch specialistische hulp- Netto continuïteitsbijdrage COVID (basisverzekering)- geaccepteerd","zvkx06","a826",null,"TY1V01"]
[null,null,null,null,"zvkx06_a826__TY2V01",{"$f":"Kostenverzamelstaat!$M$77","v":0},null,"Medisch specialistische hulp- Netto continuïteitsbijdrage COVID (basisverzekering)- geaccepteerd","zvkx06","a826",null,"TY2V01"]
[null,null,null,null,"zvkx07_c620__TY0V01",{"$f":"Kostenverzamelstaat!$I$80","v":0},"","Paramedische hulp- fysiotherapie- incl balans","zvkx07","c620","","TY0V01"]
[null,null,null,null,"zvkx07_a620__TY0V01",{"$f":"Kostenverzamelstaat!$J$80","v":0},"","Paramedische hulp- fysiotherapie- geaccepteerd","zvkx07","a620","","TY0V01"]
[null,null,null,null,"zvkx07_c620__TY1V01",{"$f":"Kostenverzamelstaat!$K$80","v":0},"","Paramedische hulp- fysiotherapie- incl balans","zvkx07","c620","","TY1V01"]
[null,null,null,null,"zvkx07_a620__TY1V01",{"$f":"Kostenverzamelstaat!$L$80","v":0},"","Paramedische hulp- fysiotherapie- geaccepteerd","zvkx07","a620","","TY1V01"]
[null,null,null,null,"zvkx07_a620__TY2V01",{"$f":"Kostenverzamelstaat!$M$80","v":0},"","Paramedische hulp- fysiotherapie- geaccepteerd","zvkx07","a620","","TY2V01"]
[null,null,null,null,"zvkx07_c621__TY0V01",{"$f":"Kostenverzamelstaat!$I$81","v":0},"","Paramedische hulp- Mensendieck/Cesar- incl balans","zvkx07","c621","","TY0V01"]
[null,null,null,null,"zvkx07_a621__TY0V01",{"$f":"Kostenverzamelstaat!$J$81","v":0},"","Paramedische hulp- Mensendieck/Cesar- geaccepteerd","zvkx07","a621","","TY0V01"]
[null,null,null,null,"zvkx07_c621__TY1V01",{"$f":"Kostenverzamelstaat!$K$81","v":0},"","Paramedische hulp- Mensendieck/Cesar- incl balans","zvkx07","c621","","TY1V01"]
[null,null,null,null,"zvkx07_a621__TY1V01",{"$f":"Kostenverzamelstaat!$L$81","v":0},"","Paramedische hulp- Mensendieck/Cesar- geaccepteerd","zvkx07","a621","","TY1V01"]
[null,null,null,null,"zvkx07_a621__TY2V01",{"$f":"Kostenverzamelstaat!$M$81","v":0},"","Paramedische hulp- Mensendieck/Cesar- geaccepteerd","zvkx07","a621","","TY2V01"]
[null,null,null,null,"zvkx07_c623__TY0V01",{"$f":"Kostenverzamelstaat!$I$82","v":0},"","Paramedische hulp- logopedie- incl balans","zvkx07","c623","","TY0V01"]
[null,null,null,null,"zvkx07_a623__TY0V01",{"$f":"Kostenverzamelstaat!$J$82","v":0},"","Paramedische hulp- logopedie- geaccepteerd","zvkx07","a623","","TY0V01"]
[null,null,null,null,"zvkx07_c623__TY1V01",{"$f":"Kostenverzamelstaat!$K$82","v":0},"","Paramedische hulp- logopedie- incl balans","zvkx07","c623","","TY1V01"]
[null,null,null,null,"zvkx07_a623__TY1V01",{"$f":"Kostenverzamelstaat!$L$82","v":0},"","Paramedische hulp- logopedie- geaccepteerd","zvkx07","a623","","TY1V01"]
[null,null,null,null,"zvkx07_a623__TY2V01",{"$f":"Kostenverzamelstaat!$M$82","v":0},"","Paramedische hulp- logopedie- geaccepteerd","zvkx07","a623","","TY2V01"]
[null,null,null,null,"zvkx07_c624__TY0V01",{"$f":"Kostenverzamelstaat!$I$83","v":0},"","Paramedische hulp- ergotherapie- incl balans","zvkx07","c624","","TY0V01"]
[null,null,null,null,"zvkx07_a624__TY0V01",{"$f":"Kostenverzamelstaat!$J$83","v":0},"","Paramedische hulp- ergotherapie- geaccepteerd","zvkx07","a624","","TY0V01"]
[null,null,null,null,"zvkx07_c624__TY1V01",{"$f":"Kostenverzamelstaat!$K$83","v":0},"","Paramedische hulp- ergotherapie- incl balans","zvkx07","c624","","TY1V01"]
[null,null,null,null,"zvkx07_a624__TY1V01",{"$f":"Kostenverzamelstaat!$L$83","v":0},"","Paramedische hulp- ergotherapie- geaccepteerd","zvkx07","a624","","TY1V01"]
[null,null,null,null,"zvkx07_a624__TY2V01",{"$f":"Kostenverzamelstaat!$M$83","v":0},"","Paramedische hulp- ergotherapie- geaccepteerd","zvkx07","a624","","TY2V01"]
[null,null,null,null,"zvkx07_c625__TY0V01",{"$f":"Kostenverzamelstaat!$I$84","v":0},"","Paramedische hulp- dieetadvisering- incl balans","zvkx07","c625","","TY0V01"]
[null,null,null,null,"zvkx07_a625__TY0V01",{"$f":"Kostenverzamelstaat!$J$84","v":0},"","Paramedische hulp- dieetadvisering- geaccepteerd","zvkx07","a625","","TY0V01"]
[null,null,null,null,"zvkx07_c625__TY1V01",{"$f":"Kostenverzamelstaat!$K$84","v":0},"","Paramedische hulp- dieetadvisering- incl balans","zvkx07","c625","","TY1V01"]
[null,null,null,null,"zvkx07_a625__TY1V01",{"$f":"Kostenverzamelstaat!$L$84","v":0},"","Paramedische hulp- dieetadvisering- geaccepteerd","zvkx07","a625","","TY1V01"]
[null,null,null,null,"zvkx07_a625__TY2V01",{"$f":"Kostenverzamelstaat!$M$84","v":0},"","Paramedische hulp- dieetadvisering- geaccepteerd","zvkx07","a625","","TY2V01"]
[null,null,null,null,"zvkx07_c626__TY0V01",{"$f":"Kostenverzamelstaat!$I$85","v":0},"","Paramedische hulp- gecombineerde leefstijl interventie- incl balans","zvkx07","c626","","TY0V01"]
[null,null,null,null,"zvkx07_a626__TY0V01",{"$f":"Kostenverzamelstaat!$J$85","v":0},"","Paramedische hulp- gecombineerde leefstijl interventie- geaccepteerd","zvkx07","a626","","TY0V01"]
[null,null,null,null,"zvkx07_c626__TY1V01",{"$f":"Kostenverzamelstaat!$K$85","v":0},"","Paramedische hulp- gecombineerde leefstijl interventie- incl balans","zvkx07","c626","","TY1V01"]
[null,null,null,null,"zvkx07_a626__TY1V01",{"$f":"Kostenverzamelstaat!$L$85","v":0},"","Paramedische hulp- gecombineerde leefstijl interventie- geaccepteerd","zvkx07","a626","","TY1V01"]
[null,null,null,null,"zvkx07_a626__TY2V01",{"$f":"Kostenverzamelstaat!$M$85","v":0},"","Paramedische hulp- gecombineerde leefstijl interventie- geaccepteerd","zvkx07","a626","","TY2V01"]
[null,null,null,null,"zvkx07_a8071__TY2V01",{"$f":"Kostenverzamelstaat!M86","v":0},null,"Paramedische hulp- Meerkosten COVID-19, indirect- geaccepteerd","zvkx07","a8071",null,"TY2V01"]
[null,null,null,null,"zvkx07_c827__TY1V01",{"$f":"Kostenverzamelstaat!$K$87","v":0},null,"Paramedische hulp- Netto continuïteitsbijdrage COVID (basisverzekering)- incl balans","zvkx07","c827",null,"TY1V01"]
[null,null,null,null,"zvkx07_a827__TY1V01",{"$f":"Kostenverzamelstaat!$L$87","v":0},null,"Paramedische hulp- Netto continuïteitsbijdrage COVID (basisverzekering)- geaccepteerd","zvkx07","a827",null,"TY1V01"]
[null,null,null,null,"zvkx07_a827__TY2V01",{"$f":"Kostenverzamelstaat!$M$87","v":0},null,"Paramedische hulp- Netto continuïteitsbijdrage COVID (basisverzekering)- geaccepteerd","zvkx07","a827",null,"TY2V01"]
[null,null,null,null,"zvkx08_c640__TY0V01",{"$f":"Kostenverzamelstaat!$I$90","v":0},"","Hulpmiddelen-- incl balans","zvkx08","c640","","TY0V01"]
[null,null,null,null,"zvkx08_a640__TY0V01",{"$f":"Kostenverzamelstaat!$J$90","v":0},"","Hulpmiddelen-- geaccepteerd","zvkx08","a640","","TY0V01"]
[null,null,null,null,"zvkx08_c640__TY1V01",{"$f":"Kostenverzamelstaat!$K$90","v":0},"","Hulpmiddelen-- incl balans","zvkx08","c640","","TY1V01"]
[null,null,null,null,"zvkx08_a640__TY1V01",{"$f":"Kostenverzamelstaat!$L$90","v":0},"","Hulpmiddelen-- geaccepteerd","zvkx08","a640","","TY1V01"]
[null,null,null,null,"zvkx08_a640__TY2V01",{"$f":"Kostenverzamelstaat!$M$90","v":0},"","Hulpmiddelen-- geaccepteerd","zvkx08","a640","","TY2V01"]
[null,null,null,null,"zvkx08_a8081__TY2V01",{"$f":"Kostenverzamelstaat!$M$91","v":0},null,"Hulpmiddelen-- Meerkosten COVID-19, indirect- geaccepteerd","zvkx08","a8081",null,"TY2V01"]
[null,null,null,null,"zvkx08_c828__TY1V01",{"$f":"Kostenverzamelstaat!$K$92","v":0},null,"Hulpmiddelen-- Netto continuïteitsbijdrage COVID (basisverzekering)- geaccepteerd","zvkx08","a828",null,"TY1V01"]
[null,null,null,null,"zvkx08_a828__TY1V01",{"$f":"Kostenverzamelstaat!$L$92","v":0},null,"Hulpmiddelen-- Netto continuïteitsbijdrage COVID (basisverzekering)- incl balans","zvkx08","c828",null,"TY1V01"]
[null,null,null,null,"zvkx08_a828__TY2V01",{"$f":"Kostenverzamelstaat!$M$92","v":0},null,"Hulpmiddelen-- Netto continuïteitsbijdrage COVID (basisverzekering)- geaccepteerd","zvkx08","a828",null,"TY2V01"]
[null,null,null,null,"zvkx09_c650__TY0V01",{"$f":"Kostenverzamelstaat!$I$95","v":0},"","Ziekenvervoer- ambulance/helicopter- incl balans","zvkx09","c650","","TY0V01"]
[null,null,null,null,"zvkx09_a650__TY0V01",{"$f":"Kostenverzamelstaat!$J$95","v":0},"","Ziekenvervoer- ambulance/helicopter- geaccepteerd","zvkx09","a650","","TY0V01"]
[null,null,null,null,"zvkx09_c650__TY1V01",{"$f":"Kostenverzamelstaat!$K$95","v":0},"","Ziekenvervoer- ambulance/helicopter- incl balans","zvkx09","c650","","TY1V01"]
[null,null,null,null,"zvkx09_a650__TY1V01",{"$f":"Kostenverzamelstaat!$L$95","v":0},"","Ziekenvervoer- ambulance/helicopter- geaccepteerd","zvkx09","a650","","TY1V01"]
[null,null,null,null,"zvkx09_a650__TY2V01",{"$f":"Kostenverzamelstaat!$M$95","v":0},"","Ziekenvervoer- ambulance/helicopter- geaccepteerd","zvkx09","a650","","TY2V01"]
[null,null,null,null,"zvkx09_c6501__TY0V01",{"$f":"Kostenverzamelstaat!$I$96","v":0},null,"Ziekenvervoer- regionale ambulance- incl balans","zvkx09","c6501","","TY0V01"]
[null,null,null,null,"zvkx09_a6501__TY0V01",{"$f":"Kostenverzamelstaat!$J$96","v":0},null,"Ziekenvervoer- regionale ambulance- geaccepteerd","zvkx09","c6501","","TY0V01"]
[null,null,null,null,"zvkx09_c6501__TY1V01",{"$f":"Kostenverzamelstaat!$K$96","v":0},null,"Ziekenvervoer- regionale ambulance- incl balans","zvkx09","c6501","","TY1V01"]
[null,null,null,null,"zvkx09_a6501__TY1V01",{"$f":"Kostenverzamelstaat!$L$96","v":0},null,"Ziekenvervoer- regionale ambulance- geaccepteerd","zvkx09","c6501","","TY1V01"]
[null,null,null,null,"zvkx09_a6501__TY2V01",{"$f":"Kostenverzamelstaat!$M$96","v":0},null,"Ziekenvervoer- regionale ambulance- geaccepteerd","zvkx09","c6501","","TY2V01"]
[null,null,null,null,"zvkx09_c651__TY0V01",{"$f":"Kostenverzamelstaat!$I$97","v":0},"","Ziekenvervoer- ov, taxi en eigen auto- incl balans","zvkx09","c651","","TY0V01"]
[null,null,null,null,"zvkx09_c651__TY0V01",{"$f":"Kostenverzamelstaat!$I$97","v":0},"","Ziekenvervoer- ov, taxi en eigen auto- geaccepteerd","zvkx09","a651","","TY0V01"]
[null,null,null,null,"zvkx09_c651__TY1V01",{"$f":"Kostenverzamelstaat!$K$97","v":0},"","Ziekenvervoer- ov, taxi en eigen auto- incl balans","zvkx09","c651","","TY1V01"]
[null,null,null,null,"zvkx09_c651__TY1V01",{"$f":"Kostenverzamelstaat!$K$97","v":0},"","Ziekenvervoer- ov, taxi en eigen auto- geaccepteerd","zvkx09","a651","","TY1V01"]
[null,null,null,null,"zvkx09_a651__TY2V01",{"$f":"Kostenverzamelstaat!$M$97","v":0},"","Ziekenvervoer- ov, taxi en eigen auto- geaccepteerd","zvkx09","a651","","TY2V01"]
[null,null,null,null,"zvkx09_a8091__TY2V01",{"$f":"Kostenverzamelstaat!$M$98","v":0},null,"Ziekenvervoer- Meerkosten COVID-19, indirect- geaccepteerd","zvkx09","a8091",null,"TY2V01"]
[null,null,null,null,"zvkx09_c829__TY1V01",{"$f":"Kostenverzamelstaat!$K$99","v":0},null,"Ziekenvervoer- Netto continuïteitsbijdrage COVID (basisverzekering)- incl balans","zvkx09","c829",null,"TY1V01"]
[null,null,null,null,"zvkx09_a829__TY1V01",{"$f":"Kostenverzamelstaat!$L$99","v":0},null,"Ziekenvervoer- Netto continuïteitsbijdrage COVID (basisverzekering)- geaccepteerd","zvkx09","a829",null,"TY1V01"]
[null,null,null,null,"zvkx09_a829__TY2V01",{"$f":"Kostenverzamelstaat!$M$99","v":0},null,"Ziekenvervoer- Netto continuïteitsbijdrage COVID (basisverzekering)- geaccepteerd","zvkx09","a829",null,"TY2V01"]
[null,null,null,null,"zvkx10_c661__TY1V01",{"$f":"Kostenverzamelstaat!$K$116","v":0},"","Geneeskundige GGZ- GGZ met verblijf- incl balans","zvkx10","c661","","TY1V01"]
[null,null,null,null,"zvkx10_a661__TY1V01",{"$f":"Kostenverzamelstaat!$L$116","v":0},"","Geneeskundige GGZ- GGZ met verblijf- geaccepteerd","zvkx10","a661","","TY1V01"]
[null,null,null,null,"zvkx10_a661__TY2V01",{"$f":"Kostenverzamelstaat!$M$116","v":0},"","Geneeskundige GGZ- GGZ met verblijf- geaccepteerd","zvkx10","a661","","TY2V01"]
[null,null,null,null,"zvkx10_c6611__TY1V01",{"$f":"Kostenverzamelstaat!$K$117","v":0},"","Geneeskundige GGZ- GGZ jaar 2 en 3- incl balans","zvkx10","c6611","","TY1V01"]
[null,null,null,null,"zvkx10_a6611__TY1V01",{"$f":"Kostenverzamelstaat!$L$117","v":0},"","Geneeskundige GGZ- GGZ jaar 2 en 3- geaccepteerd","zvkx10","a6611","","TY1V01"]
[null,null,null,null,"zvkx10_a6611__TY2V01",{"$f":"Kostenverzamelstaat!$M$117","v":0},"","Geneeskundige GGZ- GGZ jaar 2 en 3- geaccepteerd","zvkx10","a6611","","TY2V01"]
[null,null,null,null,"zvkx10_c662__TY1V01",{"$f":"Kostenverzamelstaat!$K$118","v":0},"","Geneeskundige GGZ- GGZ zonder verblijf- incl balans","zvkx10","c662","","TY1V01"]
[null,null,null,null,"zvkx10_a662__TY1V01",{"$f":"Kostenverzamelstaat!$L$118","v":0},"","Geneeskundige GGZ- GGZ zonder verblijf- geaccepteerd","zvkx10","a662","","TY1V01"]
[null,null,null,null,"zvkx10_a662__TY2V01",{"$f":"Kostenverzamelstaat!$M$118","v":0},"","Geneeskundige GGZ- GGZ zonder verblijf- geaccepteerd","zvkx10","a662","","TY2V01"]
[null,null,null,null,"zvkx10_c665__TY1V01",{"$f":"Kostenverzamelstaat!$K$119","v":0},"","Geneeskundige GGZ- basis GGZ- incl balans","zvkx10","c665","","TY1V01"]
[null,null,null,null,"zvkx10_a665__TY1V01",{"$f":"Kostenverzamelstaat!$L$119","v":0},"","Geneeskundige GGZ- basis GGZ- geaccepteerd","zvkx10","a665","","TY1V01"]
[null,null,null,null,"zvkx10_a665__TY2V01",{"$f":"Kostenverzamelstaat!$M$119","v":0},"","Geneeskundige GGZ- basis GGZ- geaccepteerd","zvkx10","a665","","TY2V01"]
[null,null,null,null,"zvkx10_c666__TY0V01",{"$f":"Kostenverzamelstaat!$I$120","v":0},"","Geneeskundige GGZ-Kosten consulten GGZ- incl balans","zvkx10","c666","","TY0V01"]
[null,null,null,null,"zvkx10_a666__TY0V01",{"$f":"Kostenverzamelstaat!$J$120","v":0},"","Geneeskundige GGZ- Kosten consulten GGZ- geaccepteerd","zvkx10","a666","","TY0V01"]
[null,null,null,null,"zvkx10_c667__TY0V01",{"$f":"Kostenverzamelstaat!$I$121","v":0},"","Geneeskundige GGZ- Kosten intrmuraal verblijf GGZ- incl balans","zvkx10","c667","","TY0V01"]
[null,null,null,null,"zvkx10_a667__TY0V01",{"$f":"Kostenverzamelstaat!$J$121","v":0},"","Geneeskundige GGZ- Kosten intrmuraal verblijf GGZ- geaccepteerd","zvkx10","a667","","TY0V01"]
[null,null,null,null,"zvkx10_c668__TY0V01",{"$f":"Kostenverzamelstaat!$I$122","v":0},"","Geneeskundige GGZ- Kosten overige prestaties GGZ- incl balans","zvkx10","c668","","TY0V01"]
[null,null,null,null,"zvkx10_a668__TY0V01",{"$f":"Kostenverzamelstaat!$J$122","v":0},"","Geneeskundige GGZ- Kosten overige prestaties GGZ- geaccepteerd","zvkx10","a668","","TY0V01"]
[null,null,null,null,"zvkx10_a8101__TY2V01",{"$f":"Kostenverzamelstaat!$M$123","v":0},null,"Geneeskundige GGZ- Meerkosten COVID-19, indirect- geaccepteerd","zvkx10","a8101",null,"TY2V01"]
[null,null,null,null,"zvkx10_c830__TY1V01",{"$f":"Kostenverzamelstaat!$K$124","v":0},null,"Geneeskundige GGZ- Netto continuïteitsbijdrage COVID (basisverzekering)- incl balans","zvkx10","c830",null,"TY1V01"]
[null,null,null,null,"zvkx10_a830__TY1V01",{"$f":"Kostenverzamelstaat!$L$124","v":0},null,"Geneeskundige GGZ- Netto continuïteitsbijdrage COVID (basisverzekering)- geaccepteerd","zvkx10","a830",null,"TY1V01"]
[null,null,null,null,"zvkx10_a830__TY2V01",{"$f":"Kostenverzamelstaat!$M$124","v":0},null,"Geneeskundige GGZ- Netto continuïteitsbijdrage COVID (basisverzekering)- geaccepteerd","zvkx10","a830",null,"TY2V01"]
[null,null,null,null,"zvkx11_c670__TY0V01",{"$f":"Kostenverzamelstaat!$I$127","v":0},"","GRZ, ELV en GZSP- Geriatische revalidatiezorg- incl balans","zvkx11","c670","","TY0V01"]
[null,null,null,null,"zvkx11_a670__TY0V01",{"$f":"Kostenverzamelstaat!$J$127","v":0},"","GRZ, ELV en GZSP- Geriatische revalidatiezorg-- geaccepteerd","zvkx11","a670","","TY0V01"]
[null,null,null,null,"zvkx11_c670__TY1V01",{"$f":"Kostenverzamelstaat!$K$127","v":0},"","GRZ, ELV en GZSP- Geriatische revalidatiezorg-- incl balans","zvkx11","c670","","TY1V01"]
[null,null,null,null,"zvkx11_a670__TY1V01",{"$f":"Kostenverzamelstaat!$L$127","v":0},"","GRZ, ELV en GZSP- Geriatische revalidatiezorg-- geaccepteerd","zvkx11","a670","","TY1V01"]
[null,null,null,null,"zvkx11_a670__TY2V01",{"$f":"Kostenverzamelstaat!$M$127","v":0},"","GRZ, ELV en GZSP- Geriatische revalidatiezorg-- geaccepteerd","zvkx11","a670","","TY2V01"]
[null,null,null,null,"zvkx11_c81111__TY0V01",{"$f":"Kostenverzamelstaat!$I$128","v":0},null,"GRZ, ELV en GZSP- Meerkosten COVID-19, indirect- incl balans","zvkx11","a81111",null,"TY0V01"]
[null,null,null,null,"zvkx11_a81111__TY0V01",{"$f":"Kostenverzamelstaat!$J$128","v":0},null,"GRZ, ELV en GZSP- Meerkosten COVID-19, indirect- geaccepteerd","zvkx11","a81111",null,"TY0V01"]
[null,null,null,null,"zvkx11_a81111__TY2V01",{"$f":"Kostenverzamelstaat!$M$128","v":0},null,"GRZ, ELV en GZSP- Meerkosten COVID-19, indirect- geaccepteerd","zvkx11","a81111",null,"TY2V01"]
[null,null,null,null,"zvkx11_c8311__TY1V01",{"$f":"Kostenverzamelstaat!$K$129","v":0},null,"GRZ, ELV en GZSP- Netto continuïteitsbijdrage COVID (basisverzekering)- incl balans","zvkx11","c8311",null,"TY1V01"]
[null,null,null,null,"zvkx11_a8311__TY1V01",{"$f":"Kostenverzamelstaat!$L$129","v":0},null,"GRZ, ELV en GZSP- Netto continuïteitsbijdrage COVID (basisverzekering)- geaccepteerd","zvkx11","a8311",null,"TY1V01"]
[null,null,null,null,"zvkx11_a8311__TY2V01",{"$f":"Kostenverzamelstaat!$M$129","v":0},null,"GRZ, ELV en GZSP- Netto continuïteitsbijdrage COVID (basisverzekering)- geaccepteerd","zvkx11","a8311",null,"TY2V01"]
[null,null,null,null,"zvkx11_c671__TY0V01",{"$f":"Kostenverzamelstaat!$I$130","v":0},"","GRZ, ELV en GZSP- Eerstelijnsverblijf- incl balans","zvkx11","c671","","TY0V01"]
[null,null,null,null,"zvkx11_a671__TY0V01",{"$f":"Kostenverzamelstaat!$J$130","v":0},"","GRZ, ELV en GZSP- Eerstelijnsverblijf- geaccepteerd","zvkx11","a671","","TY0V01"]
[null,null,null,null,"zvkx11_c671__TY1V01",{"$f":"Kostenverzamelstaat!$K$130","v":0},"","GRZ, ELV en GZSP- Eerstelijnsverblijf- incl balans","zvkx11","c671","","TY1V01"]
[null,null,null,null,"zvkx11_a671__TY1V01",{"$f":"Kostenverzamelstaat!$L$130","v":0},"","GRZ, ELV en GZSP- Eerstelijnsverblijf- geaccepteerd","zvkx11","a671","","TY1V01"]
[null,null,null,null,"zvkx11_a671__TY2V01",{"$f":"Kostenverzamelstaat!$M$130","v":0},"","GRZ, ELV en GZSP- Eerstelijnsverblijf- geaccepteerd","zvkx11","a671","","TY2V01"]
[null,null,null,null,"zvkx11_c81121__TY0V01",{"$f":"Kostenverzamelstaat!$I$131","v":0},null,"GRZ, ELV en GZSP- Meerkosten COVID-19, indirect- incl balans","zvkx11","c81121",null,"TY0V01"]
[null,null,null,null,"zvkx11_a81121__TY0V01",{"$f":"Kostenverzamelstaat!$J$131","v":0},null,"GRZ, ELV en GZSP- Meerkosten COVID-19, indirect- geaccepteerd","zvkx11","a81121",null,"TY0V01"]
[null,null,null,null,"zvkx11_a81121__TY2V01",{"$f":"Kostenverzamelstaat!$M$131","v":0},null,"GRZ, ELV en GZSP- Meerkosten COVID-19, indirect- geaccepteerd","zvkx11","a81121",null,"TY2V01"]
[null,null,null,null,"zvkx11_c8312__TY1V01",{"$f":"Kostenverzamelstaat!$K$132","v":0},null,"GRZ, ELV en GZSP- Netto continuïteitsbijdrage COVID (basisverzekering)- incl balans","zvkx11","c8312",null,"TY1V01"]
[null,null,null,null,"zvkx11_a8312__TY1V01",{"$f":"Kostenverzamelstaat!$L$132","v":0},null,"GRZ, ELV en GZSP- Netto continuïteitsbijdrage COVID (basisverzekering)- geaccepteerd","zvkx11","a8312",null,"TY1V01"]
[null,null,null,null,"zvkx11_a8312__TY2V01",{"$f":"Kostenverzamelstaat!$M$132","v":0},null,"GRZ, ELV en GZSP- Netto continuïteitsbijdrage COVID (basisverzekering)- geaccepteerd","zvkx11","a8312",null,"TY2V01"]
[null,null,null,null,"zvkx11_c672__TY0V01",{"$f":"Kostenverzamelstaat!$I$133","v":0},"","GRZ, ELV en GZSP- GZSP- incl balans","zvkx11","c672","","TY0V01"]
[null,null,null,null,"zvkx11_a672__TY0V01",{"$f":"Kostenverzamelstaat!$J$133","v":0},"","GRZ, ELV en GZSP-  GZSP- geaccepteerd","zvkx11","a672","","TY0V01"]
[null,null,null,null,"zvkx11_c672__TY1V01",{"$f":"Kostenverzamelstaat!$K$133","v":0},"","GRZ, ELV en GZSP- GZSP- incl balans","zvkx11","c672","","TY1V01"]
[null,null,null,null,"zvkx11_a672__TY1V01",{"$f":"Kostenverzamelstaat!$L$133","v":0},"","GRZ, ELV en GZSP-  GZSP- geaccepteerd","zvkx11","a672","","TY1V01"]
[null,null,null,null,"zvkx11_a672__TY2V01",{"$f":"Kostenverzamelstaat!$M$133","v":0},"","GRZ, ELV en GZSP-  GZSP- geaccepteerd","zvkx11","a672","","TY2V01"]
[null,null,null,null,"zvkx11_c81131__TY0V01",{"$f":"Kostenverzamelstaat!$I$134","v":0},null,"GRZ, ELV en GZSP- Meerkosten COVID-19, indirect- incl balans","zvkx11","c81121",null,"TY0V01"]
[null,null,null,null,"zvkx11_a81131__TY0V01",{"$f":"Kostenverzamelstaat!$J$134","v":0},null,"GRZ, ELV en GZSP- Meerkosten COVID-19, indirect- geaccepteerd","zvkx11","a81121",null,"TY0V01"]
[null,null,null,null,"zvkx11_a81131__TY2V01",{"$f":"Kostenverzamelstaat!$M$134","v":0},null,"GRZ, ELV en GZSP- Meerkosten COVID-19, indirect- geaccepteerd","zvkx11","a81121",null,"TY2V01"]
[null,null,null,null,"zvkx11_c8313__TY1V01",{"$f":"Kostenverzamelstaat!$K$135","v":0},null,"GRZ, ELV en GZSP- Netto continuïteitsbijdrage COVID (basisverzekering)- incl balans","zvkx11","c8313",null,"TY1V01"]
[null,null,null,null,"zvkx11_a8313__TY1V01",{"$f":"Kostenverzamelstaat!$L$135","v":0},null,"GRZ, ELV en GZSP- Netto continuïteitsbijdrage COVID (basisverzekering)- geaccepteerd","zvkx11","a8313",null,"TY1V01"]
[null,null,null,null,"zvkx11_a8313__TY2V01",{"$f":"Kostenverzamelstaat!$M$135","v":0},null,"GRZ, ELV en GZSP- Netto continuïteitsbijdrage COVID (basisverzekering)- geaccepteerd","zvkx11","a8313",null,"TY2V01"]
[null,null,null,null,"zvkx12_c680__TY0V01",{"$f":"Kostenverzamelstaat!$I$138","v":0},"","Kraamzorg-- incl balans","zvkx12","c680","","TY0V01"]
[null,null,null,null,"zvkx12_a680__TY0V01",{"$f":"Kostenverzamelstaat!$J$138","v":0},"","Kraamzorg-- geaccepteerd","zvkx12","a680","","TY0V01"]
[null,null,null,null,"zvkx12_c680__TY1V01",{"$f":"Kostenverzamelstaat!$K$138","v":0},"","Kraamzorg-- incl balans","zvkx12","c680","","TY1V01"]
[null,null,null,null,"zvkx12_a680__TY1V01",{"$f":"Kostenverzamelstaat!$L$138","v":0},"","Kraamzorg-- geaccepteerd","zvkx12","a680","","TY1V01"]
[null,null,null,null,"zvkx12_a680__TY2V01",{"$f":"Kostenverzamelstaat!$M$138","v":0},"","Kraamzorg-- geaccepteerd","zvkx12","a680","","TY2V01"]
[null,null,null,null,"zvkx12_a8121__TY2V01",{"$f":"Kostenverzamelstaat!M139","v":0},null,"Kraamzorg- Meerkosten COVID-19, indirect- geaccepteerd","zvkx12","a8121",null,"TY2V01"]
[null,null,null,null,"zvkx12_c832__TY1V01",{"$f":"Kostenverzamelstaat!$K$140","v":0},null,"Kraamzorg-- Netto continuïteitsbijdrage COVID (basisverzekering)- incl balans","zvkx12","c832",null,"TY1V01"]
[null,null,null,null,"zvkx12_a832__TY1V01",{"$f":"Kostenverzamelstaat!$L$140","v":0},null,"Kraamzorg-- Netto continuïteitsbijdrage COVID (basisverzekering)- incl balans","zvkx12","c832",null,"TY1V01"]
[null,null,null,null,"zvkx12_a832__TY2V01",{"$f":"Kostenverzamelstaat!$M$140","v":0},null,"Kraamzorg-- Netto continuïteitsbijdrage COVID (basisverzekering)- incl balans","zvkx12","c832",null,"TY2V01"]
[null,null,null,null,"zvkx13_c700__TY0V01",{"$f":"Kostenverzamelstaat!$I$143","v":0},"","Overige kosten-- incl balans","zvkx13","c700","","TY0V01"]
[null,null,null,null,"zvkx13_a700__TY0V01",{"$f":"Kostenverzamelstaat!$J$143","v":0},"","Overige kosten-- geaccepteerd","zvkx13","a700","","TY0V01"]
[null,null,null,null,"zvkx13_a700__TY1V01",{"$f":"Kostenverzamelstaat!$L$143","v":0},"","Overige kosten-- geaccepteerd","zvkx13","a700","","TY1V01"]
[null,null,null,null,"zvkx13_a700__TY0V01",{"$f":"Kostenverzamelstaat!$J$143","v":0},"","Overige kosten-- geaccepteerd","zvkx13","a700","","TY0V01"]
[null,null,null,null,"zvkx13_c700__TY1V01",{"$f":"Kostenverzamelstaat!$K$143","v":0},"","Overige kosten-- incl balans","zvkx13","c700","","TY1V01"]
[null,null,null,null,"zvkx13_a700__TY1V01",{"$f":"Kostenverzamelstaat!$L$143","v":0},"","Overige kosten-- geaccepteerd","zvkx13","a700","","TY1V01"]
[null,null,null,null,"zvkx13_a700__TY2V01",{"$f":"Kostenverzamelstaat!$M$143","v":0},"","Overige kosten-- geaccepteerd","zvkx13","a700","","TY2V01"]
[null,null,null,null,"zvkx13_c701__TY0V01",{"$f":"Kostenverzamelstaat!$I$144","v":0},"","Overige kosten- geneeskundige zorg- incl balans","zvkx13","c701","","TY0V01"]
[null,null,null,null,"zvkx13_a701__TY0V01",{"$f":"Kostenverzamelstaat!$J$144","v":0},"","Overige kosten- geneeskundige zorg- geaccepteerd","zvkx13","a701","","TY0V01"]
[null,null,null,null,"zvkx13_c701__TY1V01",{"$f":"Kostenverzamelstaat!$K$144","v":0},"","Overige kosten- geneeskundige zorg- incl balans","zvkx13","c701","","TY1V01"]
[null,null,null,null,"zvkx13_a701__TY1V01",{"$f":"Kostenverzamelstaat!$L$144","v":0},"","Overige kosten- geneeskundige zorg- geaccepteerd","zvkx13","a701","","TY1V01"]
[null,null,null,null,"zvkx13_a701__TY2V01",{"$f":"Kostenverzamelstaat!$M$144","v":0},"","Overige kosten- geneeskundige zorg- geaccepteerd","zvkx13","a701","","TY2V01"]
[null,null,null,null,"zvkx13_c702__TY0V01",{"$f":"Kostenverzamelstaat!$I$145","v":0},"","Overige kosten- zintuiglijk gehandicapten- incl balans","zvkx13","c702","","TY0V01"]
[null,null,null,null,"zvkx13_a702__TY0V01",{"$f":"Kostenverzamelstaat!$J$145","v":0},"","Overige kosten- zintuiglijk gehandicapten- geaccepteerd","zvkx13","a702","","TY0V01"]
[null,null,null,null,"zvkx13_c702__TY1V01",{"$f":"Kostenverzamelstaat!$K$145","v":0},"","Overige kosten- zintuiglijk gehandicapten- incl balans","zvkx13","c702","","TY1V01"]
[null,null,null,null,"zvkx13_a702__TY1V01",{"$f":"Kostenverzamelstaat!$L$145","v":0},"","Overige kosten- zintuiglijk gehandicapten- geaccepteerd","zvkx13","a702","","TY1V01"]
[null,null,null,null,"zvkx13_a702__TY2V01",{"$f":"Kostenverzamelstaat!$M$145","v":0},"","Overige kosten- zintuiglijk gehandicapten- geaccepteerd","zvkx13","a702","","TY2V01"]
[null,null,null,null,"zvkx13_a8131__TY2V01",{"$f":"Kostenverzamelstaat!M146","v":0},null,"Overige kosten- Meerkosten COVID-19, indirect- geaccepteerd","zvkx13","a8131",null,"TY2V01"]
[null,null,null,null,"zvkx13_c833__TY1V01",{"$f":"Kostenverzamelstaat!$K$147","v":0},null,"Overige kosten-- Netto continuïteitsbijdrage COVID (basisverzekering)- incl balans","zvkx13","c833",null,"TY1V01"]
[null,null,null,null,"zvkx13_a833__TY1V01",{"$f":"Kostenverzamelstaat!$L$147","v":0},null,"Overige kosten-- Netto continuïteitsbijdrage COVID (basisverzekering)- geaccepteerd","zvkx13","a833",null,"TY1V01"]
[null,null,null,null,"zvkx13_a833__TY2V01",{"$f":"Kostenverzamelstaat!$M$147","v":0},null,"Overige kosten-- Netto continuïteitsbijdrage COVID (basisverzekering)- geaccepteerd","zvkx13","a833",null,"TY2V01"]
[null,null,null,null,"zvkx15_c720__TY0V01",{"$f":"Kostenverzamelstaat!$I$150","v":0},"","Grensoverschrijdende zorg- Kosten via verzekeraar-- incl balans","zvkx15","c720","","TY0V01"]
[null,null,null,null,"zvkx15_a720__TY0V01",{"$f":"Kostenverzamelstaat!$J$150","v":0},"","Grensoverschrijdende zorg- Kosten via verzekeraar- geaccepteerd","zvkx15","a720","","TY0V01"]
[null,null,null,null,"zvkx15_c720__TY1V01",{"$f":"Kostenverzamelstaat!$K$150","v":0},"","Grensoverschrijdende zorg- Kosten via verzekeraar-- incl balans","zvkx15","c720","","TY1V01"]
[null,null,null,null,"zvkx15_a720__TY1V01",{"$f":"Kostenverzamelstaat!$L$150","v":0},"","Grensoverschrijdende zorg- Kosten via verzekeraar- geaccepteerd","zvkx15","a720","","TY1V01"]
[null,null,null,null,"zvkx15_a720__TY2V01",{"$f":"Kostenverzamelstaat!$M$150","v":0},"","Grensoverschrijdende zorg- Kosten via verzekeraar- geaccepteerd","zvkx15","a720","","TY2V01"]
[null,null,null,null,"zvkx15_c721__TY0V01",{"$f":"Kostenverzamelstaat!$I$151","v":0},"","Grensoverschrijdende zorg-Kosten via verbindingsorgaan- incl balans","zvkx15","c720","","TY0V01"]
[null,null,null,null,"zvkx15_a721__TY0V01",{"$f":"Kostenverzamelstaat!$J$151","v":0},"","Grensoverschrijdende zorg- Kosten via verbindingsorgaan- geaccepteerd","zvkx15","a720","","TY0V01"]
[null,null,null,null,"zvkx15_c721__TY1V01",{"$f":"Kostenverzamelstaat!$K$151","v":0},"","Grensoverschrijdende zorg-Kosten via verbindingsorgaan- incl balans","zvkx15","c720","","TY1V01"]
[null,null,null,null,"zvkx15_a721__TY1V01",{"$f":"Kostenverzamelstaat!$L$151","v":0},"","Grensoverschrijdende zorg- Kosten via verbindingsorgaan- geaccepteerd","zvkx15","a720","","TY1V01"]
[null,null,null,null,"zvkx15_a721__TY2V01",{"$f":"Kostenverzamelstaat!$M$151","v":0},"","Grensoverschrijdende zorg- Kosten via verbindingsorgaan- geaccepteerd","zvkx15","a720","","TY2V01"]
[null,null,null,null,"zvkx16_c730__TY0V01",{"$f":"Kostenverzamelstaat!$I$154","v":0},"","Kwaliteitsgelden-- incl balans","zvkx16","c730","","TY0V01"]
[null,null,null,null,"zvkx16_a730__TY0V01",{"$f":"Kostenverzamelstaat!$J$154","v":0},"","Kwaliteitsgelden-- geaccepteerd","zvkx16","a730","","TY0V01"]
[null,null,null,null,"zvkx16_c730__TY1V01",{"$f":"Kostenverzamelstaat!$K$154","v":0},"","Kwaliteitsgelden-- incl balans","zvkx16","c730","","TY1V01"]
[null,null,null,null,"zvkx16_a730__TY1V01",{"$f":"Kostenverzamelstaat!$L$154","v":0},"","Kwaliteitsgelden-- geaccepteerd","zvkx16","a730","","TY1V01"]
[null,null,null,null,"zvkx16_a730__TY2V01",{"$f":"Kostenverzamelstaat!$M$154","v":0},"","Kwaliteitsgelden-- geaccepteerd","zvkx16","a730","","TY2V01"]
[null,null,null,null,"zvkxdnb_c8901__TY0V01",{"$f":"Kostenverzamelstaat!$I$160","v":0},"","Verschilposten DNB- Opbrengsten verhaal- incl balans","zvkxdnb","c8901","","TY0V01"]
[null,null,null,null,"zvkxdnb_a8901__TY0V01",{"$f":"Kostenverzamelstaat!$J$160","v":0},"","Verschilposten DNB- Opbrengsten verhaal- geaccepteerd","zvkxdnb","c8901","","TY0V01"]
[null,null,null,null,"zvkxdnb_c8901__TY1V01",{"$f":"Kostenverzamelstaat!$K$160","v":0},"","Verschilposten DNB- Opbrengsten verhaal- incl balans","zvkxdnb","c8901","","TY1V01"]
[null,null,null,null,"zvkxdnb_a8901__TY1V01",{"$f":"Kostenverzamelstaat!$L$160","v":0},"","Verschilposten DNB- Opbrengsten verhaal- geaccepteerd","zvkxdnb","c8901","","TY1V01"]
[null,null,null,null,"zvkxdnb_a8901__TY2V01",{"$f":"Kostenverzamelstaat!$M$160","v":0},"","Verschilposten DNB- Opbrengsten verhaal- geaccepteerd","zvkxdnb","c8901","","TY2V01"]
[null,null,null,null,"zvkxdnb_c910__TY0V01",{"$f":"Kostenverzamelstaat!$I$161","v":0},"","Verschilposten DNB- Schade tlv het vrijwillig eigen risico- incl balans","zvkxdnb","c910","","TY0V01"]
[null,null,null,null,"zvkxdnb_a910__TY0V01",{"$f":"Kostenverzamelstaat!$J$161","v":0},"","Verschilposten DNB- Schade tlv het vrijwillig eigen risico- geaccepteerd","zvkxdnb","a910","","TY0V01"]
[null,null,null,null,"zvkxdnb_c910__TY1V01",{"$f":"Kostenverzamelstaat!$K$161","v":0},"","Verschilposten DNB- Schade tlv het vrijwillig eigen risico- incl balans","zvkxdnb","c910","","TY1V01"]
[null,null,null,null,"zvkxdnb_a910__TY1V01",{"$f":"Kostenverzamelstaat!$L$161","v":0},"","Verschilposten DNB- Schade tlv het vrijwillig eigen risico- geaccepteerd","zvkxdnb","a910","","TY1V01"]
[null,null,null,null,"zvkxdnb_a910__TY2V01",{"$f":"Kostenverzamelstaat!$M$161","v":0},"","Verschilposten DNB- Schade tlv het vrijwillig eigen risico- geaccepteerd","zvkxdnb","a910","","TY2V01"]
[null,null,null,null,"zvkxdnb_c915__TY0V01",{"$f":"Kostenverzamelstaat!$I$162","v":0},"","Verschilposten DNB- Schade tlv het verplicht eigen risico- incl balans","zvkxdnb","c915","","TY0V01"]
[null,null,null,null,"zvkxdnb_a915__TY0V01",{"$f":"Kostenverzamelstaat!$J$162","v":0},"","Verschilposten DNB- Schade tlv het verplicht eigen risico- geaccepteerd","zvkxdnb","a915","","TY0V01"]
[null,null,null,null,"zvkxdnb_c915__TY1V01",{"$f":"Kostenverzamelstaat!$K$162","v":0},"","Verschilposten DNB- Schade tlv het verplicht eigen risico- incl balans","zvkxdnb","c915","","TY1V01"]
[null,null,null,null,"zvkxdnb_a915__TY1V01",{"$f":"Kostenverzamelstaat!$L$162","v":0},"","Verschilposten DNB- Schade tlv het verplicht eigen risico- geaccepteerd","zvkxdnb","a915","","TY1V01"]
[null,null,null,null,"zvkxdnb_a915__TY2V01",{"$f":"Kostenverzamelstaat!$M$162","v":0},"","Verschilposten DNB- Schade tlv het verplicht eigen risico- geaccepteerd","zvkxdnb","a915","","TY2V01"]
[null,null,null,null,"zvkxdnb_c940__TY0V01",{"$f":"Kostenverzamelstaat!$I$163","v":0},"","Verschilposten DNB- Netto Premieopbrengsten- incl balans","zvkxdnb","c940","","TY0V01"]
[null,null,null,null,"zvkxdnb_a940__TY0V01",{"$f":"Kostenverzamelstaat!$J$163","v":0},"","Verschilposten DNB- Netto Premieopbrengsten- geaccepteerd","zvkxdnb","a940","","TY0V01"]
[null,null,null,null,"zvkxdnb_c940__TY1V01",{"$f":"Kostenverzamelstaat!$K$163","v":0},"","Verschilposten DNB- Netto Premieopbrengsten- incl balans","zvkxdnb","c940","","TY1V01"]
[null,null,null,null,"zvkxdnb_a940__TY1V01",{"$f":"Kostenverzamelstaat!$L$163","v":0},"","Verschilposten DNB- Netto Premieopbrengsten- geaccepteerd","zvkxdnb","a940","","TY1V01"]
[null,null,null,null,"zvkxdnb_a940__TY2V01",{"$f":"Kostenverzamelstaat!$M$163","v":0},"","Verschilposten DNB- Netto Premieopbrengsten- geaccepteerd","zvkxdnb","a940","","TY2V01"]
[null,null,null,null,"zvkx01_cc504__TY1V01",{"$f":"'Specifieke informatie B'!$I$15","v":0},"","Huisartsen- bijz diensttijden-kst Corona- incl balans","zvkx01","cc504","","TY1V01"]
[null,null,null,null,"zvkx01_ac504__TY1V01",{"$f":"'Specifieke informatie B'!$J$15","v":0},"","Huisartsen- bijz diensttijden-kst Corona-  geaccepteerd","zvkx01","ac504","","TY1V01"]
[null,null,null,null,"zvkx01_cc504__TY2V01",{"$f":"'Specifieke informatie B'!K15","v":0},"","Huisartsen- bijz diensttijden-kst Corona- incl balans","zvkx01","cc504","","TY2V01"]
[null,null,null,null,"zvkx01_ac504__TY2V01",{"$f":"'Specifieke informatie B'!$L$15","v":0},"","Huisartsen- bijz diensttijden-kst Corona-  geaccepteerd","zvkx01","ac504","","TY2V01"]
[null,null,null,null,"zvkx01_cc506__TY1V01",{"$f":"'Specifieke informatie B'!$I$16","v":0},"","Huisartsen- Consult-kst Corona- incl balans","zvkx01","cc506","","TY1V01"]
[null,null,null,null,"zvkx01_ac506__TY1V01",{"$f":"'Specifieke informatie B'!$J$16","v":0},"","Huisartsen- Consult-kst Corona-  geaccepteerd","zvkx01","ac506","","TY1V01"]
[null,null,null,null,"zvkx01_cc506__TY2V01",{"$f":"'Specifieke informatie B'!$K$16","v":0},"","Huisartsen- Consult-kst Corona- incl balans","zvkx01","cc506","","TY2V01"]
[null,null,null,null,"zvkx01_ac506__TY2V01",{"$f":"'Specifieke informatie B'!$L$16","v":0},"","Huisartsen- Consult-kst Corona-  geaccepteerd","zvkx01","ac506","","TY2V01"]
[null,null,null,null,"zvkx01_cc507__TY1V01",{"$f":"'Specifieke informatie B'!$I$17","v":0},"","Huisartsen- Overige-kst Corona- incl balans","zvkx01","cc507","","TY1V01"]
[null,null,null,null,"zvkx01_ac507__TY1V01",{"$f":"'Specifieke informatie B'!$J$17","v":0},"","Huisartsen- Overige-kst Corona- geaccepteerd","zvkx01","ac507","","TY1V01"]
[null,null,null,null,"zvkx01_cc507__TY2V01",{"$f":"'Specifieke informatie B'!$K$17","v":0},"","Huisartsen- Overige-kst Corona- incl balans","zvkx01","cc507","","TY2V01"]
[null,null,null,null,"zvkx01_ac507__TY2V01",{"$f":"'Specifieke informatie B'!$L$17","v":0},"","Huisartsen- Overige-kst Corona- geaccepteerd","zvkx01","ac507","","TY2V01"]
[null,null,null,null,"zvkx01_cc515__TY1V01",{"$f":"'Specifieke informatie B'!$I$18","v":0},"","Huisartsen- Resultaatbel. huisartsen-kst Corona- incl balans","zvkx01","cc515","","TY1V01"]
[null,null,null,null,"zvkx01_ac515__TY1V01",{"$f":"'Specifieke informatie B'!$J$18","v":0},"","Huisartsen- Resultaatbel. huisartsen-kst Corona-  geaccepteerd","zvkx01","ac515","","TY1V01"]
[null,null,null,null,"zvkx01_cc515__TY2V01",{"$f":"'Specifieke informatie B'!$K$18","v":0},"","Huisartsen- Resultaatbel. huisartsen-kst Corona- incl balans","zvkx01","cc515","","TY2V01"]
[null,null,null,null,"zvkx01_ac515__TY2V01",{"$f":"'Specifieke informatie B'!$L$18","v":0},"","Huisartsen- Resultaatbel. huisartsen-kst Corona-  geaccepteerd","zvkx01","ac515","","TY2V01"]
[null,null,null,null,"zvkx01_cc8011__TY1V01",{"$f":"'Specifieke informatie B'!$I$19","v":0},null,"Huisartsen- Meerkosten Corona, indirect en toeslagen-kst Corona- incl balans","zvkx01","cc8011",null,"TY1V01"]
[null,null,null,null,"zvkx01_ac8011__TY1V01",{"$f":"'Specifieke informatie B'!$J$19","v":0},null,"Huisartsen- Meerkosten Corona, indirect en toeslagen- kst Corona- geaccepteerd","zvkx01","ac8011",null,"TY1V01"]
[null,null,null,null,"zvkx01_cc8011__TY2V01",{"$f":"'Specifieke informatie B'!$K$19","v":0},null,"Huisartsen- Meerkosten Corona, indirect en toeslagen-kst Corona- incl balans","zvkx01","cc8011",null,"TY2V01"]
[null,null,null,null,"zvkx01_ac8011__TY2V01",{"$f":"'Specifieke informatie B'!$L$19","v":0},null,"Huisartsen- Meerkosten Corona, indirect en toeslagen-kst Corona- incl balans","zvkx01","ac8011",null,"TY2V01"]
[null,null,null,null,"zvkx01_cc8012__TY1V01",{"$f":"'Specifieke informatie B'!$I$20","v":0},null,"Huisartsen- Meerkosten COVID-19, indirect- kst Corona- incl balans","zvkx01","cc8012",null,"TY1V01"]
[null,null,null,null,"zvkx01_ac8012__TY1V01",{"$f":"'Specifieke informatie B'!$J$20","v":0},null,"Huisartsen- Meerkosten COVID-19, indirect- kst Corona- incl balans","zvkx01","ac8012",null,"TY1V01"]
[null,null,null,null,"zvkx01_cc8012__TY2V01",{"$f":"'Specifieke informatie B'!$K$20","v":0},null,"Huisartsen- Meerkosten COVID-19, toeslagen- kst Corona- incl balans","zvkx01","cc8012",null,"TY2V01"]
[null,null,null,null,"zvkx01_ac8012__TY2V01",{"$f":"'Specifieke informatie B'!$L$20","v":0},null,"Huisartsen- Meerkosten COVID-19, toeslagen- kst Corona- incl balans","zvkx01","ac8012",null,"TY2V01"]
[null,null,null,null,"zvkx02_cc8021__TY2V01",{"$f":"'Specifieke informatie B'!$K$23","v":0},null,"Farmaceutische hulp- Meerkosten COVID-19, indirect-kst Corona- geaccepteerd","zvkx02","cc8021",null,"TY2V01"]
[null,null,null,null,"zvkx02_ac8021__TY2V01",{"$f":"'Specifieke informatie B'!$L$23","v":0},null,"Farmaceutische hulp- Meerkosten COVID-19, indirect-kst Corona- geaccepteerd","zvkx02","ac8021",null,"TY2V01"]
[null,null,null,null,"zvkx03_cc530__TY1V01",{"$f":"'Specifieke informatie B'!$I$26","v":0},"","Verpleging en verzorging-kst Corona- geaccepteerd","zvkx03","cc530","","TY1V01"]
[null,null,null,null,"zvkx03_ac530__TY1V01",{"$f":"'Specifieke informatie B'!$J$26","v":0},"","Verpleging en verzorging-kst Corona- incl balans","zvkx03","ac530","","TY1V01"]
[null,null,null,null,"zvkx03_cc530__TY2V01",{"$f":"'Specifieke informatie B'!$K$26","v":0},"","Verpleging en verzorging-kst Corona- geaccepteerd","zvkx03","cc530","","TY2V01"]
[null,null,null,null,"zvkx03_ac530__TY2V01",{"$f":"'Specifieke informatie B'!$L$26","v":0},"","Verpleging en verzorging-kst Corona- incl balans","zvkx03","ac530","","TY2V01"]
[null,null,null,null,"zvkx03_cc8031__TY1V01",{"$f":"'Specifieke informatie B'!$I$27","v":0},null,"Verpleging en verzorging- Meerkosten COVID-19, indirect-kst Corona- incl balans","zvkx03","cc8031",null,"TY1V01"]
[null,null,null,null,"zvkx03_ac8031__TY1V01",{"$f":"'Specifieke informatie B'!$J$27","v":0},null,"Verpleging en verzorging- Meerkosten COVID-19, indirect-kst Corona- geaccepteerd","zvkx03","ac8031",null,"TY1V01"]
[null,null,null,null,"zvkx03_cc8031__TY2V01",{"$f":"'Specifieke informatie B'!$K$27","v":0},null,"Verpleging en verzorging- Meerkosten COVID-19, indirect-kst Corona- incl balans","zvkx03","cc8031",null,"TY2V01"]
[null,null,null,null,"zvkx03_ac8031__TY2V01",{"$f":"'Specifieke informatie B'!$L$27","v":0},null,"Verpleging en verzorging- Meerkosten COVID-19, indirect-kst Corona- geaccepteerd","zvkx03","ac8031",null,"TY2V01"]
[null,null,null,null,"zvkx04_cc8041__TY2V01",{"$f":"'Specifieke informatie B'!$K$30","v":0},null,"Mondzorg- Meerkosten COVID-19, indirect-kst Corona- geaccepteerd","zvkx04","cc8041",null,"TY2V01"]
[null,null,null,null,"zvkx04_ac8041__TY2V01",{"$f":"'Specifieke informatie B'!$L$30","v":0},null,"Mondzorg- Meerkosten COVID-19, indirect-kst Corona- geaccepteerd","zvkx04","ac8041",null,"TY2V01"]
[null,null,null,null,"zvkx04_cc8042__TY2V01",{"$f":"'Specifieke informatie B'!$K$31","v":0},null,"Mondzorg- Meerkosten COVID-19, toeslagen-kst Corona- geaccepteerd","zvkx04","cc8042",null,"TY2V01"]
[null,null,null,null,"zvkx04_ac8042__TY2V01",{"$f":"'Specifieke informatie B'!$L$31","v":0},null,"Mondzorg- Meerkosten COVID-19, toeslagen-kst Corona- geaccepteerd","zvkx04","ac8042",null,"TY2V01"]
[null,null,null,null,"zvkx05_cc8051__TY2V01",{"$f":"'Specifieke informatie B'!$K$34","v":0},null,"Verloskundige hulp- Meerkosten COVID-19, indirect- kst Corona- geaccepteerd","zvkx05","cc8051",null,"TY2V01"]
[null,null,null,null,"zvkx05_ac8051__TY2V01",{"$f":"'Specifieke informatie B'!$L$34","v":0},null,"Verloskundige hulp- Meerkosten COVID-19, indirect- kst Corona- geaccepteerd","zvkx05","ac8051",null,"TY2V01"]
[null,null,null,null,"zvkx06_cc6122__TY1V01",{"$f":"'Specifieke informatie B'!$I$48","v":0},"","Medisch specialistische hulp- IC-kst Corona- geaccepteerd","zvkx06","cc6122","","TY1V01"]
[null,null,null,null,"zvkx06_ac6122__TY1V01",{"$f":"'Specifieke informatie B'!$J$48","v":0},"","Medisch specialistische hulp- IC-kst Corona- incl balans","zvkx06","ac6122","","TY1V01"]
[null,null,null,null,"zvkx06_cc6122__TY2V01",{"$f":"'Specifieke informatie B'!$K$48","v":0},"","Medisch specialistische hulp- IC-kst Corona- geaccepteerd","zvkx06","cc6122","","TY2V01"]
[null,null,null,null,"zvkx06_ac6122__TY2V01",{"$f":"'Specifieke informatie B'!$L$48","v":0},"","Medisch specialistische hulp- IC-kst Corona- incl balans","zvkx06","ac6122","","TY2V01"]
[null,null,null,null,"zvkx06_cc6131__TY1V01",{"$f":"'Specifieke informatie B'!$I$49","v":0},"","Medisch specialistische hulp- Integraal DBC-zorgproduct gereguleerd-kst Corona- incl balans","zvkx06","cc6131","","TY1V01"]
[null,null,null,null,"zvkx06_ac6131__TY1V01",{"$f":"'Specifieke informatie B'!$J$49","v":0},"","Medisch specialistische hulp- Integraal DBC-zorgproduct gereguleerd-kst Corona- geaccepteerd","zvkx06","ac6131","","TY1V01"]
[null,null,null,null,"zvkx06_cc6131__TY2V01",{"$f":"'Specifieke informatie B'!$K$49","v":0},"","Medisch specialistische hulp- Integraal DBC-zorgproduct gereguleerd-kst Corona- incl balans","zvkx06","cc6131","","TY2V01"]
[null,null,null,null,"zvkx06_ac6131__TY2V01",{"$f":"'Specifieke informatie B'!$L$49","v":0},"","Medisch specialistische hulp- Integraal DBC-zorgproduct gereguleerd-kst Corona- geaccepteerd","zvkx06","ac6131","","TY2V01"]
[null,null,null,null,"zvkx06_cc6151__TY1V01",{"$f":"'Specifieke informatie B'!$I$50","v":0},"","Medisch specialistische hulp- Integraal DBC-zorgproduct vrije segment-kst Corona- incl balans","zvkx06","cc6151","","TY1V01"]
[null,null,null,null,"zvkx06_ac6151__TY1V01",{"$f":"'Specifieke informatie B'!$J$50","v":0},"","Medisch specialistische hulp- Integraal DBC-zorgproduct vrije segment-kst Corona-  geaccepteerd","zvkx06","ac6151","","TY1V01"]
[null,null,null,null,"zvkx06_cc6151__TY2V01",{"$f":"'Specifieke informatie B'!$K$50","v":0},"","Medisch specialistische hulp- Integraal DBC-zorgproduct vrije segment-kst Corona- incl balans","zvkx06","cc6151","","TY2V01"]
[null,null,null,null,"zvkx06_ac6151__TY2V01",{"$f":"'Specifieke informatie B'!$L$50","v":0},"","Medisch specialistische hulp- Integraal DBC-zorgproduct vrije segment-kst Corona-  geaccepteerd","zvkx06","ac6151","","TY2V01"]
[null,null,null,null,"zvkx06_cc8061__TY1V01",{"$f":"'Specifieke informatie B'!$I$51","v":0},null,"Medisch specialistische hulp- Meerkosten COVID-19, indirect-kst Corona- geaccepteerd","zvkx06","ac8061",null,"TY1V01"]
[null,null,null,null,"zvkx06_ac8061__TY1V01",{"$f":"'Specifieke informatie B'!$J$51","v":0},null,"Medisch specialistische hulp- Meerkosten COVID-19, indirect-kst Corona- geaccepteerd","zvkx06","ac8061",null,"TY1V01"]
[null,null,null,null,"zvkx06_cc8061__TY2V01",{"$f":"'Specifieke informatie B'!$K$51","v":0},null,"Medisch specialistische hulp- Meerkosten COVID-19, indirect-kst Corona- geaccepteerd","zvkx06","ac8061",null,"TY2V01"]
[null,null,null,null,"zvkx06_ac8061__TY2V01",{"$f":"'Specifieke informatie B'!$L$51","v":0},null,"Medisch specialistische hulp- Meerkosten COVID-19, indirect-kst Corona- geaccepteerd","zvkx06","ac8061",null,"TY2V01"]
[null,null,null,null,"zvkx06_cc8062__TY1V01",{"$f":"'Specifieke informatie B'!$I$52","v":0},null,"Medisch specialistische hulp- Meerkosten COVID-19, toeslagen-kst Corona- geaccepteerd","zvkx06","ac8062",null,"TY2V01"]
[null,null,null,null,"zvkx06_ac8062__TY1V01",{"$f":"'Specifieke informatie B'!$J$52","v":0},null,"Medisch specialistische hulp- Meerkosten COVID-19, toeslagen-kst Corona- geaccepteerd","zvkx06","ac8062",null,"TY2V01"]
[null,null,null,null,"zvkx07_cc620__TY1V01",{"$f":"'Specifieke informatie B'!$I$55","v":0},"","Paramedische hulp- fysiotherapie-kst Corona- incl balans","zvkx07","cc620","","TY1V01"]
[null,null,null,null,"zvkx07_ac620__TY1V01",{"$f":"'Specifieke informatie B'!$J$55","v":0},"","Paramedische hulp- fysiotherapie-kst Corona- geaccepteerd","zvkx07","ac620","","TY1V01"]
[null,null,null,null,"zvkx07_cc620__TY2V01",{"$f":"'Specifieke informatie B'!$K$55","v":0},"","Paramedische hulp- fysiotherapie-kst Corona- incl balans","zvkx07","cc620","","TY2V01"]
[null,null,null,null,"zvkx07_ac620__TY2V01",{"$f":"'Specifieke informatie B'!$L$55","v":0},"","Paramedische hulp- fysiotherapie-kst Corona- geaccepteerd","zvkx07","ac620","","TY2V01"]
[null,null,null,null,"zvkx07_cc621__TY1V01",{"$f":"'Specifieke informatie B'!$I$56","v":0},"","Paramedische hulp- Mensendieck/Cesar-kst Corona- incl balans","zvkx07","cc621","","TY1V01"]
[null,null,null,null,"zvkx07_ac621__TY1V01",{"$f":"'Specifieke informatie B'!$J$56","v":0},"","Paramedische hulp- Mensendieck/Cesar-kst Corona- geaccepteerd","zvkx07","ac621","","TY1V01"]
[null,null,null,null,"zvkx07_cc621__TY2V01",{"$f":"'Specifieke informatie B'!$K$56","v":0},"","Paramedische hulp- Mensendieck/Cesar-kst Corona- incl balans","zvkx07","cc621","","TY2V01"]
[null,null,null,null,"zvkx07_ac621__TY2V01",{"$f":"'Specifieke informatie B'!$L$56","v":0},"","Paramedische hulp- Mensendieck/Cesar-kst Corona- geaccepteerd","zvkx07","ac621","","TY2V01"]
[null,null,null,null,"zvkx07_cc623__TY1V01",{"$f":"'Specifieke informatie B'!$I$57","v":0},"","Paramedische hulp- logopedie-kst Corona- incl balans","zvkx07","cc623","","TY1V01"]
[null,null,null,null,"zvkx07_ac623__TY1V01",{"$f":"'Specifieke informatie B'!$J$57","v":0},"","Paramedische hulp- logopedie-kst Corona- geaccepteerd","zvkx07","ac623","","TY1V01"]
[null,null,null,null,"zvkx07_cc623__TY2V01",{"$f":"'Specifieke informatie B'!$K$57","v":0},"","Paramedische hulp- logopedie-kst Corona- incl balans","zvkx07","cc623","","TY2V01"]
[null,null,null,null,"zvkx07_ac623__TY2V01",{"$f":"'Specifieke informatie B'!$L$57","v":0},"","Paramedische hulp- logopedie-kst Corona- geaccepteerd","zvkx07","ac623","","TY2V01"]
[null,null,null,null,"zvkx07_cc624__TY1V01",{"$f":"'Specifieke informatie B'!$I$58","v":0},"","Paramedische hulp- ergotherapie-kst Corona- incl balans","zvkx07","cc624","","TY1V01"]
[null,null,null,null,"zvkx07_ac624__TY1V01",{"$f":"'Specifieke informatie B'!$J$58","v":0},"","Paramedische hulp- ergotherapie-kst Corona- geaccepteerd","zvkx07","ac624","","TY1V01"]
[null,null,null,null,"zvkx07_cc624__TY2V01",{"$f":"'Specifieke informatie B'!$K$58","v":0},"","Paramedische hulp- ergotherapie-kst Corona- incl balans","zvkx07","cc624","","TY2V01"]
[null,null,null,null,"zvkx07_ac624__TY2V01",{"$f":"'Specifieke informatie B'!$L$58","v":0},"","Paramedische hulp- ergotherapie-kst Corona- geaccepteerd","zvkx07","ac624","","TY2V01"]
[null,null,null,null,"zvkx07_cc625__TY1V01",{"$f":"'Specifieke informatie B'!$I$59","v":0},"","Paramedische hulp- dieetadvisering-kst Corona- incl balans","zvkx07","cc625","","TY1V01"]
[null,null,null,null,"zvkx07_ac625__TY1V01",{"$f":"'Specifieke informatie B'!$J$59","v":0},"","Paramedische hulp- dieetadvisering-kst Corona- geaccepteerd","zvkx07","ac625","","TY1V01"]
[null,null,null,null,"zvkx07_cc625__TY2V01",{"$f":"'Specifieke informatie B'!$K$59","v":0},"","Paramedische hulp- dieetadvisering-kst Corona- incl balans","zvkx07","cc625","","TY2V01"]
[null,null,null,null,"zvkx07_ac625__TY2V01",{"$f":"'Specifieke informatie B'!$L$59","v":0},"","Paramedische hulp- dieetadvisering-kst Corona- geaccepteerd","zvkx07","ac625","","TY2V01"]
[null,null,null,null,"zvkx07_cc8071__TY2V01",{"$f":"'Specifieke informatie B'!$K$60","v":0},null,"Paramedische hulp- Meerkosten COVID-19, indirect-kst Corona- geaccepteerd","zvkx07","cc8071",null,"TY2V01"]
[null,null,null,null,"zvkx07_ac8071__TY2V01",{"$f":"'Specifieke informatie B'!$L$60","v":0},null,"Paramedische hulp-  Meerkosten COVID-19, indirect-kst Corona- geaccepteerd","zvkx07","ac8071",null,"TY2V01"]
[null,null,null,null,"zvkx08_cc8081__TY1V01",{"$f":"'Specifieke informatie B'!$I$63","v":0},null,"Hulpmiddelen-- Meerkosten COVID-19, indirect-kst Corona-  incl balans","zvkx08","cc8081",null,"TY1V01"]
[null,null,null,null,"zvkx08_ac8081__TY1V01",{"$f":"'Specifieke informatie B'!$J$63","v":0},null,"Hulpmiddelen-- Meerkosten COVID-19, indirect-kst Corona- geaccepteerd","zvkx08","ac8081",null,"TY1V01"]
[null,null,null,null,"zvkx08_cc8081__TY2V01",{"$f":"'Specifieke informatie B'!$K$63","v":0},null,"Hulpmiddelen-- Meerkosten COVID-19, indirect-kst Corona-  incl balans","zvkx08","cc8081",null,"TY2V01"]
[null,null,null,null,"zvkx08_ac8081__TY2V01",{"$f":"'Specifieke informatie B'!$L$63","v":0},null,"Hulpmiddelen-- Meerkosten COVID-19, indirect-kst Corona- geaccepteerd","zvkx08","ac8081",null,"TY2V01"]
[null,null,null,null,"zvkx09_cc650__TY1V01",{"$f":"'Specifieke informatie B'!$I$66","v":0},"","Ziekenvervoer- dieetadvisering-kst Corona- incl balans","zvkx07","cc650","","TY1V01"]
[null,null,null,null,"zvkx09_ac650__TY1V01",{"$f":"'Specifieke informatie B'!$J$66","v":0},"","Ziekenvervoer- dieetadvisering-kst Corona- geaccepteerd","zvkx07","ac650","","TY1V01"]
[null,null,null,null,"zvkx09_cc650__TY2V01",{"$f":"'Specifieke informatie B'!$K$66","v":0},"","Ziekenvervoer- dieetadvisering-kst Corona- incl balans","zvkx07","cc650","","TY2V01"]
[null,null,null,null,"zvkx09_ac650__TY2V01",{"$f":"'Specifieke informatie B'!$L$66","v":0},"","Ziekenvervoer- dieetadvisering-kst Corona- geaccepteerd","zvkx07","ac650","","TY2V01"]
[null,null,null,null,"zvkx09_cc8091__TY1V01",{"$f":"'Specifieke informatie B'!$I$67","v":0},null,"Ziekenvervoer- Meerkosten COVID-19, indirect-kst Corona- incl balans","zvkx09","cc8091",null,"TY1V01"]
[null,null,null,null,"zvkx09_ac8091__TY1V01",{"$f":"'Specifieke informatie B'!$J$67","v":0},null,"Ziekenvervoer- Meerkosten COVID-19, indirect-kst Corona- geaccepteerd","zvkx09","ac8091",null,"TY1V01"]
[null,null,null,null,"zvkx09_cc8091__TY2V01",{"$f":"'Specifieke informatie B'!$K$67","v":0},null,"Ziekenvervoer- Meerkosten COVID-19, indirect-kst Corona- incl balans","zvkx09","cc8091",null,"TY2V01"]
[null,null,null,null,"zvkx09_ac8091__TY2V01",{"$f":"'Specifieke informatie B'!$L$67","v":0},null,"Ziekenvervoer- Meerkosten COVID-19, indirect-kst Corona- geaccepteerd","zvkx09","ac8091",null,"TY2V01"]
[null,null,null,null,"zvkx10_cc8101__TY1V01",{"$f":"'Specifieke informatie B'!$I$80","v":0},null,"Geneeskundige GGZ- Meerkosten Corona, indirect en toeslagen-kst Corona- geaccepteerd","zvkx10","cc8101",null,"TY1V01"]
[null,null,null,null,"zvkx10_ac8101__TY1V01",{"$f":"'Specifieke informatie B'!$J$80","v":0},null,"Geneeskundige GGZ- Meerkosten Corona, indirect en toeslagen-kst Corona- incl balans","zvkx10","ac8101",null,"TY1V01"]
[null,null,null,null,"zvkx10_cc8101__TY2V01",{"$f":"'Specifieke informatie B'!$K$80","v":0},null,"Geneeskundige GGZ- Meerkosten Corona, indirect en toeslagen-kst Corona- geaccepteerd","zvkx10","cc8101",null,"TY2V01"]
[null,null,null,null,"zvkx10_ac8101__TY2V01",{"$f":"'Specifieke informatie B'!$L$80","v":0},null,"Geneeskundige GGZ- Meerkosten Corona, indirect en toeslagen-kst Corona- incl balans","zvkx10","ac8101",null,"TY2V01"]
[null,null,null,null,"zvkx11_cc670__TY1V01",{"$f":"'Specifieke informatie B'!$I$83","v":0},"","GRZ, ELV en GZSP- Eerstelijnsverblijf-kst Corona- incl balans","zvkx11","cc671","","TY1V01"]
[null,null,null,null,"zvkx11_ac670__TY1V01",{"$f":"'Specifieke informatie B'!$J$83","v":0},"","GRZ, ELV en GZSP- Eerstelijnsverblijf-kst Corona- geaccepteerd","zvkx11","ac671","","TY1V01"]
[null,null,null,null,"zvkx11_cc670__TY2V01",{"$f":"'Specifieke informatie B'!$K$83","v":0},"","GRZ, ELV en GZSP- Eerstelijnsverblijf-kst Corona- incl balans","zvkx11","cc671","","TY2V01"]
[null,null,null,null,"zvkx11_ac670__TY2V01",{"$f":"'Specifieke informatie B'!$L$83","v":0},"","GRZ, ELV en GZSP- Eerstelijnsverblijf-kst Corona- geaccepteerd","zvkx11","ac671","","TY2V01"]
[null,null,null,null,"zvkx11_cc671__TY1V01",{"$f":"'Specifieke informatie B'!$I$84","v":0},"","GRZ, ELV en GZSP- Eerstelijnsverblijf-kst Corona- incl balans","zvkx11","cc671","","TY1V01"]
[null,null,null,null,"zvkx11_ac671__TY1V01",{"$f":"'Specifieke informatie B'!$J$84","v":0},"","GRZ, ELV en GZSP- Eerstelijnsverblijf-kst Corona- geaccepteerd","zvkx11","ac671","","TY1V01"]
[null,null,null,null,"zvkx11_cc671__TY2V01",{"$f":"'Specifieke informatie B'!$K$84","v":0},"","GRZ, ELV en GZSP- Eerstelijnsverblijf-kst Corona- incl balans","zvkx11","cc671","","TY2V01"]
[null,null,null,null,"zvkx11_ac671__TY2V01",{"$f":"'Specifieke informatie B'!$L$84","v":0},"","GRZ, ELV en GZSP- Eerstelijnsverblijf-kst Corona- geaccepteerd","zvkx11","ac671","","TY2V01"]
[null,null,null,null,"zvkx11_cc81111__TY1V01",{"$f":"'Specifieke informatie B'!$I$85","v":0},null,"GRZ, ELV en GZSP-Meerkosten COVID-19, indirect GRZ- kst Corona- incl balans","zvkx11","cc81111",null,"TY1V01"]
[null,null,null,null,"zvkx11_ac81111__TY1V01",{"$f":"'Specifieke informatie B'!$J$85","v":0},null,"GRZ, ELV en GZSP- Meerkosten COVID-19, indirect GRZ- kst Corona- geaccepteerd","zvkx11","ac81111",null,"TY1V01"]
[null,null,null,null,"zvkx11_cc81111__TY2V01",{"$f":"'Specifieke informatie B'!$K$85","v":0},null,"GRZ, ELV en GZSP- Meerkosten COVID-19, indirect GRZ- kst Corona- incl balans","zvkx11","cc81111",null,"TY2V01"]
[null,null,null,null,"zvkx11_ac81111__TY2V01",{"$f":"'Specifieke informatie B'!$L$85","v":0},null,"GRZ, ELV en GZSP- Meerkosten COVID-19, indirect GRZ- kst Corona- geaccepteerd","zvkx11","ac81111",null,"TY2V01"]
[null,null,null,null,"zvkx11_cc81121__TY1V01",{"$f":"'Specifieke informatie B'!$I$86","v":0},null,"GRZ, ELV en GZSP- Meerkosten COVID-19, indirect ELV-- kst Corona- incl balans","zvkx11","cc81121",null,"TY1V01"]
[null,null,null,null,"zvkx11_ac81121__TY1V01",{"$f":"'Specifieke informatie B'!$J$86","v":0},null,"GRZ, ELV en GZSP- Meerkosten COVID-19, indirect ELV-- kst Corona- geaccepteerd","zvkx11","ac81121",null,"TY1V01"]
[null,null,null,null,"zvkx11_cc81121__TY2V01",{"$f":"'Specifieke informatie B'!$K$86","v":0},null,"GRZ, ELV en GZSP- Meerkosten COVID-19, indirect ELV-- kst Corona- incl balans","zvkx11","cc81121",null,"TY2V01"]
[null,null,null,null,"zvkx11_ac81121__TY2V01",{"$f":"'Specifieke informatie B'!$L$86","v":0},null,"GRZ, ELV en GZSP- Meerkosten COVID-19, indirect ELV-- kst Corona- geaccepteerd","zvkx11","ac81121",null,"TY2V01"]
[null,null,null,null,"zvkx11_cc81131__TY1V01",{"$f":"'Specifieke informatie B'!$I$87","v":0},null,"GRZ, ELV en GZSP- Meerkosten COVID-19, indirect GZSP-- kst Corona- incl balans","zvkx11","cc81131",null,"TY1V01"]
[null,null,null,null,"zvkx11_ac81131__TY1V01",{"$f":"'Specifieke informatie B'!$J$87","v":0},null,"GRZ, ELV en GZSP- Meerkosten COVID-19, indirect GZSP-- kst Corona- geaccepteerd","zvkx11","ac81131",null,"TY1V01"]
[null,null,null,null,"zvkx11_cc81131__TY2V01",{"$f":"'Specifieke informatie B'!$K$87","v":0},null,"GRZ, ELV en GZSP- Meerkosten COVID-19, indirect GZSP-- kst Corona- incl balans","zvkx11","cc81131",null,"TY2V01"]
[null,null,null,null,"zvkx11_ac81131__TY2V01",{"$f":"'Specifieke informatie B'!$L$87","v":0},null,"GRZ, ELV en GZSP- Meerkosten COVID-19, indirect GZSP-- kst Corona- geaccepteerd","zvkx11","ac81131",null,"TY2V01"]
[null,null,null,null,"zvkx12_cc8121__TY2V01",{"$f":"'Specifieke informatie B'!$K$90","v":0},null,"KRAAMZORG- Meerkosten COVID-19, indirect-kst Corona- incl balans","zvkx12","cc8121",null,"TY2V01"]
[null,null,null,null,"zvkx12_ac8121__TY2V01",{"$f":"'Specifieke informatie B'!$L$90","v":0},null,"KRAAMZORG- Meerkosten COVID-19, indirect-kst Corona- geaccepteerd","zvkx12","ac8121",null,"TY2V01"]
[null,null,null,null,"zvkx13_cc8131__TY2V01",{"$f":"'Specifieke informatie B'!$K$93","v":0},null,"Overige kosten-- Meerkosten COVID-19, indirect-kst Corona- incl balans","zvkx13","cc8131",null,"TY2V01"]
[null,null,null,null,"zvkx13_ac8131__TY2V01",{"$f":"'Specifieke informatie B'!$L$93","v":0},null,"Overige kosten-- Meerkosten COVID-19, indirect-kst Corona- geaccepteerd","zvkx13","ac8131",null,"TY2V01"]
[null,null,null,null,"zvkxdnb_cc915__TY1V01",{"$f":"'Specifieke informatie B'!$I$110","v":0},"","Verschilposten DNB- Schade tlv het verplicht eigen risico- incl balans","zvkxdnb","cc915","","TY1V01"]
[null,null,null,null,"zvkxdnb_ac915__TY1V01",{"$f":"'Specifieke informatie B'!$J$110","v":0},"","Verschilposten DNB- Schade tlv het verplicht eigen risico- geaccepteerd","zvkxdnb","ac915","","TY1V01"]
[null,null,null,null,"zvkxdnb_cc915__TY2V01",{"$f":"'Specifieke informatie B'!$K$110","v":0},"","Verschilposten DNB- Schade tlv het verplicht eigen risico- incl balans","zvkxdnb","cc915","","TY2V01"]
[null,null,null,null,"zvkxdnb_ac915__TY2V01",{"$f":"'Specifieke informatie B'!$L$110","v":0},"","Verschilposten DNB- Schade tlv het verplicht eigen risico- geaccepteerd","zvkxdnb","ac915","","TY2V01"]
[null,null,null,null,"zvkx01_cc__TY1V01",{"$f":"'Specifieke informatie B'!$I$53","v":0}]
[null,null,null,null,"zvkx01_ac__TY1V01",{"$f":"'Specifieke informatie B'!$J$53","v":0}]
[null,null,null,null,"zvkx01_cc__TY2V01",{"$f":"'Specifieke informatie B'!$K$53","v":0}]
[null,null,null,null,"zvkx01_ac__TY2V01",{"$f":"'Specifieke informatie B'!$L$53","v":0}]
[null,null,null,null,"zvkx02_cc__TY1V01",{"$f":"'Specifieke informatie B'!$I$24","v":0}]
[null,null,null,null,"zvkx02_ac__TY1V01",{"$f":"'Specifieke informatie B'!$J$24","v":0}]
[null,null,null,null,"zvkx02_cc__TY2V01",{"$f":"'Specifieke informatie B'!$K$24","v":0}]
[null,null,null,null,"zvkx02_ac__TY2V01",{"$f":"'Specifieke informatie B'!$L$24","v":0}]
[null,null,null,null,"zvkx03_cc__TY1V01",{"$f":"'Specifieke informatie B'!$I$28","v":0}]
[null,null,null,null,"zvkx03_ac__TY1V01",{"$f":"'Specifieke informatie B'!$J$28","v":0}]
[null,null,null,null,"zvkx03_cc__TY2V01",{"$f":"'Specifieke informatie B'!$K$28","v":0}]
[null,null,null,null,"zvkx03_ac__TY2V01",{"$f":"'Specifieke informatie B'!$L$28","v":0}]
[null,null,null,null,"zvkx04_cc__TY1V01",{"$f":"'Specifieke informatie B'!$I$32","v":0}]
[null,null,null,null,"zvkx04_ac__TY1V01",{"$f":"'Specifieke informatie B'!$J$32","v":0}]
[null,null,null,null,"zvkx04_cc__TY2V01",{"$f":"'Specifieke informatie B'!$K$32","v":0}]
[null,null,null,null,"zvkx04_ac__TY2V01",{"$f":"'Specifieke informatie B'!$L$32","v":0}]
[null,null,null,null,"zvkx05_cc__TY1V01",{"$f":"'Specifieke informatie B'!$I$35","v":0}]
[null,null,null,null,"zvkx05_ac__TY1V01",{"$f":"'Specifieke informatie B'!$J$35","v":0}]
[null,null,null,null,"zvkx05_cc__TY2V01",{"$f":"'Specifieke informatie B'!$K$35","v":0}]
[null,null,null,null,"zvkx05_ac__TY2V01",{"$f":"'Specifieke informatie B'!$L$35","v":0}]
[null,null,null,null,"zvkx06_cc__TY1V01",{"$f":"'Specifieke informatie B'!$I$53","v":0}]
[null,null,null,null,"zvkx06_ac__TY1V01",{"$f":"'Specifieke informatie B'!$J$53","v":0}]
[null,null,null,null,"zvkx06_cc__TY2V01",{"$f":"'Specifieke informatie B'!$K$53","v":0}]
[null,null,null,null,"zvkx06_ac__TY2V01",{"$f":"'Specifieke informatie B'!$L$53","v":0}]
[null,null,null,null,"zvkx07_cc__TY1V01",{"$f":"'Specifieke informatie B'!$I$61","v":0}]
[null,null,null,null,"zvkx07_ac__TY1V01",{"$f":"'Specifieke informatie B'!$J$61","v":0}]
[null,null,null,null,"zvkx07_cc__TY2V01",{"$f":"'Specifieke informatie B'!$K$61","v":0}]
[null,null,null,null,"zvkx07_ac__TY2V01",{"$f":"'Specifieke informatie B'!$L$61","v":0}]
[null,null,null,null,"zvkx08_cc__TY1V01",{"$f":"'Specifieke informatie B'!$I$64","v":0}]
[null,null,null,null,"zvkx08_ac__TY1V01",{"$f":"'Specifieke informatie B'!$J$64","v":0}]
[null,null,null,null,"zvkx08_cc__TY2V01",{"$f":"'Specifieke informatie B'!$K$64","v":0}]
[null,null,null,null,"zvkx08_ac__TY2V01",{"$f":"'Specifieke informatie B'!$L$64","v":0}]
[null,null,null,null,"zvkx09_cc__TY1V01",{"$f":"'Specifieke informatie B'!$I$68","v":0}]
[null,null,null,null,"zvkx09_ac__TY1V01",{"$f":"'Specifieke informatie B'!$J$68","v":0}]
[null,null,null,null,"zvkx09_cc__TY2V01",{"$f":"'Specifieke informatie B'!$K$68","v":0}]
[null,null,null,null,"zvkx09_ac__TY2V01",{"$f":"'Specifieke informatie B'!$L$68","v":0}]
[null,null,null,null,"zvkx10_cc__TY1V01",{"$f":"'Specifieke informatie B'!$I$81","v":0}]
[null,null,null,null,"zvkx10_ac__TY1V01",{"$f":"'Specifieke informatie B'!$J$81","v":0}]
[null,null,null,null,"zvkx10_cc__TY2V01",{"$f":"'Specifieke informatie B'!$K$81","v":0}]
[null,null,null,null,"zvkx10_ac__TY2V01",{"$f":"'Specifieke informatie B'!$L$81","v":0}]
[null,null,null,null,"zvkx11_cc__TY1V01",{"$f":"'Specifieke informatie B'!$I$88","v":0}]
[null,null,null,null,"zvkx11_ac__TY1V01",{"$f":"'Specifieke informatie B'!$J$88","v":0}]
[null,null,null,null,"zvkx11_cc__TY2V01",{"$f":"'Specifieke informatie B'!$K$88","v":0}]
[null,null,null,null,"zvkx11_ac__TY2V01",{"$f":"'Specifieke informatie B'!$L$88","v":0}]
[null,null,null,null,"zvkx12_cc__TY2V01",{"$f":"'Specifieke informatie B'!$K$91","v":0}]
[null,null,null,null,"zvkx12_ac__TY2V01",{"$f":"'Specifieke informatie B'!$L$91","v":0}]
[null,null,null,null,"zvkx13_cc__TY2V01",{"$f":"'Specifieke informatie B'!$K$94","v":0}]
[null,null,null,null,"zvkx13_ac__TY2V01",{"$f":"'Specifieke informatie B'!$L$94","v":0}]
[null,null,null,null,"zvkx_cc__TY1V01",{"$f":"'Specifieke informatie B'!$I$99","v":0}]
[null,null,null,null,"zvkx_ac__TY1V01",{"$f":"'Specifieke informatie B'!$J$99","v":0}]
[null,null,null,null,"zvkx_cc__TY2V01",{"$f":"'Specifieke informatie B'!$K$99","v":0}]
[null,null,null,null,"zvkx_ac__TY2V01",{"$f":"'Specifieke informatie B'!$L$99","v":0}]
[null,null,null,null,"zvox01_c97101_o01trf_TY0V01",{"$f":"Contractinformatie!$J$14","v":0},"","Huisartsenzorg en Multidisciplinaire zorg, (code 503,504,505,506,507,515)- Gecontracteerd 503,504,505,506,507,515- incl balans","zvox01","c97101","o01trf","TY0V01"]
[null,null,null,null,"zvox01_c97101_o01trf_TY1V01",{"$f":"Contractinformatie!$K$14","v":0},"","Huisartsenzorg en Multidisciplinaire zorg, (code 503,504,505,506,507,515)- Gecontracteerd 503,504,505,506,507,515- incl balans","zvox01","c97101","o01trf","TY1V01"]
[null,null,null,null,"zvox01_c97101_o01trf_TY2V01",{"$f":"Contractinformatie!$L$14","v":0},"","Huisartsenzorg en Multidisciplinaire zorg, (code 503,504,505,506,507,515)- Gecontracteerd 503,504,505,506,507,515- incl balans","zvox01","c97101","o01trf","TY2V01"]
[null,null,null,null,"zvox01_c97101_o52trf_TY0V01",{"$f":"Contractinformatie!$J$15","v":0},"","Huisartsenzorg en Multidisciplinaire zorg, (code 503,504,505,506,507,515)- Niet gecontracteerd 503,504,505,506,507,515- incl balans","zvox01","c97101","o52trf","TY0V01"]
[null,null,null,null,"zvox01_c97101_o52trf_TY1V01",{"$f":"Contractinformatie!$K$15","v":0},"","Huisartsenzorg en Multidisciplinaire zorg, (code 503,504,505,506,507,515)- Niet gecontracteerd 503,504,505,506,507,515- incl balans","zvox01","c97101","o52trf","TY1V01"]
[null,null,null,null,"zvox01_c97101_o52trf_TY2V01",{"$f":"Contractinformatie!$L$15","v":0},"","Huisartsenzorg en Multidisciplinaire zorg, (code 503,504,505,506,507,515)- Niet gecontracteerd 503,504,505,506,507,515- incl balans","zvox01","c97101","o52trf","TY2V01"]
[null,null,null,null,"zvox01_c97101_o01mdz_TY0V01",{"$f":"Contractinformatie!$J$18","v":0},"","Huisartsenzorg en Multidisciplinaire zorg, (code 510 en 516)- Gecontracteerd 510,516- incl balans","zvox01","c97101","o01mdz","TY0V01"]
[null,null,null,null,"zvox01_c97101_o01mdz_TY1V01",{"$f":"Contractinformatie!$K$18","v":0},"","Huisartsenzorg en Multidisciplinaire zorg, (code 510 en 516)- Gecontracteerd 510,516- incl balans","zvox01","c97101","o01mdz","TY1V01"]
[null,null,null,null,"zvox01_c97101_o01mdz_TY2V01",{"$f":"Contractinformatie!$L$18","v":0},"","Huisartsenzorg en Multidisciplinaire zorg, (code 510 en 516)- Gecontracteerd 510,516- incl balans","zvox01","c97101","o01mdz","TY2V01"]
[null,null,null,null,"zvox01_c97101_o52mdz_TY0V01",{"$f":"Contractinformatie!$J$19","v":0},"","Huisartsenzorg en Multidisciplinaire zorg, (code 510 en 516)- Niet gecontracteerd  510,516- incl balans","zvox01","c97101","o52mdz","TY0V01"]
[null,null,null,null,"zvox01_c97101_o52mdz_TY1V01",{"$f":"Contractinformatie!$K$19","v":0},"","Huisartsenzorg en Multidisciplinaire zorg, (code 510 en 516)- Niet gecontracteerd  510,516- incl balans","zvox01","c97101","o52mdz","TY1V01"]
[null,null,null,null,"zvox01_c97101_o52mdz_TY2V01",{"$f":"Contractinformatie!$L$19","v":0},"","Huisartsenzorg en Multidisciplinaire zorg, (code 510 en 516)- Niet gecontracteerd  510,516- incl balans","zvox01","c97101","o52mdz","TY2V01"]
[null,null,null,null,"zvox01_c97101_o01mk_TY1V01",{"$f":"Contractinformatie!$K$21","v":0},null,"Huisartsenzorg en Multidisciplinaire zorg- Meerkosten (toeslagen en lumpsum), gecontracteerd en niet gecontracteerd- incl balans","zvox01","c97101","o01mk","TY1V01"]
[null,null,null,null,"zvox01_c97101_o01mk_TY2V01",{"$f":"Contractinformatie!$L$21","v":0},null,"Huisartsenzorg en Multidisciplinaire zorg- Meerkosten (toeslagen en lumpsum), gecontracteerd en niet gecontracteerd- incl balans","zvox01","c97101","o01mk","TY2V01"]
[null,null,null,null,"zvox01_c97101_o01ncc_TY1V01",{"$f":"Contractinformatie!$K$22","v":0},null,"Huisartsenzorg en Multidisciplinaire zorg- Netto Continuïteitsbijdrage Corona, gecontracteerd en niet gecontracteerd- incl balans","zvox01","c97101","o01ncc","TY1V01"]
[null,null,null,null,"zvox01_c97101_o01ncc_TY2V01",{"$f":"Contractinformatie!$L$22","v":0},null,"Huisartsenzorg en Multidisciplinaire zorg- Netto Continuïteitsbijdrage Corona, gecontracteerd en niet gecontracteerd- incl balans","zvox01","c97101","o01ncc","TY2V01"]
[null,null,null,null,"zvox03_c97103_o01_TY0V01",{"$f":"Contractinformatie!$J$28","v":0},"","Contractinformatie Verpleging en Verzorging- Gecontracteerd- incl balans","zvox03","c97103","o01","TY0V01"]
[null,null,null,null,"zvox03_c97103_o01_TY1V01",{"$f":"Contractinformatie!$K$28","v":0},"","Contractinformatie Verpleging en Verzorging- Gecontracteerd- incl balans","zvox03","c97103","o01","TY1V01"]
[null,null,null,null,"zvox03_c97103_o01_TY2V01",{"$f":"Contractinformatie!$L$28","v":0},"","Contractinformatie Verpleging en Verzorging- Gecontracteerd- incl balans","zvox03","c97103","o01","TY2V01"]
[null,null,null,null,"zvox03_c97103_o52_TY0V01",{"$f":"Contractinformatie!$J$29","v":0},"","Contractinformatie Verpleging en Verzorging- Niet gecontracteerd- incl balans","zvox03","c97103","o52","TY0V01"]
[null,null,null,null,"zvox03_c97103_o52_TY1V01",{"$f":"Contractinformatie!$K$29","v":0},"","Contractinformatie Verpleging en Verzorging- Niet gecontracteerd- incl balans","zvox03","c97103","o52","TY1V01"]
[null,null,null,null,"zvox03_c97103_o52_TY2V01",{"$f":"Contractinformatie!$L$29","v":0},"","Contractinformatie Verpleging en Verzorging- Niet gecontracteerd- incl balans","zvox03","c97103","o52","TY2V01"]
[null,null,null,null,"zvox03_c97103_o08_TY0V01",{"$f":"Contractinformatie!$J$30","v":0},null,"Contractinformatie Verpleging en Verzorging- PGB- incl balans","zvox03","c97103","o08","TY0V01"]
[null,null,null,null,"zvox03_c97103_o08_TY1V01",{"$f":"Contractinformatie!$K$30","v":0},null,"Contractinformatie Verpleging en Verzorging- PGB- incl balans","zvox03","c97103","o08","TY1V01"]
[null,null,null,null,"zvox03_c97103_o08_TY2V01",{"$f":"Contractinformatie!$L$30","v":0},null,"Contractinformatie Verpleging en Verzorging- PGB- incl balans","zvox03","c97103","o08","TY2V01"]
[null,null,null,null,"zvox03_c97103_o01mk_TY0V01",{"$f":"Contractinformatie!$J$31","v":0},null,"Contractinformatie Verpleging en Verzorging- Meerkosten (toeslagen en lumpsum), gecontracteerd en niet gecontracteerd- incl balans","zvox03","c97101","o01mk","TY0V01"]
[null,null,null,null,"zvox03_c97103_o01mk_TY1V01",{"$f":"Contractinformatie!$K$31","v":0},null,"Contractinformatie Verpleging en Verzorging- Meerkosten (toeslagen en lumpsum), gecontracteerd en niet gecontracteerd- incl balans","zvox03","c97101","o01mk","TY1V01"]
[null,null,null,null,"zvox03_c97103_o01mk_TY2V01",{"$f":"Contractinformatie!$L$31","v":0},null,"Contractinformatie Verpleging en Verzorging- Meerkosten (toeslagen en lumpsum), gecontracteerd en niet gecontracteerd- incl balans","zvox03","c97101","o01mk","TY2V01"]
[null,null,null,null,"zvox03_c97103_o01ncc_TY1V01",{"$f":"Contractinformatie!$K$32","v":0},null,"Contractinformatie Verpleging en Verzorging- Netto Continuïteitsbijdrage Corona, gecontracteerd en niet gecontracteerd- incl balans","zvox03","c97101","o01ncc","TY1V01"]
[null,null,null,null,"zvox03_c97103_o01ncc_TY2V01",{"$f":"Contractinformatie!$L$32","v":0},null,"Contractinformatie Verpleging en Verzorging- Netto Continuïteitsbijdrage Corona, gecontracteerd en niet gecontracteerd- incl balans","zvox03","c97101","o01ncc","TY2V01"]
[null,null,null,null,"zvox06_c97106_o02_TY0V01",{"$f":"Contractinformatie!$J$38","v":0},"","Medisch Specialistische Zorg- aanneemsom- incl balans","zvox06","c97106","o02","TY0V01"]
[null,null,null,null,"zvox06_c97106_o02_TY1V01",{"$f":"Contractinformatie!$K$38","v":0},"","Medisch Specialistische Zorg- aanneemsom- incl balans","zvox06","c97106","o02","TY1V01"]
[null,null,null,null,"zvox06_c97106_o02_TY2V01",{"$f":"Contractinformatie!$L$38","v":0},"","Medisch Specialistische Zorg- aanneemsom- incl balans","zvox06","c97106","o02","TY2V01"]
[null,null,null,null,"zvox06_c97106_o03_TY0V01",{"$f":"Contractinformatie!$J$39","v":0},"","Medisch Specialistische Zorg- plafond- incl balans","zvox06","c97106","o03","TY0V01"]
[null,null,null,null,"zvox06_c97106_o03_TY1V01",{"$f":"Contractinformatie!$K$39","v":0},"","Medisch Specialistische Zorg- plafond- incl balans","zvox06","c97106","o03","TY1V01"]
[null,null,null,null,"zvox06_c97106_o03_TY2V01",{"$f":"Contractinformatie!$L$39","v":0},"","Medisch Specialistische Zorg- plafond- incl balans","zvox06","c97106","o03","TY2V01"]
[null,null,null,null,"zvox06_c97106_o04_TY0V01",{"$f":"Contractinformatie!$J$40","v":0},"","Medisch Specialistische Zorg- nacalculatie- incl balans","zvox06","c97106","o04","TY0V01"]
[null,null,null,null,"zvox06_c97106_o04_TY1V01",{"$f":"Contractinformatie!$K$40","v":0},"","Medisch Specialistische Zorg- nacalculatie- incl balans","zvox06","c97106","o04","TY1V01"]
[null,null,null,null,"zvox06_c97106_o04_TY2V01",{"$f":"Contractinformatie!$L$40","v":0},"","Medisch Specialistische Zorg- nacalculatie- incl balans","zvox06","c97106","o04","TY2V01"]
[null,null,null,null,"zvox06_c97106_o05_TY0V01",{"$f":"Contractinformatie!$J$41","v":0},"","Medisch Specialistische Zorg- open einde contract- incl balans","zvox06","c97106","o05","TY0V01"]
[null,null,null,null,"zvox06_c97106_o05_TY1V01",{"$f":"Contractinformatie!$K$41","v":0},"","Medisch Specialistische Zorg- open einde contract- incl balans","zvox06","c97106","o05","TY1V01"]
[null,null,null,null,"zvox06_c97106_o05_TY2V01",{"$f":"Contractinformatie!$L$41","v":0},"","Medisch Specialistische Zorg- open einde contract- incl balans","zvox06","c97106","o05","TY2V01"]
[null,null,null,null,"zvox06_c97106_o52_TY0V01",{"$f":"Contractinformatie!$J$43","v":0},"","Medisch Specialistische Zorg- Niet gecontracteerd- incl balans","zvox06","c97106","o52","TY0V01"]
[null,null,null,null,"zvox06_c97106_o52_TY1V01",{"$f":"Contractinformatie!$K$43","v":0},"","Medisch Specialistische Zorg- Niet gecontracteerd- incl balans","zvox06","c97106","o52","TY1V01"]
[null,null,null,null,"zvox06_c97106_o52_TY2V01",{"$f":"Contractinformatie!$L$43","v":0},"","Medisch Specialistische Zorg- Niet gecontracteerd- incl balans","zvox06","c97106","o52","TY2V01"]
[null,null,null,null,"zvox06_c97106_o01mkstC_TY0V01",{"$f":"Contractinformatie!$J$44","v":0},null,"Medisch Specialistische Zorg- Meerkosten (toeslagen en lumpsum), gecontracteerd en niet gecontracteerd- incl balans","zvox06","c97106","o01mk","TY0V01"]
[null,null,null,null,"zvox06_c97106_o01mkstC_TY1V01",{"$f":"Contractinformatie!$K$44","v":0},null,"Medisch Specialistische Zorg- Meerkosten (toeslagen en lumpsum), gecontracteerd en niet gecontracteerd- incl balans","zvox06","c97106","o01mk","TY1V01"]
[null,null,null,null,"zvox06_c97106_o01mkstC_TY2V01",{"$f":"Contractinformatie!$L$44","v":0},null,"Medisch Specialistische Zorg- Meerkosten (toeslagen en lumpsum), gecontracteerd en niet gecontracteerd- incl balans","zvox06","c97106","o01mk","TY2V01"]
[null,null,null,null,"zvox06_c97106_o01ncc_TY1V01",{"$f":"Contractinformatie!$K$45","v":0},null,"Medisch Specialistische Zorg- Netto Continuïteitsbijdrage Corona, gecontracteerd en niet gecontracteerd- incl balans","zvox06","c97106","o01ncc","TY1V01"]
[null,null,null,null,"zvox06_c97106_o01ncc_TY2V01",{"$f":"Contractinformatie!$L$45","v":0},null,"Medisch Specialistische Zorg- Netto Continuïteitsbijdrage Corona, gecontracteerd en niet gecontracteerd- incl balans","zvox06","c97106","o01ncc","TY2V01"]
[null,null,null,null,"zvox06_c97106_o91_TY0V01",{"$f":"Contractinformatie!$J$49","v":0},null,"Medisch Specialistische Zorg- Totaal afgesproken maximum omzet plafondcontracten- incl balans","zvox06","c97106","o91","TY0V01"]
[null,null,null,null,"zvox06_c97106_o91_TY1V01",{"$f":"Contractinformatie!$K$49","v":0},null,"Medisch Specialistische Zorg- Totaal afgesproken maximum omzet plafondcontracten- incl balans","zvox06","c97106","o91","TY1V01"]
[null,null,null,null,"zvox06_c97106_o91_TY2V01",{"$f":"Contractinformatie!$L$49","v":0},null,"Medisch Specialistische Zorg- Totaal afgesproken maximum omzet plafondcontracten- incl balans","zvox06","c97106","o91","TY2V01"]
[null,null,null,null,"zvox10_c97110_o02_TY0V01",{"$f":"Contractinformatie!$J$59","v":0},"","Geneeskundige GGZ- aanneemsom- incl balans","zvox10","c97110","o02","TY0V01"]
[null,null,null,null,"zvox10_c97110_o02_TY1V01",{"$f":"Contractinformatie!$K$59","v":0},"","Geneeskundige GGZ- aanneemsom- incl balans","zvox10","c97110","o02","TY1V01"]
[null,null,null,null,"zvox10_c97110_o02_TY2V01",{"$f":"Contractinformatie!$L$59","v":0},"","Geneeskundige GGZ- aanneemsom- incl balans","zvox10","c97110","o02","TY2V01"]
[null,null,null,null,"zvox10_c97110_o03_TY0V01",{"$f":"Contractinformatie!$J$60","v":0},"","Geneeskundige GGZ- plafond- incl balans","zvox10","c97110","o03","TY0V01"]
[null,null,null,null,"zvox10_c97110_o03_TY1V01",{"$f":"Contractinformatie!$K$60","v":0},"","Geneeskundige GGZ- plafond- incl balans","zvox10","c97110","o03","TY1V01"]
[null,null,null,null,"zvox10_c97110_o03_TY2V01",{"$f":"Contractinformatie!$L$60","v":0},"","Geneeskundige GGZ- plafond- incl balans","zvox10","c97110","o03","TY2V01"]
[null,null,null,null,"zvox10_c97110_o04_TY0V01",{"$f":"Contractinformatie!$J$61","v":0},"","Geneeskundige GGZ- nacalculatie- incl balans","zvox10","c97110","o04","TY0V01"]
[null,null,null,null,"zvox10_c97110_o04_TY1V01",{"$f":"Contractinformatie!$K$61","v":0},"","Geneeskundige GGZ- nacalculatie- incl balans","zvox10","c97110","o04","TY1V01"]
[null,null,null,null,"zvox10_c97110_o04_TY2V01",{"$f":"Contractinformatie!$L$61","v":0},"","Geneeskundige GGZ- nacalculatie- incl balans","zvox10","c97110","o04","TY2V01"]
[null,null,null,null,"zvox10_c97110_o05_TY0V01",{"$f":"Contractinformatie!$J$62","v":0},"","Geneeskundige GGZ- open einde contract- incl balans","zvox10","c97110","o05","TY0V01"]
[null,null,null,null,"zvox10_c97110_o05_TY1V01",{"$f":"Contractinformatie!$K$62","v":0},"","Geneeskundige GGZ- open einde contract- incl balans","zvox10","c97110","o05","TY1V01"]
[null,null,null,null,"zvox10_c97110_o05_TY2V01",{"$f":"Contractinformatie!$L$62","v":0},"","Geneeskundige GGZ- open einde contract- incl balans","zvox10","c97110","o05","TY2V01"]
[null,null,null,null,"zvox10_c97110_o52_TY0V01",{"$f":"Contractinformatie!$J$64","v":0},"","Geneeskundige GGZ- Niet gecontracteerd- incl balans","zvox10","c97110","o52","TY0V01"]
[null,null,null,null,"zvox10_c97110_o52_TY1V01",{"$f":"Contractinformatie!$K$64","v":0},"","Geneeskundige GGZ- Niet gecontracteerd- incl balans","zvox10","c97110","o52","TY1V01"]
[null,null,null,null,"zvox10_c97110_o52_TY2V01",{"$f":"Contractinformatie!$L$64","v":0},"","Geneeskundige GGZ- Niet gecontracteerd- incl balans","zvox10","c97110","o52","TY2V01"]
[null,null,null,null,"zvox10_c97110_o01mk_TY1V01",{"$f":"Contractinformatie!$K$65","v":0},null,"Geneeskundige GGZ- Meerkosten (toeslagen en lumpsum), gecontracteerd en niet gecontracteerd- incl balans","zvox10","c97110","o01mk","TY0V01"]
[null,null,null,null,"zvox10_c97110_o01mk_TY2V01",{"$f":"Contractinformatie!$L$65","v":0},null,"Geneeskundige GGZ- Meerkosten (toeslagen en lumpsum), gecontracteerd en niet gecontracteerd- incl balans","zvox10","c97110","o01mk","TY0V01"]
[null,null,null,null,"zvox10_c97110_o01ncc_TY1V01",{"$f":"Contractinformatie!$K$66","v":0},null,"Geneeskundige GGZ- Netto Continuïteitsbijdrage Corona, gecontracteerd en niet gecontracteerd- incl balans","zvox10","c97110","o01ncc","TY0V01"]
[null,null,null,null,"zvox10_c97110_o01ncc_TY2V01",{"$f":"Contractinformatie!$L$66","v":0},null,"Geneeskundige GGZ- Netto Continuïteitsbijdrage Corona, gecontracteerd en niet gecontracteerd- incl balans","zvox10","c97110","o01ncc","TY1V01"]
[null,null,null,null,"zvox10_c97110_o91_TY0V01",{"$f":"Contractinformatie!$J$70","v":0},null,"Geneeskundige GGZ- Totaal afgesproken maximum omzet plafondcontracten- incl balans","zvox10","c97110","o91","TY0V01"]
[null,null,null,null,"zvox10_c97110_o91_TY1V01",{"$f":"Contractinformatie!$K$70","v":0},null,"Geneeskundige GGZ- Totaal afgesproken maximum omzet plafondcontracten- incl balans","zvox10","c97110","o91","TY1V01"]
[null,null,null,null,"zvox10_c97110_o91_TY2V01",{"$f":"Contractinformatie!$L$70","v":0},null,"Geneeskundige GGZ- Totaal afgesproken maximum omzet plafondcontracten- incl balans","zvox10","c97110","o91","TY2V01"]
[null,null,null,null,"zvox13_c97113_bo01_TY0V01",{"$f":"Contractinformatie!$J$75","v":0},"","Zintuiglijk gehandicapten- Gecontracteerd- incl balans","zvox13","c97113","bo01","TY0V01"]
[null,null,null,null,"zvox13_c97113_bo01_TY1V01",{"$f":"Contractinformatie!$K$75","v":0},"","Zintuiglijk gehandicapten- Gecontracteerd- incl balans","zvox13","c97113","bo01","TY1V01"]
[null,null,null,null,"zvox13_c97113_bo01_TY2V01",{"$f":"Contractinformatie!$L$75","v":0},"","Zintuiglijk gehandicapten- Gecontracteerd- incl balans","zvox13","c97113","bo01","TY2V01"]
[null,null,null,null,"zvox13_c97113_bo52_TY0V01",{"$f":"Contractinformatie!$J$76","v":0},"","Zintuiglijk gehandicapten- Niet gecontracteerd- incl balans","zvox13","c97113","bo52","TY0V01"]
[null,null,null,null,"zvox13_c97113_bo52_TY1V01",{"$f":"Contractinformatie!$K$76","v":0},"","Zintuiglijk gehandicapten- Niet gecontracteerd- incl balans","zvox13","c97113","bo52","TY1V01"]
[null,null,null,null,"zvox13_c97113_bo52_TY2V01",{"$f":"Contractinformatie!$L$76","v":0},"","Zintuiglijk gehandicapten- Niet gecontracteerd- incl balans","zvox13","c97113","bo52","TY2V01"]
[null,null,null,null,"zvox13_c97113_o01mk_TY1V01",{"$f":"Contractinformatie!$K$77","v":0},null,"Zintuiglijk gehandicapten- Meerkosten (toeslagen en lumpsum), gecontracteerd en niet gecontracteerd- incl balans","zvox13","c97113","o01mk","TY1V01"]
[null,null,null,null,"zvox13_c97113_o01mk_TY2V01",{"$f":"Contractinformatie!$L$77","v":0},null,"Zintuiglijk gehandicapten- Meerkosten (toeslagen en lumpsum), gecontracteerd en niet gecontracteerd- incl balans","zvox13","c97113","o01mk","TY2V01"]
[null,null,null,null,"zvox13_c97113_o01ncc_TY1V01",{"$f":"Contractinformatie!$K$78","v":0},null,"Zintuiglijk gehandicapten- Netto Continuïteitsbijdrage Corona, gecontracteerd en niet gecontracteerd- incl balans","zvox13","c97113","o01ncc","TY1V01"]
[null,null,null,null,"zvox13_c97113_o01ncc_TY2V01",{"$f":"Contractinformatie!$L$78","v":0},null,"Zintuiglijk gehandicapten- Netto Continuïteitsbijdrage Corona, gecontracteerd en niet gecontracteerd- incl balans","zvox13","c97113","o01ncc","TY2V01"]
[null,null,null,null,"zvox11_c97111_o01rvl_TY1V01",{"$f":"Contractinformatie!$J$85","v":0},"","Geriatrische Revalidatiezorg 670 en Eerstelijnsverblijf 671,  Geneeskundige Zorg Specifieke Patiëntgroepen (code 672))- Gecontracteerd  670- incl balans","zvox11","c97111","o01rvl","TY0V01"]
[null,null,null,null,"zvox11_c97111_o01rvl_TY0V01",{"$f":"Contractinformatie!$K$85","v":0},"","Geriatrische Revalidatiezorg 670 en Eerstelijnsverblijf 671,  Geneeskundige Zorg Specifieke Patiëntgroepen (code 672)- Gecontracteerd  670- incl balans","zvox11","c97111","o01rvl","TY1V01"]
[null,null,null,null,"zvox11_c97111_o01rvl_TY2V01",{"$f":"Contractinformatie!$L$85","v":0},"","Geriatrische Revalidatiezorg 670 en Eerstelijnsverblijf 671,  Geneeskundige Zorg Specifieke Patiëntgroepen (code 672))- Gecontracteerd  670- incl balans","zvox11","c97111","o01rvl","TY2V01"]
[null,null,null,null,"zvox11_c97111_o52rvl_TY0V01",{"$f":"Contractinformatie!$J$86","v":0},"","Geriatrische Revalidatiezorg 670 en Eerstelijnsverblijf 671,  Geneeskundige Zorg Specifieke Patiëntgroepen (code 672)- Niet gecontracteerd 670- incl balans","zvox11","c97111","o52rvl","TY0V01"]
[null,null,null,null,"zvox11_c97111_o52rvl_TY1V01",{"$f":"Contractinformatie!$K$86","v":0},"","Geriatrische Revalidatiezorg 670 en Eerstelijnsverblijf 671,  Geneeskundige Zorg Specifieke Patiëntgroepen (code 672)- Niet gecontracteerd 670- incl balans","zvox11","c97111","o52rvl","TY1V01"]
[null,null,null,null,"zvox11_c97111_o52rvl_TY2V01",{"$f":"Contractinformatie!$L$86","v":0},"","Geriatrische Revalidatiezorg 670 en Eerstelijnsverblijf 671,  Geneeskundige Zorg Specifieke Patiëntgroepen (code 672)- Niet gecontracteerd 670- incl balans","zvox11","c97111","o52rvl","TY2V01"]
[null,null,null,null,"zvox11_c97111_o52rvlmk_TY1V01",{"$f":"Contractinformatie!$K$87","v":0},null,"Geriatrische Revalidatiezorg 670 en Eerstelijnsverblijf 671, Geneeskundige Zorg Specifieke Patiëntgroepen (code 672)- Meerkosten (toeslagen en lumpsum), gecontracteerd en niet gecontracteerd- incl balans","zvox11","c97111","o52rvlm","TY1V01"]
[null,null,null,null,"zvox11_c97111_o52rvlmk_TY2V01",{"$f":"Contractinformatie!$L$87","v":0},null,"Geriatrische Revalidatiezorg 670 en Eerstelijnsverblijf 671, Geneeskundige Zorg Specifieke Patiëntgroepen (code 672)- Meerkosten (toeslagen en lumpsum), gecontracteerd en niet gecontracteerd- incl balans","zvox11","c97111","o52rvlmk","TY2V01"]
[null,null,null,null,"zvox11_c97111_o52rvlncc_TY1V01",{"$f":"Contractinformatie!$K$88","v":0},null,"Geriatrische Revalidatiezorg 670 en Eerstelijnsverblijf 671, Geneeskundige Zorg Specifieke Patiëntgroepen (code 672)- Netto Continuïteitsbijdrage Corona, gecontracteerd en niet gecontracteerd- incl balans","zvox11","c97111","o52rvlncc","TY1V01"]
[null,null,null,null,"zvox11_c97111_o52rvlncc_TY2V01",{"$f":"Contractinformatie!$L$88","v":0},null,"Geriatrische Revalidatiezorg 670 en Eerstelijnsverblijf 671, Geneeskundige Zorg Specifieke Patiëntgroepen (code 672)- Netto Continuïteitsbijdrage Corona, gecontracteerd en niet gecontracteerd- incl balans","zvox11","c97111","o52rvlncc","TY2V01"]
[null,null,null,null,"zvox11_c97111_o01ln1_TY0V01",{"$f":"Contractinformatie!$J$91","v":0},"","Geriatrische Revalidatiezorg 670 en Eerstelijnsverblijf 671,  Geneeskundige Zorg Specifieke Patiëntgroepen (code 672)- Gecontracteerd 671- incl balans","zvox11","c97111","o01ln1","TY0V01"]
[null,null,null,null,"zvox11_c97111_o01ln1_TY1V01",{"$f":"Contractinformatie!$K$91","v":0},"","Geriatrische Revalidatiezorg 670 en Eerstelijnsverblijf 671,  Geneeskundige Zorg Specifieke Patiëntgroepen (code 672)- Gecontracteerd 671- incl balans","zvox11","c97111","o01ln1","TY1V01"]
[null,null,null,null,"zvox11_c97111_o01ln1_TY2V01",{"$f":"Contractinformatie!$L$91","v":0},"","Geriatrische Revalidatiezorg 670 en Eerstelijnsverblijf 671,  Geneeskundige Zorg Specifieke Patiëntgroepen (code 672)- Gecontracteerd 671- incl balans","zvox11","c97111","o01ln1","TY2V01"]
[null,null,null,null,"zvox11_c97111_o52ln1_TY0V01",{"$f":"Contractinformatie!$J$92","v":0},"","Geriatrische Revalidatiezorg 670 en Eerstelijnsverblijf 671,  Geneeskundige Zorg Specifieke Patiëntgroepen (code 672)- Niet gecontracteerd 671- incl balans","zvox11","c97111","o52ln1","TY0V01"]
[null,null,null,null,"zvox11_c97111_o52ln1_TY1V01",{"$f":"Contractinformatie!$K$92","v":0},"","Geriatrische Revalidatiezorg 670 en Eerstelijnsverblijf 671,  Geneeskundige Zorg Specifieke Patiëntgroepen (code 672)- Niet gecontracteerd 671- incl balans","zvox11","c97111","o52ln1","TY1V01"]
[null,null,null,null,"zvox11_c97111_o52ln1_TY2V01",{"$f":"Contractinformatie!$L$92","v":0},"","Geriatrische Revalidatiezorg 670 en Eerstelijnsverblijf 671,  Geneeskundige Zorg Specifieke Patiëntgroepen (code 672)- Niet gecontracteerd 671- incl balans","zvox11","c97111","o52ln1","TY2V01"]
[null,null,null,null,"zvox11_c97111_o52ln1mk_TY0V01",{"$f":"Contractinformatie!$K$93","v":0},null,"Geriatrische Revalidatiezorg 670 en Eerstelijnsverblijf 671, Geneeskundige Zorg Specifieke Patiëntgroepen (code 672)- Meerkosten (toeslagen en lumpsum), gecontracteerd en niet gecontracteerd- incl balans","zvox11","c97111","o52ln1mk","TY1V01"]
[null,null,null,null,"zvox11_c97111_o52ln1mk_TY1V01",{"$f":"Contractinformatie!$L$93","v":0},null,"Geriatrische Revalidatiezorg 670 en Eerstelijnsverblijf 671, Geneeskundige Zorg Specifieke Patiëntgroepen (code 672)- Meerkosten (toeslagen en lumpsum), gecontracteerd en niet gecontracteerd- incl balans","zvox11","c97111","o52ln1mk","TY2V01"]
[null,null,null,null,"zvox11_c97111_o52ln1ncc_TY0V01",{"$f":"Contractinformatie!$K$94","v":0},null,"Geriatrische Revalidatiezorg 670 en Eerstelijnsverblijf 671, Geneeskundige Zorg Specifieke Patiëntgroepen (code 672)- Netto Continuïteitsbijdrage Corona, gecontracteerd en niet gecontracteerd- incl balans","zvox11","c97111","o52ln1ncc","TY1V01"]
[null,null,null,null,"zvox11_c97111_o52ln1ncc_TY1V01",{"$f":"Contractinformatie!$L$94","v":0},null,"Geriatrische Revalidatiezorg 670 en Eerstelijnsverblijf 671, Geneeskundige Zorg Specifieke Patiëntgroepen (code 672)- Netto Continuïteitsbijdrage Corona, gecontracteerd en niet gecontracteerd- incl balans","zvox11","c97111","o52ln1ncc","TY2V01"]
[null,null,null,null,"zvox11_c97111_o01gzsp_TY0V01",{"$f":"Contractinformatie!$J$97","v":0},null,"Geriatrische Revalidatiezorg 670 en Eerstelijnsverblijf 671,  Geneeskundige Zorg Specifieke Patiëntgroepen (code 672)- Gecontracteerd 672- incl balans","zvox11","c97111","o01gzsp","TY0V01"]
[null,null,null,null,"zvox11_c97111_o01gzsp_TY1V01",{"$f":"Contractinformatie!$K$97","v":0},null,"Geriatrische Revalidatiezorg 670 en Eerstelijnsverblijf 671,  Geneeskundige Zorg Specifieke Patiëntgroepen (code 672)- Gecontracteerd 672- incl balans","zvox11","c97111","o01gzsp","TY1V01"]
[null,null,null,null,"zvox11_c97111_o01gzsp_TY2V01",{"$f":"Contractinformatie!$L$97","v":0},null,"Geriatrische Revalidatiezorg 670 en Eerstelijnsverblijf 671,  Geneeskundige Zorg Specifieke Patiëntgroepen (code 672)- Gecontracteerd 672- incl balans","zvox11","c97111","o01gzsp","TY2V01"]
[null,null,null,null,"zvox11_c97111_o52gzsp_TY0V01",{"$f":"Contractinformatie!$J$98","v":0},null,"Geriatrische Revalidatiezorg 670 en Eerstelijnsverblijf 671, Geneeskundige Zorg Specifieke Patiëntgroepen (code 672)- Niet gecontracteerd 672- incl balans","zvox11","c97111","o52gzsp","TY0V01"]
[null,null,null,null,"zvox11_c97111_o52gzsp_TY1V01",{"$f":"Contractinformatie!$K$98","v":0},null,"Geriatrische Revalidatiezorg 670 en Eerstelijnsverblijf 671, Geneeskundige Zorg Specifieke Patiëntgroepen (code 672)- Niet gecontracteerd 672- incl balans","zvox11","c97111","o52gzsp","TY1V01"]
[null,null,null,null,"zvox11_c97111_o52gzsp_TY2V01",{"$f":"Contractinformatie!$L$98","v":0},null,"Geriatrische Revalidatiezorg 670 en Eerstelijnsverblijf 671, Geneeskundige Zorg Specifieke Patiëntgroepen (code 672)- Niet gecontracteerd 672- incl balans","zvox11","c97111","o52gzsp","TY2V01"]
[null,null,null,null,"zvox11_c97111_o52gzmk_TY1V01",{"$f":"Contractinformatie!$K$99","v":0},null,"Geriatrische Revalidatiezorg 670 en Eerstelijnsverblijf 671, Geneeskundige Zorg Specifieke Patiëntgroepen (code 672)- Meerkosten (toeslagen en lumpsum), gecontracteerd en niet gecontracteerd- incl balans","zvox11","c97111","o52gzmk","TY1V01"]
[null,null,null,null,"zvox11_c97111_o52gzmk_TY2V01",{"$f":"Contractinformatie!$L$99","v":0},null,"Geriatrische Revalidatiezorg 670 en Eerstelijnsverblijf 671, Geneeskundige Zorg Specifieke Patiëntgroepen (code 672)- Meerkosten (toeslagen en lumpsum), gecontracteerd en niet gecontracteerd- incl balans","zvox11","c97111","o52gzmk","TY2V01"]
[null,null,null,null,"zvox11_c97111_o52gzncc_TY1V01",{"$f":"Contractinformatie!$K$100","v":0},null,"Geriatrische Revalidatiezorg 670 en Eerstelijnsverblijf 671, Geneeskundige Zorg Specifieke Patiëntgroepen (code 672)- Netto Continuïteitsbijdrage Corona, gecontracteerd en niet gecontracteerd- incl balans","zvox11","c97111","o52gzncc","TY1V01"]
[null,null,null,null,"zvox11_c97111_o52gzncc_TY2V01",{"$f":"Contractinformatie!$L$100","v":0},null,"Geriatrische Revalidatiezorg 670 en Eerstelijnsverblijf 671, Geneeskundige Zorg Specifieke Patiëntgroepen (code 672)- Netto Continuïteitsbijdrage Corona, gecontracteerd en niet gecontracteerd- incl balans","zvox11","c97111","o52gzncc","TY2V01"]
[null,null,null,null,"zvrxsg_c978_dl101_TY0V01",{"$f":"'Specifieke informatie A'!K14","v":0},"","Kosten naar deelbijdrage- Variabele zorgkosten- incl balans","zvrxsg","c978","dl101","TY0V01"]
[null,null,null,null,"zvrxsg_a978_dl101_TY2V01",{"$f":"'Specifieke informatie A'!$L$14","v":0},"","Kosten naar deelbijdrage- Variabele zorgkosten- geaccepteerd","zvrxsg","a978","dl101","TY2V01"]
[null,null,null,null,"zvrxsg_c978_dl102_TY0V01",{"$f":"'Specifieke informatie A'!K15","v":0},"","Kosten naar deelbijdrage- Vaste zorgkosten- incl balans","zvrxsg","c978","dl102","TY0V01"]
[null,null,null,null,"zvrxsg_a978_dl102_TY2V01",{"$f":"'Specifieke informatie A'!$L$15","v":0},"","Kosten naar deelbijdrage- Vaste zorgkosten- geaccepteerd","zvrxsg","a978","dl102","TY2V01"]
[null,null,null,null,"zvrxsg_c978_dl152_TY0V01",{"$f":"'Specifieke informatie A'!K16","v":0},"","Kosten naar deelbijdrage- Geneeskundige GGZ- incl balans","zvrxsg","c978","dl152","TY0V01"]
[null,null,null,null,"zvrxsg_a978_dl152_TY2V01",{"$f":"'Specifieke informatie A'!$L$16","v":0},"","Kosten naar deelbijdrage- Geneeskundige GGZ- geaccepteerd","zvrxsg","a978","dl152","TY2V01"]
[null,null,null,null,"zvrx06_a610_sknt_TY2V01",{"$f":"'Specifieke informatie A'!L22","v":0},"","C610 Overige kosten ziekenhuiszorg en curatieve zorg- SKION en NTS- geaccepteerd","zvrx06","a610","sknt","TY2V01"]
[null,null,null,null,"zvrx06_c611_ozp_TY0V02",{"$f":"'Specifieke informatie A'!L22","v":0},"","C611 Overige Zorgproducten- ozp- incl balans","zvrx06","c611","ozp","TY0V02"]
[null,null,null,null,"zvrx06_c6121_e08_TY0V01",{"$f":"'Specifieke informatie A'!K30","v":0},"","C612.1 Kosten ADD-ON'S- dure intramurale geneesmiddelen- incl balans","zvrx06","c6121","e08","TY0V01"]
[null,null,null,null,"zvrx06_c6121_e08_TY2V01",{"$f":"'Specifieke informatie A'!L30","v":0},"","C612.1 Kosten ADD-ON'S- dure intramurale geneesmiddelen- incl balans","zvrx06","a6121","e08","TY2V01"]
[null,null,null,null,"zvrx10_c666_TY0V01",{"$f":"'Specifieke informatie A'!K35","v":0},null,"C666 Kosten dure intramurale geneesmiddelen (artikel 1, regeling risicoverevening)- incl balans","zvrx10","c666","e10","TY0V01"]
[null,null,null,null,"zvrx15_c720v_m69_TY0V01",{"$f":"'Specifieke informatie A'!$K$51","v":0},"","C720 Buitenland, Via Verzekeraar- variabele zorgkosten- incl balans","zvrx15","c720v","m69","TY0V01"]
[null,null,null,null,"zvrx15_a720v_m69_TY2V01",{"$f":"'Specifieke informatie A'!$L$51","v":0},"","C720 Buitenland, Via Verzekeraar- variabele zorgkosten- geaccepteerd","zvrx15","a720v","m69","TY2V01"]
[null,null,null,null,"zvrx15_a720v_m51_TY0V01",{"$f":"'Specifieke informatie A'!$K$52","v":0},"","C720 Buitenland, Via Verzekeraar- geestelijke gezondheidszorgg- incl balans","zvrx15","a720v","m51","TY0V01"]
[null,null,null,null,"zvrx15_a720v_m51_TY2V01",{"$f":"'Specifieke informatie A'!$L$52","v":0},"","C720 Buitenland, Via Verzekeraar- geestelijke gezondheidszorgg- geaccepteerd","zvrx15","a720v","m51","TY2V01"]
[null,null,null,null,"zvrx15_c721o_i01_TY0V01",{"$f":"'Specifieke informatie A'!$K$57","v":0},"","C721 buitenland, opgave ZIN- verordening of verdrag, via internationaal verbindingsorgaan- incl balans","zvrx15","c721o","i01","TY0V01"]
[null,null,null,null,"zvrx15_a720o_i01_TY2V01",{"$f":"'Specifieke informatie A'!$L$57","v":0},"","C721 buitenland, opgave ZIN- verordening of verdrag, via internationaal verbindingsorgaan- geaccepteerd","zvrx15","a720o","i01","TY2V01"]
[null,null,null,null,"zvrx15_c721o_i11_TY0V01",{"$f":"'Specifieke informatie A'!$K$58","v":0},"","C721 buitenland, opgave ZIN- Zvw verzekerden die wonen in Nederland- incl balans","zvrx15","c721o","i11","TY0V01"]
[null,null,null,null,"zvrx15_a720o_i11_TY2V01",{"$f":"'Specifieke informatie A'!$L$58","v":0},"","C721 buitenland, opgave ZIN- Zvw verzekerden die wonen in Nederland- geaccepteerd","zvrx15","a720o","i11","TY2V01"]
[null,null,null,null,"zvrx15_c721o_i02_TY0V01",{"$f":"'Specifieke informatie A'!$K$59","v":0},"","C721 buitenland, opgave ZIN- Zvw verzekerden die wonen in het buitenland- incl balans","zvrx15","c721o","i02","TY0V01"]
[null,null,null,null,"zvrx15_a720o_i02_TY2V01",{"$f":"'Specifieke informatie A'!$L$59","v":0},"","C721 buitenland, opgave ZIN- Zvw verzekerden die wonen in het buitenland- geaccepteerd","zvrx15","a720o","i02","TY2V01"]
[null,null,null,null,"zvrx19_s999_inbw_TY0V01",{"$f":"'Specifieke informatie A'!$K$64","v":0},"","C999 rekenpremies gedetineerden","zvrx19","s999","inbw","TY0V01"]
[null,null,null,null,"zvsx06k_c610_d1l_TY0V01",{"$f":"'Specifieke informatie C'!$H$14","v":0},"","C610 Overige kosten ziekenhuiszorg en curatieve zorg- eerstelijnsdiagnostiek eerstelijnszorgaanbieders - huisartslab- incl balans","zvsx06k","c610","d1l","TY0V01"]
[null,null,null,null,"zvsx06k_a610_d1l_TY0V01",{"$f":"'Specifieke informatie C'!$I$14","v":0},"","C610 Overige kosten ziekenhuiszorg en curatieve zorg- eerstelijnsdiagnostiek eerstelijnszorgaanbieders - huisartslab- geaccepteerd","zvsx06k","a610","d1l","TY0V01"]
[null,null,null,null,"zvsx06k_c610_d1l_TY1V01",{"$f":"'Specifieke informatie C'!$J$14","v":0},"","C610 Overige kosten ziekenhuiszorg en curatieve zorg- eerstelijnsdiagnostiek eerstelijnszorgaanbieders - huisartslab- incl balans","zvsx06k","c610","d1l","TY1V01"]
[null,null,null,null,"zvsx06k_a610_d1l_TY1V01",{"$f":"'Specifieke informatie C'!$K$14","v":0},"","C610 Overige kosten ziekenhuiszorg en curatieve zorg- eerstelijnsdiagnostiek eerstelijnszorgaanbieders - huisartslab- geaccepteerd","zvsx06k","a610","d1l","TY1V01"]
[null,null,null,null,"zvsx06k_a610_d1l_TY2V01",{"$f":"'Specifieke informatie C'!$L$14","v":0},"","C610 Overige kosten ziekenhuiszorg en curatieve zorg- eerstelijnsdiagnostiek eerstelijnszorgaanbieders - huisartslab- geaccepteerd","zvsx06k","a610","d1l","TY2V01"]
[null,null,null,null,"zvsx06k_c610_trmb_TY0V01",{"$f":"'Specifieke informatie C'!$H$15","v":0},"","C610 Overige kosten ziekenhuiszorg en curatieve zorg- Trombosediensten- incl balans","zvsx06k","c610","trmb","TY0V01"]
[null,null,null,null,"zvsx06k_a610_trmb_TY0V01",{"$f":"'Specifieke informatie C'!$I$15","v":0},"","C610 Overige kosten ziekenhuiszorg en curatieve zorg- Trombosediensten- geaccepteerd","zvsx06k","a610","trmb","TY0V01"]
[null,null,null,null,"zvsx06k_c610_trmb_TY1V01",{"$f":"'Specifieke informatie C'!$J$15","v":0},"","C610 Overige kosten ziekenhuiszorg en curatieve zorg- Trombosediensten- incl balans","zvsx06k","c610","trmb","TY1V01"]
[null,null,null,null,"zvsx06k_a610_trmb_TY1V01",{"$f":"'Specifieke informatie C'!$K$15","v":0},"","C610 Overige kosten ziekenhuiszorg en curatieve zorg- Trombosediensten- geaccepteerd","zvsx06k","a610","trmb","TY1V01"]
[null,null,null,null,"zvsx06k_a610_trmb_TY2V01",{"$f":"'Specifieke informatie C'!$L$15","v":0},"","C610 Overige kosten ziekenhuiszorg en curatieve zorg- Trombosediensten- geaccepteerd","zvsx06k","a610","trmb","TY2V01"]
[null,null,null,null,"zvsx06k_c610_sknt_TY0V01",{"$f":"'Specifieke informatie C'!$H$16","v":0},"","C610 Overige kosten ziekenhuiszorg en curatieve zorg- SKION en NTS- incl balans","zvsx06k","c610","sknt","TY0V01"]
[null,null,null,null,"zvsx06k_a610_sknt_TY0V01",{"$f":"'Specifieke informatie C'!$I$16","v":0},"","C610 Overige kosten ziekenhuiszorg en curatieve zorg- SKION en NTS- geaccepteerd","zvsx06k","a610","sknt","TY0V01"]
[null,null,null,null,"zvsx06k_c610_sknt_TY1V01",{"$f":"'Specifieke informatie C'!$J$16","v":0},"","C610 Overige kosten ziekenhuiszorg en curatieve zorg- SKION en NTS- incl balans","zvsx06k","c610","sknt","TY1V01"]
[null,null,null,null,"zvsx06k_a610_sknt_TY1V01",{"$f":"'Specifieke informatie C'!$K$16","v":0},"","C610 Overige kosten ziekenhuiszorg en curatieve zorg- SKION en NTS- geaccepteerd","zvsx06k","a610","sknt","TY1V01"]
[null,null,null,null,"zvsx06k_a610_sknt_TY2V01",{"$f":"'Specifieke informatie C'!$L$16","v":0},"","C610 Overige kosten ziekenhuiszorg en curatieve zorg- SKION en NTS- geaccepteerd","zvsx06k","a610","sknt","TY2V01"]
[null,null,null,null,"zvsx06k_c611_az_TY0V01",{"$f":"'Specifieke informatie C'!$H$23","v":0},"","C611 Naar Instelling- Academische ziekenhuizen- incl balans","zvsx06k","c611","az","TY0V01"]
[null,null,null,null,"zvsx06k_a611_az_TY0V01",{"$f":"'Specifieke informatie C'!$I$23","v":0},"","C611 Naar Instelling- Academische ziekenhuizen- geaccepteerd","zvsx06k","a611","az","TY0V01"]
[null,null,null,null,"zvsx06k_c611_az_TY1V01",{"$f":"'Specifieke informatie C'!$J$23","v":0},"","C611 Naar Instelling- Academische ziekenhuizen- incl balans","zvsx06k","c611","az","TY1V01"]
[null,null,null,null,"zvsx06k_a611_az_TY1V01",{"$f":"'Specifieke informatie C'!$K$23","v":0},"","C611 Naar Instelling- Academische ziekenhuizen- geaccepteerd","zvsx06k","a611","az","TY1V01"]
[null,null,null,null,"zvsx06k_a611_az_TY2V01",{"$f":"'Specifieke informatie C'!$L$23","v":0},"","C611 Naar Instelling- Academische ziekenhuizen- geaccepteerd","zvsx06k","a611","az","TY2V01"]
[null,null,null,null,"zvsx06k_c611_sz_TY0V01",{"$f":"'Specifieke informatie C'!$H$24","v":0},"","C611 Naar Instelling- Algemene ziekenhuizen- incl balans","zvsx06k","c611","sz","TY0V01"]
[null,null,null,null,"zvsx06k_a611_sz_TY0V01",{"$f":"'Specifieke informatie C'!$I$24","v":0},"","C611 Naar Instelling- Algemene ziekenhuizen- geaccepteerd","zvsx06k","a611","sz","TY0V01"]
[null,null,null,null,"zvsx06k_c611_sz_TY1V01",{"$f":"'Specifieke informatie C'!$J$24","v":0},"","C611 Naar Instelling- Algemene ziekenhuizen- incl balans","zvsx06k","c611","sz","TY1V01"]
[null,null,null,null,"zvsx06k_a611_sz_TY1V01",{"$f":"'Specifieke informatie C'!$K$24","v":0},"","C611 Naar Instelling- Algemene ziekenhuizen- geaccepteerd","zvsx06k","a611","sz","TY1V01"]
[null,null,null,null,"zvsx06k_a611_sz_TY2V01",{"$f":"'Specifieke informatie C'!$L$24","v":0},"","C611 Naar Instelling- Algemene ziekenhuizen- geaccepteerd","zvsx06k","a611","sz","TY2V01"]
[null,null,null,null,"zvsx06k_c611_zb_TY0V01",{"$f":"'Specifieke informatie C'!$H$25","v":0},"","C611 Naar Instelling- Zelfstandige behandelcentra- incl balans","zvsx06k","c611","zb","TY0V01"]
[null,null,null,null,"zvsx06k_a611_zb_TY0V01",{"$f":"'Specifieke informatie C'!$I$25","v":0},"","C611 Naar Instelling- Zelfstandige behandelcentra- geaccepteerd","zvsx06k","a611","zb","TY0V01"]
[null,null,null,null,"zvsx06k_c611_zb_TY1V01",{"$f":"'Specifieke informatie C'!$J$25","v":0},"","C611 Naar Instelling- Zelfstandige behandelcentra- incl balans","zvsx06k","c611","zb","TY1V01"]
[null,null,null,null,"zvsx06k_a611_zb_TY1V01",{"$f":"'Specifieke informatie C'!$K$25","v":0},"","C611 Naar Instelling- Zelfstandige behandelcentra- geaccepteerd","zvsx06k","a611","zb","TY1V01"]
[null,null,null,null,"zvsx06k_a611_zb_TY2V01",{"$f":"'Specifieke informatie C'!$L$25","v":0},"","C611 Naar Instelling- Zelfstandige behandelcentra- geaccepteerd","zvsx06k","a611","zb","TY2V01"]
[null,null,null,null,"zvsx06k_c611_ov_TY0V01",{"$f":"'Specifieke informatie C'!$H$26","v":0},"","C611 Naar Instelling- Overige zorgaanbieders- incl balans","zvsx06k","c611","ov","TY0V01"]
[null,null,null,null,"zvsx06k_a611_ov_TY0V01",{"$f":"'Specifieke informatie C'!$I$26","v":0},"","C611 Naar Instelling- Overige zorgaanbieders- geaccepteerd","zvsx06k","a611","ov","TY0V01"]
[null,null,null,null,"zvsx06k_c611_ov_TY1V01",{"$f":"'Specifieke informatie C'!$J$26","v":0},"","C611 Naar Instelling- Overige zorgaanbieders- incl balans","zvsx06k","c611","ov","TY1V01"]
[null,null,null,null,"zvsx06k_a611_ov_TY1V01",{"$f":"'Specifieke informatie C'!$K$26","v":0},"","C611 Naar Instelling- Overige zorgaanbieders- geaccepteerd","zvsx06k","a611","ov","TY1V01"]
[null,null,null,null,"zvsx06k_a611_ov_TY2V01",{"$f":"'Specifieke informatie C'!$L$26","v":0},"","C611 Naar Instelling- Overige zorgaanbieders- geaccepteerd","zvsx06k","a611","ov","TY2V01"]
[null,null,null,null,"zvsx06k_c6121_az_TY0V01",{"$f":"'Specifieke informatie C'!$H$32","v":0},"","C612.1 Kosten add-ons dure geneesmiddelen naar instelling- Academische ziekenhuizen- incl balans","zvsx06k","c6121","az","TY0V01"]
[null,null,null,null,"zvsx06k_a6121_az_TY0V01",{"$f":"'Specifieke informatie C'!$I$32","v":0},"","C612.1 Kosten add-ons dure geneesmiddelen naar instelling- Academische ziekenhuizen- geaccepteerd","zvsx06k","a6121","az","TY0V01"]
[null,null,null,null,"zvsx06k_c6121_az_TY1V01",{"$f":"'Specifieke informatie C'!$J$32","v":0},"","C612.1 Kosten add-ons dure geneesmiddelen naar instelling- Academische ziekenhuizen- incl balans","zvsx06k","c6121","az","TY1V01"]
[null,null,null,null,"zvsx06k_a6121_az_TY1V01",{"$f":"'Specifieke informatie C'!$K$32","v":0},"","C612.1 Kosten add-ons dure geneesmiddelen naar instelling- Academische ziekenhuizen- geaccepteerd","zvsx06k","a6121","az","TY1V01"]
[null,null,null,null,"zvsx06k_a6121_az_TY2V01",{"$f":"'Specifieke informatie C'!$L$32","v":0},"","C612.1 Kosten add-ons dure geneesmiddelen naar instelling- Academische ziekenhuizen- geaccepteerd","zvsx06k","a6121","az","TY2V01"]
[null,null,null,null,"zvsx06k_c6121_sz_TY0V01",{"$f":"'Specifieke informatie C'!$H$33","v":0},"","C612.1 Kosten add-ons dure geneesmiddelen naar instelling- Algemene ziekenhuizen- incl balans","zvsx06k","c6121","sz","TY0V01"]
[null,null,null,null,"zvsx06k_a6121_sz_TY0V01",{"$f":"'Specifieke informatie C'!$I$33","v":0},"","C612.1 Kosten add-ons dure geneesmiddelen naar instelling- Algemene ziekenhuizen- geaccepteerd","zvsx06k","a6121","sz","TY0V01"]
[null,null,null,null,"zvsx06k_c6121_sz_TY1V01",{"$f":"'Specifieke informatie C'!$J$33","v":0},"","C612.1 Kosten add-ons dure geneesmiddelen naar instelling- Algemene ziekenhuizen- incl balans","zvsx06k","c6121","sz","TY1V01"]
[null,null,null,null,"zvsx06k_a6121_sz_TY1V01",{"$f":"'Specifieke informatie C'!$K$33","v":0},"","C612.1 Kosten add-ons dure geneesmiddelen naar instelling- Algemene ziekenhuizen- geaccepteerd","zvsx06k","a6121","sz","TY1V01"]
[null,null,null,null,"zvsx06k_a6121_sz_TY2V01",{"$f":"'Specifieke informatie C'!$L$33","v":0},"","C612.1 Kosten add-ons dure geneesmiddelen naar instelling- Algemene ziekenhuizen- geaccepteerd","zvsx06k","a6121","sz","TY2V01"]
[null,null,null,null,"zvsx06k_c6121_zb_TY0V01",{"$f":"'Specifieke informatie C'!$H$34","v":0},"","C612.1 Kosten add-ons dure geneesmiddelen naar instelling- Zelfstandige behandelcentra- incl balans","zvsx06k","c6121","zb","TY0V01"]
[null,null,null,null,"zvsx06k_a6121_zb_TY0V01",{"$f":"'Specifieke informatie C'!$I$34","v":0},"","C612.1 Kosten add-ons dure geneesmiddelen naar instelling- Zelfstandige behandelcentra- geaccepteerd","zvsx06k","a6121","zb","TY0V01"]
[null,null,null,null,"zvsx06k_c6121_zb_TY1V01",{"$f":"'Specifieke informatie C'!$J$34","v":0},"","C612.1 Kosten add-ons dure geneesmiddelen naar instelling- Zelfstandige behandelcentra- incl balans","zvsx06k","c6121","zb","TY1V01"]
[null,null,null,null,"zvsx06k_a6121_zb_TY1V01",{"$f":"'Specifieke informatie C'!$K$34","v":0},"","C612.1 Kosten add-ons dure geneesmiddelen naar instelling- Zelfstandige behandelcentra- geaccepteerd","zvsx06k","a6121","zb","TY1V01"]
[null,null,null,null,"zvsx06k_a6121_zb_TY2V01",{"$f":"'Specifieke informatie C'!$L$34","v":0},"","C612.1 Kosten add-ons dure geneesmiddelen naar instelling- Zelfstandige behandelcentra- geaccepteerd","zvsx06k","a6121","zb","TY2V01"]
[null,null,null,null,"zvsx06k_c6121_ov_TY0V01",{"$f":"'Specifieke informatie C'!$H$35","v":0},"","C612.1 Kosten add-ons dure geneesmiddelen naar instelling- Overige zorgaanbieders- incl balans","zvsx06k","c6121","ov","TY0V01"]
[null,null,null,null,"zvsx06k_a6121_ov_TY0V01",{"$f":"'Specifieke informatie C'!$I$35","v":0},"","C612.1 Kosten add-ons dure geneesmiddelen naar instelling- Overige zorgaanbieders- geaccepteerd","zvsx06k","a6121","ov","TY0V01"]
[null,null,null,null,"zvsx06k_c6121_ov_TY1V01",{"$f":"'Specifieke informatie C'!$J$35","v":0},"","C612.1 Kosten add-ons dure geneesmiddelen naar instelling- Overige zorgaanbieders- incl balans","zvsx06k","c6121","ov","TY1V01"]
[null,null,null,null,"zvsx06k_a6121_ov_TY1V01",{"$f":"'Specifieke informatie C'!$K$35","v":0},"","C612.1 Kosten add-ons dure geneesmiddelen naar instelling- Overige zorgaanbieders- geaccepteerd","zvsx06k","a6121","ov","TY1V01"]
[null,null,null,null,"zvsx06k_a6121_ov_TY2V01",{"$f":"'Specifieke informatie C'!$L$35","v":0},"","C612.1 Kosten add-ons dure geneesmiddelen naar instelling- Overige zorgaanbieders- geaccepteerd","zvsx06k","a6121","ov","TY2V01"]
[null,null,null,null,"zvsx06k_c6122_az_TY0V01",{"$f":"'Specifieke informatie C'!$H$41","v":0},"","C612.2 Kosten add-ons IC naar instelling- Academische ziekenhuizen- incl balans","zvsx06k","c6122","az","TY0V01"]
[null,null,null,null,"zvsx06k_a6122_az_TY0V01",{"$f":"'Specifieke informatie C'!$I$41","v":0},"","C612.2 Kosten add-ons IC naar instelling- Academische ziekenhuizen- geaccepteerd","zvsx06k","a6122","az","TY0V01"]
[null,null,null,null,"zvsx06k_c6122_az_TY1V01",{"$f":"'Specifieke informatie C'!$J$41","v":0},"","C612.2 Kosten add-ons IC naar instelling- Academische ziekenhuizen- incl balans","zvsx06k","c6122","az","TY1V01"]
[null,null,null,null,"zvsx06k_a6122_az_TY1V01",{"$f":"'Specifieke informatie C'!$K$41","v":0},"","C612.2 Kosten add-ons IC naar instelling- Academische ziekenhuizen- geaccepteerd","zvsx06k","a6122","az","TY1V01"]
[null,null,null,null,"zvsx06k_a6122_az_TY2V01",{"$f":"'Specifieke informatie C'!$L$41","v":0},"","C612.2 Kosten add-ons IC naar instelling- Academische ziekenhuizen- geaccepteerd","zvsx06k","a6122","az","TY2V01"]
[null,null,null,null,"zvsx06k_c6122_sz_TY0V01",{"$f":"'Specifieke informatie C'!$H$42","v":0},"","C612.2 Kosten add-ons IC naar instelling- Algemene ziekenhuizen- incl balans","zvsx06k","c6122","sz","TY0V01"]
[null,null,null,null,"zvsx06k_a6122_sz_TY0V01",{"$f":"'Specifieke informatie C'!$I$42","v":0},"","C612.2 Kosten add-ons IC naar instelling- Algemene ziekenhuizen- geaccepteerd","zvsx06k","a6122","sz","TY0V01"]
[null,null,null,null,"zvsx06k_c6122_sz_TY1V01",{"$f":"'Specifieke informatie C'!$J$42","v":0},"","C612.2 Kosten add-ons IC naar instelling- Algemene ziekenhuizen- incl balans","zvsx06k","c6122","sz","TY1V01"]
[null,null,null,null,"zvsx06k_a6122_sz_TY1V01",{"$f":"'Specifieke informatie C'!$K$42","v":0},"","C612.2 Kosten add-ons IC naar instelling- Algemene ziekenhuizen- geaccepteerd","zvsx06k","a6122","sz","TY1V01"]
[null,null,null,null,"zvsx06k_a6122_sz_TY2V01",{"$f":"'Specifieke informatie C'!$L$42","v":0},"","C612.2 Kosten add-ons IC naar instelling- Algemene ziekenhuizen- geaccepteerd","zvsx06k","a6122","sz","TY2V01"]
[null,null,null,null,"zvsx06k_c6122_zb_TY0V01",{"$f":"'Specifieke informatie C'!$H$43","v":0},"","C612.2 Kosten add-ons IC naar instelling- Zelfstandige behandelcentra- incl balans","zvsx06k","c6122","zb","TY0V01"]
[null,null,null,null,"zvsx06k_a6122_zb_TY0V01",{"$f":"'Specifieke informatie C'!$I$43","v":0},"","C612.2 Kosten add-ons IC naar instelling- Zelfstandige behandelcentra- geaccepteerd","zvsx06k","a6122","zb","TY0V01"]
[null,null,null,null,"zvsx06k_c6122_zb_TY1V01",{"$f":"'Specifieke informatie C'!$J$43","v":0},"","C612.2 Kosten add-ons IC naar instelling- Zelfstandige behandelcentra- incl balans","zvsx06k","c6122","zb","TY1V01"]
[null,null,null,null,"zvsx06k_a6122_zb_TY1V01",{"$f":"'Specifieke informatie C'!$K$43","v":0},"","C612.2 Kosten add-ons IC naar instelling- Zelfstandige behandelcentra- geaccepteerd","zvsx06k","a6122","zb","TY1V01"]
[null,null,null,null,"zvsx06k_a6122_zb_TY2V01",{"$f":"'Specifieke informatie C'!$L$43","v":0},"","C612.2 Kosten add-ons IC naar instelling- Zelfstandige behandelcentra- geaccepteerd","zvsx06k","a6122","zb","TY2V01"]
[null,null,null,null,"zvsx06k_c6122_ov_TY0V01",{"$f":"'Specifieke informatie C'!$H$44","v":0},"","C612.2 Kosten add-ons IC naar instelling- Overige zorgaanbieders- incl balans","zvsx06k","c6122","ov","TY0V01"]
[null,null,null,null,"zvsx06k_a6122_ov_TY0V01",{"$f":"'Specifieke informatie C'!$I$44","v":0},"","C612.2 Kosten add-ons IC naar instelling- Overige zorgaanbieders- geaccepteerd","zvsx06k","a6122","ov","TY0V01"]
[null,null,null,null,"zvsx06k_c6122_ov_TY1V01",{"$f":"'Specifieke informatie C'!$J$44","v":0},"","C612.2 Kosten add-ons IC naar instelling- Overige zorgaanbieders- incl balans","zvsx06k","c6122","ov","TY1V01"]
[null,null,null,null,"zvsx06k_a6122_ov_TY1V01",{"$f":"'Specifieke informatie C'!$K$44","v":0},"","C612.2 Kosten add-ons IC naar instelling- Overige zorgaanbieders- geaccepteerd","zvsx06k","a6122","ov","TY1V01"]
[null,null,null,null,"zvsx06k_a6122_ov_TY2V01",{"$f":"'Specifieke informatie C'!$L$44","v":0},"","C612.2 Kosten add-ons IC naar instelling- Overige zorgaanbieders- geaccepteerd","zvsx06k","a6122","ov","TY2V01"]
[null,null,null,null,"zvsx06k_c6131_az_TY0V01",{"$f":"'Specifieke informatie C'!$H$58","v":0},"","C613.1 Integrale kosten DBC-zorgproducten gereguleerde segment- Academische ziekenhuizen- incl balans","zvsx06k","c6131","az","TY0V01"]
[null,null,null,null,"zvsx06k_a6131_az_TY0V01",{"$f":"'Specifieke informatie C'!$I$58","v":0},"","C613.1 Integrale kosten DBC-zorgproducten gereguleerde segment- Academische ziekenhuizen- geaccepteerd","zvsx06k","a6131","az","TY0V01"]
[null,null,null,null,"zvsx06k_c6131_az_TY1V01",{"$f":"'Specifieke informatie C'!$J$58","v":0},"","C613.1 Integrale kosten DBC-zorgproducten gereguleerde segment- Academische ziekenhuizen- incl balans","zvsx06k","c6131","az","TY1V01"]
[null,null,null,null,"zvsx06k_a6131_az_TY1V01",{"$f":"'Specifieke informatie C'!$K$58","v":0},"","C613.1 Integrale kosten DBC-zorgproducten gereguleerde segment- Academische ziekenhuizen- geaccepteerd","zvsx06k","a6131","az","TY1V01"]
[null,null,null,null,"zvsx06k_a6131_az_TY2V01",{"$f":"'Specifieke informatie C'!$L$58","v":0},"","C613.1 Integrale kosten DBC-zorgproducten gereguleerde segment- Academische ziekenhuizen- geaccepteerd","zvsx06k","a6131","az","TY2V01"]
[null,null,null,null,"zvsx06k_c6131_sz_TY0V01",{"$f":"'Specifieke informatie C'!$H$59","v":0},"","C613.1 Integrale kosten DBC-zorgproducten gereguleerde segment- Algemene ziekenhuizen- incl balans","zvsx06k","c6131","sz","TY0V01"]
[null,null,null,null,"zvsx06k_a6131_sz_TY0V01",{"$f":"'Specifieke informatie C'!$I$59","v":0},"","C613.1 Integrale kosten DBC-zorgproducten gereguleerde segment- Algemene ziekenhuizen- geaccepteerd","zvsx06k","a6131","sz","TY0V01"]
[null,null,null,null,"zvsx06k_c6131_sz_TY1V01",{"$f":"'Specifieke informatie C'!$J$59","v":0},"","C613.1 Integrale kosten DBC-zorgproducten gereguleerde segment- Algemene ziekenhuizen- incl balans","zvsx06k","c6131","sz","TY1V01"]
[null,null,null,null,"zvsx06k_a6131_sz_TY1V01",{"$f":"'Specifieke informatie C'!$K$59","v":0},"","C613.1 Integrale kosten DBC-zorgproducten gereguleerde segment- Algemene ziekenhuizen- geaccepteerd","zvsx06k","a6131","sz","TY1V01"]
[null,null,null,null,"zvsx06k_a6131_sz_TY2V01",{"$f":"'Specifieke informatie C'!$L$59","v":0},"","C613.1 Integrale kosten DBC-zorgproducten gereguleerde segment- Algemene ziekenhuizen- geaccepteerd","zvsx06k","a6131","sz","TY2V01"]
[null,null,null,null,"zvsx06k_c6131_zb_TY0V01",{"$f":"'Specifieke informatie C'!$H$60","v":0},"","C613.1 Integrale kosten DBC-zorgproducten gereguleerde segment- Zelfstandige behandelcentra- incl balans","zvsx06k","c6131","zb","TY0V01"]
[null,null,null,null,"zvsx06k_a6131_zb_TY0V01",{"$f":"'Specifieke informatie C'!$I$60","v":0},"","C613.1 Integrale kosten DBC-zorgproducten gereguleerde segment- Zelfstandige behandelcentra- geaccepteerd","zvsx06k","a6131","zb","TY0V01"]
[null,null,null,null,"zvsx06k_c6131_zb_TY1V01",{"$f":"'Specifieke informatie C'!$J$60","v":0},"","C613.1 Integrale kosten DBC-zorgproducten gereguleerde segment- Zelfstandige behandelcentra- incl balans","zvsx06k","c6131","zb","TY1V01"]
[null,null,null,null,"zvsx06k_a6131_zb_TY1V01",{"$f":"'Specifieke informatie C'!$K$60","v":0},"","C613.1 Integrale kosten DBC-zorgproducten gereguleerde segment- Zelfstandige behandelcentra- geaccepteerd","zvsx06k","a6131","zb","TY1V01"]
[null,null,null,null,"zvsx06k_a6131_zb_TY2V01",{"$f":"'Specifieke informatie C'!$L$60","v":0},"","C613.1 Integrale kosten DBC-zorgproducten gereguleerde segment- Zelfstandige behandelcentra- geaccepteerd","zvsx06k","a6131","zb","TY2V01"]
[null,null,null,null,"zvsx06k_c6131_ov_TY0V01",{"$f":"'Specifieke informatie C'!$H$61","v":0},"","C613.1 Integrale kosten DBC-zorgproducten gereguleerde segment- Overige zorgaanbieders- incl balans","zvsx06k","c6131","ov","TY0V01"]
[null,null,null,null,"zvsx06k_a6131_ov_TY0V01",{"$f":"'Specifieke informatie C'!$I$61","v":0},"","C613.1 Integrale kosten DBC-zorgproducten gereguleerde segment- Overige zorgaanbieders- geaccepteerd","zvsx06k","a6131","ov","TY0V01"]
[null,null,null,null,"zvsx06k_c6131_ov_TY1V01",{"$f":"'Specifieke informatie C'!$J$61","v":0},"","C613.1 Integrale kosten DBC-zorgproducten gereguleerde segment- Overige zorgaanbieders- incl balans","zvsx06k","c6131","ov","TY1V01"]
[null,null,null,null,"zvsx06k_a6131_ov_TY1V01",{"$f":"'Specifieke informatie C'!$K$61","v":0},"","C613.1 Integrale kosten DBC-zorgproducten gereguleerde segment- Overige zorgaanbieders- geaccepteerd","zvsx06k","a6131","ov","TY1V01"]
[null,null,null,null,"zvsx06k_c6151_az_TY0V01",{"$f":"'Specifieke informatie C'!$H$64","v":0},"","C615.1 Integrale kosten DBC-zorgproduct vrije segment- Academische ziekenhuizen- incl balans","zvsx06k","c6151","az","TY0V01"]
[null,null,null,null,"zvsx06k_a6151_az_TY0V01",{"$f":"'Specifieke informatie C'!$I$64","v":0},"","C615.1 Integrale kosten DBC-zorgproduct vrije segment- Academische ziekenhuizen- geaccepteerd","zvsx06k","a6151","az","TY0V01"]
[null,null,null,null,"zvsx06k_c6151_az_TY1V01",{"$f":"'Specifieke informatie C'!$J$64","v":0},"","C615.1 Integrale kosten DBC-zorgproduct vrije segment- Academische ziekenhuizen- incl balans","zvsx06k","c6151","az","TY1V01"]
[null,null,null,null,"zvsx06k_a6151_az_TY1V01",{"$f":"'Specifieke informatie C'!$K$64","v":0},"","C615.1 Integrale kosten DBC-zorgproduct vrije segment- Academische ziekenhuizen- geaccepteerd","zvsx06k","a6151","az","TY1V01"]
[null,null,null,null,"zvsx06k_a6151_az_TY2V01",{"$f":"'Specifieke informatie C'!$L$64","v":0},"","C615.1 Integrale kosten DBC-zorgproduct vrije segment- Academische ziekenhuizen- geaccepteerd","zvsx06k","a6151","az","TY2V01"]
[null,null,null,null,"zvsx06k_c6151_sz_TY0V01",{"$f":"'Specifieke informatie C'!$H$65","v":0},"","C615.1 Integrale kosten DBC-zorgproduct vrije segment- Algemene ziekenhuizen- incl balans","zvsx06k","c6151","sz","TY0V01"]
[null,null,null,null,"zvsx06k_a6151_sz_TY0V01",{"$f":"'Specifieke informatie C'!$I$65","v":0},"","C615.1 Integrale kosten DBC-zorgproduct vrije segment- Algemene ziekenhuizen- geaccepteerd","zvsx06k","a6151","sz","TY0V01"]
[null,null,null,null,"zvsx06k_c6151_sz_TY1V01",{"$f":"'Specifieke informatie C'!$J$65","v":0},"","C615.1 Integrale kosten DBC-zorgproduct vrije segment- Algemene ziekenhuizen- incl balans","zvsx06k","c6151","sz","TY1V01"]
[null,null,null,null,"zvsx06k_a6151_sz_TY1V01",{"$f":"'Specifieke informatie C'!$K$65","v":0},"","C615.1 Integrale kosten DBC-zorgproduct vrije segment- Algemene ziekenhuizen- geaccepteerd","zvsx06k","a6151","sz","TY1V01"]
[null,null,null,null,"zvsx06k_a6151_sz_TY2V01",{"$f":"'Specifieke informatie C'!$L$65","v":0},"","C615.1 Integrale kosten DBC-zorgproduct vrije segment- Algemene ziekenhuizen- geaccepteerd","zvsx06k","a6151","sz","TY2V01"]
[null,null,null,null,"zvsx06k_c6151_zb_TY0V01",{"$f":"'Specifieke informatie C'!$H$66","v":0},"","C615.1 Integrale kosten DBC-zorgproduct vrije segment- Zelfstandige behandelcentra- incl balans","zvsx06k","c6151","zb","TY0V01"]
[null,null,null,null,"zvsx06k_a6151_zb_TY0V01",{"$f":"'Specifieke informatie C'!$I$66","v":0},"","C615.1 Integrale kosten DBC-zorgproduct vrije segment- Zelfstandige behandelcentra- geaccepteerd","zvsx06k","a6151","zb","TY0V01"]
[null,null,null,null,"zvsx06k_c6151_zb_TY1V01",{"$f":"'Specifieke informatie C'!$J$66","v":0},"","C615.1 Integrale kosten DBC-zorgproduct vrije segment- Zelfstandige behandelcentra- incl balans","zvsx06k","c6151","zb","TY1V01"]
[null,null,null,null,"zvsx06k_a6151_zb_TY1V01",{"$f":"'Specifieke informatie C'!$K$66","v":0},"","C615.1 Integrale kosten DBC-zorgproduct vrije segment- Zelfstandige behandelcentra- geaccepteerd","zvsx06k","a6151","zb","TY1V01"]
[null,null,null,null,"zvsx06k_a6151_zb_TY2V01",{"$f":"'Specifieke informatie C'!$L$66","v":0},"","C615.1 Integrale kosten DBC-zorgproduct vrije segment- Zelfstandige behandelcentra- geaccepteerd","zvsx06k","a6151","zb","TY2V01"]
[null,null,null,null,"zvsx06k_c6151_ov_TY0V01",{"$f":"'Specifieke informatie C'!$H$67","v":0},"","C615.1 Integrale kosten DBC-zorgproduct vrije segment- Overige zorgaanbieders- incl balans","zvsx06k","c6151","ov","TY0V01"]
[null,null,null,null,"zvsx06k_a6151_ov_TY0V01",{"$f":"'Specifieke informatie C'!$I$67","v":0},"","C615.1 Integrale kosten DBC-zorgproduct vrije segment- Overige zorgaanbieders- geaccepteerd","zvsx06k","a6151","ov","TY0V01"]
[null,null,null,null,"zvsx06k_c6151_ov_TY1V01",{"$f":"'Specifieke informatie C'!$J$67","v":0},"","C615.1 Integrale kosten DBC-zorgproduct vrije segment- Overige zorgaanbieders- incl balans","zvsx06k","c6151","ov","TY1V01"]
[null,null,null,null,"zvsx06k_a6151_ov_TY1V01",{"$f":"'Specifieke informatie C'!$K$67","v":0},"","C615.1 Integrale kosten DBC-zorgproduct vrije segment- Overige zorgaanbieders- geaccepteerd","zvsx06k","a6151","ov","TY1V01"]
[null,null,null,null,"zvsx06k_a6151_ov_TY2V01",{"$f":"'Specifieke informatie C'!$L$67","v":0},"","C615.1 Integrale kosten DBC-zorgproduct vrije segment- Overige zorgaanbieders- geaccepteerd","zvsx06k","a6151","ov","TY2V01"]
[null,null,null,null,"zvsx13k_a701_g21_TY0V01",{"$f":"'Specifieke informatie C'!$K$94","v":0},"","C701 Overige geneeskundige zorg- Kort- geaccepteerd","zvsx13k","a701","g21","TY0V01"]
[null,null,null,null,"zvsx13k_a701_g21_TY1V01",{"$f":"'Specifieke informatie C'!$L$94","v":0},"","C701 Overige geneeskundige zorg- Kort- geaccepteerd","zvsx13k","a701","g21","TY1V01"]
[null,null,null,null,"zvsx13k_a701_g22_TY0V01",{"$f":"'Specifieke informatie C'!$K$95","v":0},"","C701 Overige geneeskundige zorg- Huidtherapie- geaccepteerd","zvsx13k","a701","g22","TY0V01"]
[null,null,null,null,"zvsx13k_a701_g22_TY1V01",{"$f":"'Specifieke informatie C'!$L$95","v":0},"","C701 Overige geneeskundige zorg- Huidtherapie- geaccepteerd","zvsx13k","a701","g22","TY1V01"]
[null,null,null,null,"zvsx13k_a701_g23_TY0V01",{"$f":"'Specifieke informatie C'!$K$96","v":0},"","C701 Overige geneeskundige zorg- Orthoptie- geaccepteerd","zvsx13k","a701","g23","TY0V01"]
[null,null,null,null,"zvsx13k_a701_g23_TY1V01",{"$f":"'Specifieke informatie C'!$L$96","v":0},"","C701 Overige geneeskundige zorg- Orthoptie- geaccepteerd","zvsx13k","a701","g23","TY1V01"]
[null,null,null,null,"zvsx13k_a701_g24_TY0V01",{"$f":"'Specifieke informatie C'!$K$97","v":0},"","C701 Overige geneeskundige zorg- Optometrie- geaccepteerd","zvsx13k","a701","g24","TY0V01"]
[null,null,null,null,"zvsx13k_a701_g24_TY1V01",{"$f":"'Specifieke informatie C'!$L$97","v":0},"","C701 Overige geneeskundige zorg- Optometrie- geaccepteerd","zvsx13k","a701","g24","TY1V01"]
[null,null,null,null,"zvsx13k_a701_g25_TY0V01",{"$f":"'Specifieke informatie C'!$K$98","v":0},"","C701 Overige geneeskundige zorg- voetzorg bij Diabetes Mellitus type 2- geaccepteerd","zvsx13k","a701","g25","TY0V01"]
[null,null,null,null,"zvsx13k_a701_g25_TY1V01",{"$f":"'Specifieke informatie C'!$L$98","v":0},"","C701 Overige geneeskundige zorg- voetzorg bij Diabetes Mellitus type 2- geaccepteerd","zvsx13k","a701","g25","TY1V01"]
[null,null,null,null,"zvsx13k_a701_g26_TY0V01",{"$f":"'Specifieke informatie C'!$K$99","v":0},"","C701 Overige geneeskundige zorg- Koemelkallergietest (niet horend bij Multidisciplinaire Zorg)- geaccepteerd","zvsx13k","a701","g26","TY0V01"]
[null,null,null,null,"zvsx13k_a701_g26_TY1V01",{"$f":"'Specifieke informatie C'!$L$99","v":0},"","C701 Overige geneeskundige zorg- Koemelkallergietest (niet horend bij Multidisciplinaire Zorg)- geaccepteerd","zvsx13k","a701","g26","TY1V01"]
[null,null,null,null,"zvsx13k_a701_g27_TY0V01",{"$f":"'Specifieke informatie C'!$K$100","v":0},"","C701 Overige geneeskundige zorg- Regiefunctie complexe wondzorgt- geaccepteerd","zvsx13k","a701","g27","TY0V01"]
[null,null,null,null,"zvsx13k_a701_g27_TY1V01",{"$f":"'Specifieke informatie C'!$L$100","v":0},"","C701 Overige geneeskundige zorg- Regiefunctie complexe wondzorgt- geaccepteerd","zvsx13k","a701","g27","TY1V01"]
[null,null,null,null,"zvsx13k_a702_g01_TY0V01",{"$f":"'Specifieke informatie C'!$K$105","v":0},"","C702 Zintuiglijk gehandicapten- visuele beperking- geaccepteerd","zvsx13k","a702","g01","TY0V01"]
[null,null,null,null,"zvsx13k_a702_g01_TY1V01",{"$f":"'Specifieke informatie C'!$L$105","v":0},"","C702 Zintuiglijk gehandicapten- visuele beperking- geaccepteerd","zvsx13k","a702","g01","TY1V01"]
[null,null,null,null,"zvsx13k_a702_g02_TY0V01",{"$f":"'Specifieke informatie C'!$K$106","v":0},"","C702 Zintuiglijk gehandicapten- auditieve  en communicatieve beperking- geaccepteerd","zvsx13k","a702","g02","TY0V01"]
[null,null,null,null,"zvsx13k_a702_g02_TY1V01",{"$f":"'Specifieke informatie C'!$L$106","v":0},"","C702 Zintuiglijk gehandicapten- auditieve  en communicatieve beperking- geaccepteerd","zvsx13k","a702","g02","TY1V01"]
[null,null,null,null,"zvsx15i_a720g_u12_TY0V01",{"$f":"'Specifieke informatie C'!$K$112","v":0},"","C720 Grensoverschrijdende zorg- wonen in Nederland (op basis van contract- geaccepteerd","zvsx15i","a720g","u12","TY0V01"]
[null,null,null,null,"zvsx15i_a720g_u12_TY1V01",{"$f":"'Specifieke informatie C'!$L$112","v":0},"","C720 Grensoverschrijdende zorg- wonen in Nederland (op basis van contract- geaccepteerd","zvsx15i","a720g","u12","TY1V01"]
[null,null,null,null,"zvsx15i_a720g_u13_TY0V01",{"$f":"'Specifieke informatie C'!$K$113","v":0},"","C720 Grensoverschrijdende zorg- wonen in Nederland (niet op basis van contract)- geaccepteerd","zvsx15i","a720g","u13","TY0V01"]
[null,null,null,null,"zvsx15i_a720g_u13_TY1V01",{"$f":"'Specifieke informatie C'!$L$113","v":0},"","C720 Grensoverschrijdende zorg- wonen in Nederland (niet op basis van contract)- geaccepteerd","zvsx15i","a720g","u13","TY1V01"]
[null,null,null,null,"zvsx15i_a720g_u02_TY0V01",{"$f":"'Specifieke informatie C'!$K$114","v":0},"","C720 Grensoverschrijdende zorg- Zvw verzekerden die wonen in het buitenland- geaccepteerd","zvsx15i","a720g","u02","TY0V01"]
[null,null,null,null,"zvsx15i_a720g_u02_TY1V01",{"$f":"'Specifieke informatie C'!$L$114","v":0},"","C720 Grensoverschrijdende zorg- Zvw verzekerden die wonen in het buitenland- geaccepteerd","zvsx15i","a720g","u02","TY1V01"]
[null,null,null,null,"zvsx15i_n720g_u12_TY0V01",{"$f":"'Specifieke informatie C'!$K$119","v":0},null,"C720 Grensoverschrijdende zorg- wonen in Nederland (op basis van contract)- geaccepteerd","zvsx15i","a720g","u12","TY0V01"]
[null,null,null,null,"zvsx15i_n720g_u12_TY1V01",{"$f":"'Specifieke informatie C'!$L$119","v":0},null,"C720 Grensoverschrijdende zorg- wonen in Nederland (op basis van contract)- geaccepteerd","zvsx15i","a720g","u12","TY1V01"]
[null,null,null,null,"zvsx15i_n720g_u13_TY0V01",{"$f":"'Specifieke informatie C'!$K$120","v":0},null,"C720 Grensoverschrijdende zorg- wonen in Nederland (niet op basis van contract)- geaccepteerd","zvsx15i","a720g","u13","TY0V01"]
[null,null,null,null,"zvsx15i_n720g_u13_TY1V01",{"$f":"'Specifieke informatie C'!$L$120","v":0},null,"C720 Grensoverschrijdende zorg- wonen in Nederland (niet op basis van contract)- geaccepteerd","zvsx15i","a720g","u13","TY1V01"]
[null,null,null,null,"zvsx15i_n720g_u02_TY0V01",{"$f":"'Specifieke informatie C'!$K$121","v":0},null,"C720 Grensoverschrijdende zorg- Zvw verzekerden die wonen in het buitenland- geaccepteerd","zvsx15i","a720g","u02","TY0V01"]
[null,null,null,null,"zvsx15i_n720g_u02_TY1V01",{"$f":"'Specifieke informatie C'!$L$121","v":0},null,"C720 Grensoverschrijdende zorg- Zvw verzekerden die wonen in het buitenland- geaccepteerd","zvsx15i","a720g","u02","TY1V01"]

{"sheet":"Parameters","index":11,"n_rows":34,"n_cols":3,"rows_kept":34,"cut":false,"hidden":true,"merged":[]}
[]
["Kwartaal:"]
["Jaar:",2022]
["Wet:","ZVW"]
["Document:",{"$f":"CONCATENATE(\"JS\",jaar_id,wet_id,\".\",kwartaal_id,revisie_id)","v":"JS2022ZVW.D"}]
["Revisie:","D"]
["Revisiedatum:","2022-11-01"]
["Versie:",{"$f":"CONCATENATE(document_id,)","v":"JS2022ZVW.D"}]
[]
[]
[]
["NUMMER_UO","NAAM_UO","FORMAT_UO1"]
["0000","KIES UW UZOVI-NUMMER",{"$f":"CONCATENATE(A13,\" \",B13)","v":"0000 KIES UW UZOVI-NUMMER"}]
["0101","UNIVÉ ZORG","0101 UNIVÉ ZORG"]
["0104","CENTRALE ZORGVERZEKERINGEN NZV N.V.","0104 CENTRALE ZORGVERZEKERINGEN NZV N.V."]
["0201","OHRA ZORGVERZEKERINGEN N.V.","0201 OHRA ZORGVERZEKERINGEN N.V."]
["0403","ASR ","0403 ASR "]
["0699","IZA","0699 IZA"]
["0736","UMC","0736 UMC"]
["3311","ZILVEREN KRUIS","3311 ZILVEREN KRUIS"]
["3313","INTERPOLIS","3313 INTERPOLIS"]
["3332","MENZIS","3332 MENZIS"]
["3333","ANDERZORG","3333 ANDERZORG"]
["3343","ONVZ",{"$f":"CONCATENATE(A24,\" \",B24)","v":"3343 ONVZ"}]
["3347","ENO",{"$f":"CONCATENATE(A25,\" \",B25)","v":"3347 ENO"}]
["3351","FBTO",{"$f":"CONCATENATE(A26,\" \",B26)","v":"3351 FBTO"}]
["3352","IPTIQ",{"$f":"CONCATENATE(A27,\" \",B27)","v":"3352 IPTIQ"}]
["3358","DE FRIESLAND",{"$f":"CONCATENATE(A28,\" \",B28)","v":"3358 DE FRIESLAND"}]
["3359","EUCARE INSURANCE PCC LTD","3359 EUCARE INSURANCE PCC LTD"]
["7029","DSW","7029 DSW"]
["7037","STAD HOLLAND","7037 STAD HOLLAND"]
["7085","ZORG EN ZEKERHEID","7085 ZORG EN ZEKERHEID"]
["7095","VGZ ZORGVERZEKERAAR","7095 VGZ ZORGVERZEKERAAR"]
["7119","CZ ZORGVERZEKERINGEN N.V.","7119 CZ ZORGVERZEKERINGEN N.V."]